Workbook

Sheet Title
C38: The following individuals contributed to these budgets in their specialty area
D39: Robert Wright | F39: Research and Extension Entomologist | L39: rwright@unl.edu
D40: Tamra Jackson | F40: Extension Plant Pathologist - Corn and Sorghum | L40: tjackson3@unl.edu
D41: Loren Giesler | F41: Extension Plant Pathologist - Soybean and Turf | L41: lgiesler@unl.edu
D42: Paul J. Jasa | F42: Extension Engineer | L42: pjasa1@unl.edu
D43: Stephen N. Wegulo | F43: Extension Plant Pathologist - Wheat and Ornamental | L43: swegulo2@unl.edu
D44: Robert G. Wilson | F44: Weed Management Specialist | L44: rwilson5@unl.edu
D45: Gary W. Hergert | F45: Soil and Nutrition Management Specialist | L45: ghergert1@unl.edu
D46: James A. Schild | F46: Extension Educator in Scotts Bluff and Morrill Counties | L46: jschild1@unl.edu

Sheet General Variables (hidden)
A1: Farm Wide Inputs
A3: Year | B3: 2015 | E3: Real Estate Values
A4: Wage Rate | B4: 20 | C4: / Hr | E4: Description | F4: Value
A5: Diesel Price | B5: 3.25 | C5: / Gal. | E5: Dryland (State) | F5: 3730
A6: Lube Factor | B6: 1.15 | E6: Dryland (Panhandle) | F6: 845
A7: Diesel & Lube | B7: =B5*B6 -> 3.7375 | C7: / gal. | E7: Gravity (State) | F7: 7310
A8: Elect. Price | B8: 0.1 | C8: / kwh | E8: Gravity (Panhandle) | F8: 3040
A9: Taxes, Ins., Housing Factor | B9: 0.02 | E9: Pivot (State) | F9: 7685
A10: Investment Interest Rate | B10: 0.04 | E10: Pivot (Panhandle) | F10: 3770
A11: Operations Borrowing Rate | B11: 0.055 | E11: Dryland (Southwest) | F11: 1965
A12: Operations Borrowing Time | B12: 6 | C12: months | E12: Fall Establishment | F12: 0
A13: Real Estate Tax Rate | B13: 0.01 | E13: Pivot (Marginal Land) | F13: =F9*0.7 -> 5379.5
A14: Overhead Cost per Acre | B14: 20
A16: Crop Insurance
A17: Crop | B17: Premiium
A18: Corn Dryland | B18: 23
A19: Corn Dryland Ecofallow | B19: 20
A20: Corn Irrigated | B20: 10
A21: Drybeans | B21: 21
A22: Grain Sorghum Dryland | B22: 11
A23: Grain Sorghum Irrigated | B23: 10
A24: Millet | B24: 15
A25: Oats | B25: 11
A26: Soybeans Dryland | B26: 16
A27: Soybeans Irrigated | B27: 8.5
A28: Sugar Beets | B28: 20
A29: Sunflower Dryland | B29: 14
A30: Sunflower Irrigated | B30: 19
A31: Wheat After Crop | B31: 14.5
A32: Wheat Fallowed | B32: 9.5 | M32: Budget | N32: County
A33: Wheat Irrigated | B33: 13.25 | L33: 1 | M33: Alfalfa | N33: N/A
L34: 2 | M34: Alfalfa | N34: N/A
L35: 3 | M35: Alfalfa | N35: N/A
L36: 4 | M36: Alfalfa | N36: N/A
L37: 5 | M37: Alfalfa | N37: N/A
L38: 6 | M38: Alfalfa | N38: N/A
L39: 7 | M39: Alfalfa | N39: N/A
A40: Budget | B40: County | D40: Budget | F40: County | H40: Budget | I40: County | L40: 8 | M40: Alfalfa | N40: N/A
A41: =CONCATENATE(L33,"-",M33) -> 1-Alfalfa | B41: N/A | D41: =CONCATENATE(L56,"-",M56) -> 24-Corn | E41: =CONCATENATE(P33,"-",Q33) -> - | F41: N/A | H41: =CONCATENATE(L78,"-",M78) -> 46-Soybeans | I41: =CONCATENATE(T33,"-",U33) -> - | L41: 9 | M41: Alfalfa | N41: N/A
A42: =CONCATENATE(L34,"-",M34) -> 2-Alfalfa | B42: N/A | D42: 25-Corn | E42: - | F42: N/A | H42: 47-Soybeans | I42: N/A | L42: 10 | M42: Alfalfa | N42: N/A
A43: 3-Alfalfa | B43: N/A | D43: 26-Corn | E43: - | F43: N/A | H43: 48-Soybeans | I43: N/A | L43: 11 | M43: Alfalfa | N43: N/A
A44: 4-Alfalfa | B44: N/A | D44: 27-Corn | E44: - | F44: N/A | H44: 49-Soybeans | I44: N/A | L44: 12 | M44: Alfalfa | N44: N/A
A45: 5-Alfalfa | B45: N/A | D45: 28-Corn | E45: - | F45: N/A | H45: 50-Soybeans | I45: N/A | L45: 13 | M45: Alfalfa | N45: N/A
A46: 6-Alfalfa | B46: N/A | D46: 29-Corn | E46: - | F46: N/A | H46: 51-Soybeans | I46: N/A | L46: 14 | M46: Alfalfa | N46: N/A
A47: 7-Alfalfa | B47: N/A | D47: 30-Dry Beans | E47: - | F47: N/A | H47: 52-Soybeans | I47: N/A | L47: 15 | M47: Corn | N47: Buffalo
A48: 8-Alfalfa | B48: N/A | D48: 31-Dry Beans | E48: - | F48: N/A | H48: 53-Soybeans | I48: N/A | L48: 16 | M48: Corn | N48: Buffalo
A49: 9-Alfalfa | B49: Buffalo | D49: 32-Dry Beans | E49: - | F49: Buffalo | H49: 54-Sugar Beets | I49: Buffalo | L49: 17 | M49: Corn | N49: Buffalo
A50: 10-Alfalfa | B50: Buffalo | D50: 33-Dry Beans | E50: - | F50: Buffalo | H50: 55-Sugar Beets | I50: Buffalo | L50: 18 | M50: Corn | N50: Buffalo
A51: 11-Alfalfa | B51: Buffalo | D51: 34-Grain Sorghum | E51: - | F51: Buffalo | H51: 56-Sugar Beets | I51: Buffalo | L51: 19 | M51: Corn | N51: Perkins
A52: 12-Alfalfa | B52: Buffalo | D52: 35-Grain Sorghum | E52: - | F52: Buffalo | H52: 57-Sugar Beets | I52: Buffalo | L52: 20 | M52: Corn | N52: Buffalo
A53: 13-Alfalfa | B53: Buffalo | D53: 36-Grain Sorghum | E53: - | F53: Buffalo | H53: 58-Sunflower | I53: Buffalo | L53: 21 | M53: Corn | N53: Buffalo
A54: 14-Alfalfa | B54: Buffalo | D54: 37-Grain Sorghum | E54: - | F54: Buffalo | H54: 59-Sunflower | I54: Buffalo | L54: 22 | M54: Corn | N54: Buffalo
A55: 15-Corn | B55: Buffalo | D55: 38-Grass | E55: - | F55: Buffalo | H55: 60-Sunflower | I55: Buffalo | L55: 23 | M55: Corn | N55: Buffalo
A56: 16-Corn | B56: Buffalo | D56: 39-Grass Hay | E56: - | F56: Buffalo | H56: 61-Wheat | I56: Buffalo | L56: 24 | M56: Corn | N56: Buffalo
A57: 17-Corn | B57: Buffalo | D57: 40-Millet | E57: - | F57: Buffalo | H57: 62-Wheat | I57: Buffalo | L57: 25 | M57: Corn | N57: Buffalo
A58: 18-Corn | B58: Buffalo | D58: 41-Millet | E58: - | F58: Buffalo | H58: 63-Wheat | I58: Buffalo | L58: 26 | M58: Corn | N58: Buffalo
A59: 19-Corn | B59: Buffalo | D59: 42-Oats | E59: - | F59: Buffalo | H59: 64-Wheat | I59: Buffalo | L59: 27 | M59: Corn | N59: Buffalo
A60: 20-Corn | B60: Buffalo | D60: 43-Pasture | E60: - | F60: Buffalo | H60: 65-Wheat | I60: Buffalo | L60: 28 | M60: Corn | N60: Buffalo
A61: 21-Corn | B61: Cheyenne | D61: 44-Peas | E61: - | F61: Cheyenne | H61: 66-Wheat | I61: Cheyenne | L61: 29 | M61: Corn | N61: Buffalo
A62: 22-Corn | B62: Cheyenne | D62: 45-Sorghum-Sudan | E62: - | F62: Cheyenne | H62: 67-Wheat | I62: Cheyenne | L62: 30 | M62: Dry Beans | N62: Cheyenne
A63: 23-Corn | B63: Cheyenne | L63: 31 | M63: Dry Beans | N63: Cheyenne
L64: 32 | M64: Dry Beans | N64: Cheyenne
L65: 33 | M65: Dry Beans | N65: Cheyenne
L66: 34 | M66: Grain Sorghum | N66: Jefferson
L67: 35 | M67: Grain Sorghum | N67: Jefferson
L68: 36 | M68: Grain Sorghum | N68: Jefferson
L69: 37 | M69: Grain Sorghum | N69: Jefferson
L70: 38 | M70: Grass | N70: N/A
L71: 39 | M71: Grass Hay | N71: N/A
L72: 40 | M72: Millet | N72: Cheyenne
L73: 41 | M73: Millet | N73: Cheyenne
L74: 42 | M74: Oats | N74: Burt
L75: 43 | M75: Pasture | N75: N/A
L76: 44 | M76: Peas | N76: N/A
L77: 45 | M77: Sorghum-Sudan | N77: N/A
L78: 46 | M78: Soybeans | N78: Buffalo
L79: 47 | M79: Soybeans | N79: Buffalo
L80: 48 | M80: Soybeans | N80: Buffalo
L81: 49 | M81: Soybeans | N81: Buffalo
L82: 50 | M82: Soybeans | N82: Buffalo
L83: 51 | M83: Soybeans | N83: Buffalo
L84: 52 | M84: Soybeans | N84: Buffalo
L85: 53 | M85: Soybeans | N85: Buffalo
L86: 54 | M86: Sugar Beets | N86: Box Butte
L87: 55 | M87: Sugar Beets | N87: Box Butte
L88: 56 | M88: Sugar Beets | N88: Box Butte
L89: 57 | M89: Sugar Beets | N89: Box Butte
L90: 58 | M90: Sunflower | N90: Perkins
L91: 59 | M91: Sunflower | N91: Perkins
L92: 60 | M92: Sunflower | N92: Perkins
L93: 61 | M93: Wheat | N93: Keith
L94: 62 | M94: Wheat | N94: Keith
L95: 63 | M95: Wheat | N95: Keith
L96: 64 | M96: Wheat | N96: Keith
L97: 65 | M97: Wheat | N97: Keith
L98: 66 | M98: Wheat | N98: Keith
L99: 67 | M99: Wheat | N99: Keith

Sheet Power Units (hidden)
A1: Name | B1: Repair Category | C1: Depreciation Category | D1: List Price | E1: Beg Yr Value | F1: Age | G1: Tach Hours | H1: Est. Hours per Year | I1: Calculated List Price | J1: Repairs per Hour | K1: Calculated Beg Yr. Value | L1: Calculated End Yr. Value | M1: Depreciation per Hour | N1: TIH per Hour | O1: Opportunity Cost per Hour | P1: Ownership Cost per Hour | R1: Machine | S1: Catogory | T1: RF1 | U1: RF2 | V1: Estimated Life | X1: Equipment type | Y1: Machine | Z1: C1 | AA1: C2 | AB1: C3
A2: Large Tractor | B2: 4 wheel drive & crawler | C2: Farm tractors (>150hp) | D2: 317791 | F2: 10 | G2: 1500 | H2: 300 | I2: =IF(PowerUnits[[#This Row],[List Price]]>1,PowerUnits[[#This Row],[List Price]],IF(C2="",0,PowerUnits[[#This Row],[Beg Yr Value]]/(VLOOKUP(PowerUnits[[#This Row],[Depreciation Category]],PwrDepreciation,2,FALSE)-VLOOKUP(PowerUnits[[#This Row],[Depreciation Category]],PwrDepreciation,3,FALSE)*PowerUnits[[#This Row],[Age]]^0.5-VLOOKUP(PowerUnits[[#This Row],[Depreciation Category]],PwrDepreciation,4,FALSE)*PowerUnits[[#This Row],[Tach Hours]]^0.5)^2)) -> 317791 | J2: =IF(PowerUnits[[#This Row],[Est. Hours per Year]]=0,0,IF(PowerUnits[[#This Row],[Repair Category]]=0,0,(VLOOKUP(PowerUnits[[#This Row],[Repair Category]],PwrRepairs[],3,FALSE)*PowerUnits[[#This Row],[Calculated List Price]]*((PowerUnits[[#This Row],[Tach Hours]]+PowerUnits[[#This Row],[Est. Hours per Year]])/1000)^VLOOKUP(PowerUnits[[#This Row],[Repair Category]],PwrRepairs[],4,FALSE)-VLOOKUP(PowerUnits[[#This Row],[Repair Category]],PwrRepairs[],3,FALSE)*PowerUnits[[#This Row],[Calculated List Price]]*(PowerUnits[[#This Row],[Tach Hours]]/1000)^VLOOKUP(PowerUnits[[#This Row],[Repair Category]],PwrRepairs[],4,FALSE))/PowerUnits[[#This Row],[Est. Hours per Year]])) -> 3.1461309 | K2: =IF(PowerUnits[[#This Row],[Depreciation Category]]=0,0,PowerUnits[[#This Row],[Calculated List Price]]*(VLOOKUP(PowerUnits[[#This Row],[Depreciation Category]],PwrDepreciation,2,FALSE)-VLOOKUP(PowerUnits[[#This Row],[Depreciation Category]],PwrDepreciation,3,FALSE)*PowerUnits[[#This Row],[Age]]^0.5-VLOOKUP(PowerUnits[[#This Row],[Depreciation Category]],PwrDepreciation,4,FALSE)*PowerUnits[[#This Row],[Tach Hours]]^0.5)^2) -> 87959.33818 | L2: =IF(PowerUnits[[#This Row],[Depreciation Category]]=0,0,PowerUnits[[#This Row],[Calculated List Price]]*(VLOOKUP(PowerUnits[[#This Row],[Depreciation Category]],PwrDepreciation,2,FALSE)-VLOOKUP(PowerUnits[[#This Row],[Depreciation Category]],PwrDepreciation,3,FALSE)*(PowerUnits[[#This Row],[Age]]+1)^0.5-VLOOKUP(PowerUnits[[#This Row],[Depreciation Category]],PwrDepreciation,4,FALSE)*(PowerUnits[[#This Row],[Tach Hours]]+PowerUnits[[#This Row],[Est. Hours per Year]])^0.5)^2) -> 79674.01182 | M2: =IF(PowerUnits[[#This Row],[Est. Hours per Year]]=0,0,(PowerUnits[[#This Row],[Calculated Beg Yr. Value]]-PowerUnits[[#This Row],[Calculated End Yr. Value]])/PowerUnits[[#This Row],[Est. Hours per Year]]) -> 27.61775453 | N2: =IF(PowerUnits[[#This Row],[Est. Hours per Year]]=0,0,PowerUnits[[#This Row],[Calculated Beg Yr. Value]]*'General Variables'!$B$9/PowerUnits[[#This Row],[Est. Hours per Year]]) -> 5.863955878 | O2: =IF(PowerUnits[[#This Row],[Est. Hours per Year]]=0,0,PowerUnits[[#This Row],[Calculated Beg Yr. Value]]*'General Variables'!$B$10/PowerUnits[[#This Row],[Est. Hours per Year]]) -> 11.72791176 | P2: =SUM(PowerUnits[[#This Row],[Depreciation per Hour]:[Opportunity Cost per Hour]]) -> 45.20962216 | R2: 2 wheel drive & stationary tractor | S2: TRACTORS | T2: 0.007 | U2: 2.0 | V2: 12000 | X2: Farm tractors | Y2: Farm tractors (<80hp) | Z2: 0.981 | AA2: 0.093 | AB2: 0.0058
A3: Medium Tractor | B3: 2 wheel drive & stationary tractor | C3: Farm tractors (>150hp) | D3: 213972 | F3: 5 | G3: 2500 | H3: 500 | I3: =IF(PowerUnits[[#This Row],[List Price]]>1,PowerUnits[[#This Row],[List Price]],IF(C3="",0,PowerUnits[[#This Row],[Beg Yr Value]]/(VLOOKUP(PowerUnits[[#This Row],[Depreciation Category]],PwrDepreciation,2,FALSE)-VLOOKUP(PowerUnits[[#This Row],[Depreciation Category]],PwrDepreciation,3,FALSE)*PowerUnits[[#This Row],[Age]]^0.5-VLOOKUP(PowerUnits[[#This Row],[Depreciation Category]],PwrDepreciation,4,FALSE)*PowerUnits[[#This Row],[Tach Hours]]^0.5)^2)) -> 213972 | J3: =IF(PowerUnits[[#This Row],[Est. Hours per Year]]=0,0,IF(PowerUnits[[#This Row],[Repair Category]]=0,0,(VLOOKUP(PowerUnits[[#This Row],[Repair Category]],PwrRepairs[],3,FALSE)*PowerUnits[[#This Row],[Calculated List Price]]*((PowerUnits[[#This Row],[Tach Hours]]+PowerUnits[[#This Row],[Est. Hours per Year]])/1000)^VLOOKUP(PowerUnits[[#This Row],[Repair Category]],PwrRepairs[],4,FALSE)-VLOOKUP(PowerUnits[[#This Row],[Repair Category]],PwrRepairs[],3,FALSE)*PowerUnits[[#This Row],[Calculated List Price]]*(PowerUnits[[#This Row],[Tach Hours]]/1000)^VLOOKUP(PowerUnits[[#This Row],[Repair Category]],PwrRepairs[],4,FALSE))/PowerUnits[[#This Row],[Est. Hours per Year]])) -> 8.237922 | K3: =IF(PowerUnits[[#This Row],[Depreciation Category]]=0,0,PowerUnits[[#This Row],[Calculated List Price]]*(VLOOKUP(PowerUnits[[#This Row],[Depreciation Category]],PwrDepreciation,2,FALSE)-VLOOKUP(PowerUnits[[#This Row],[Depreciation Category]],PwrDepreciation,3,FALSE)*PowerUnits[[#This Row],[Age]]^0.5-VLOOKUP(PowerUnits[[#This Row],[Depreciation Category]],PwrDepreciation,4,FALSE)*PowerUnits[[#This Row],[Tach Hours]]^0.5)^2) -> 80905.32493 | L3: =IF(PowerUnits[[#This Row],[Depreciation Category]]=0,0,PowerUnits[[#This Row],[Calculated List Price]]*(VLOOKUP(PowerUnits[[#This Row],[Depreciation Category]],PwrDepreciation,2,FALSE)-VLOOKUP(PowerUnits[[#This Row],[Depreciation Category]],PwrDepreciation,3,FALSE)*(PowerUnits[[#This Row],[Age]]+1)^0.5-VLOOKUP(PowerUnits[[#This Row],[Depreciation Category]],PwrDepreciation,4,FALSE)*(PowerUnits[[#This Row],[Tach Hours]]+PowerUnits[[#This Row],[Est. Hours per Year]])^0.5)^2) -> 72090.2867 | M3: =IF(PowerUnits[[#This Row],[Est. Hours per Year]]=0,0,(PowerUnits[[#This Row],[Calculated Beg Yr. Value]]-PowerUnits[[#This Row],[Calculated End Yr. Value]])/PowerUnits[[#This Row],[Est. Hours per Year]]) -> 17.63007648 | N3: =IF(PowerUnits[[#This Row],[Est. Hours per Year]]=0,0,PowerUnits[[#This Row],[Calculated Beg Yr. Value]]*'General Variables'!$B$9/PowerUnits[[#This Row],[Est. Hours per Year]]) -> 3.236212997 | O3: =IF(PowerUnits[[#This Row],[Est. Hours per Year]]=0,0,PowerUnits[[#This Row],[Calculated Beg Yr. Value]]*'General Variables'!$B$10/PowerUnits[[#This Row],[Est. Hours per Year]]) -> 6.472425995 | P3: =SUM(PowerUnits[[#This Row],[Depreciation per Hour]:[Opportunity Cost per Hour]]) -> 27.33871547 | R3: 4 wheel drive & crawler | S3: TRACTORS | T3: 0.003 | U3: 2.0 | V3: 16000 | X3: Farm tractors | Y3: Farm tractors (80-150hp) | Z3: 0.942 | AA3: 0.100 | AB3: 0.0008
A4: Combine | B4: Combine(SP) | C4: Combines | D4: 317791 | F4: 10 | G4: 1500 | H4: 300 | I4: =IF(PowerUnits[[#This Row],[List Price]]>1,PowerUnits[[#This Row],[List Price]],IF(C4="",0,PowerUnits[[#This Row],[Beg Yr Value]]/(VLOOKUP(PowerUnits[[#This Row],[Depreciation Category]],PwrDepreciation,2,FALSE)-VLOOKUP(PowerUnits[[#This Row],[Depreciation Category]],PwrDepreciation,3,FALSE)*PowerUnits[[#This Row],[Age]]^0.5-VLOOKUP(PowerUnits[[#This Row],[Depreciation Category]],PwrDepreciation,4,FALSE)*PowerUnits[[#This Row],[Tach Hours]]^0.5)^2)) -> 317791 | J4: =IF(PowerUnits[[#This Row],[Est. Hours per Year]]=0,0,IF(PowerUnits[[#This Row],[Repair Category]]=0,0,(VLOOKUP(PowerUnits[[#This Row],[Repair Category]],PwrRepairs[],3,FALSE)*PowerUnits[[#This Row],[Calculated List Price]]*((PowerUnits[[#This Row],[Tach Hours]]+PowerUnits[[#This Row],[Est. Hours per Year]])/1000)^VLOOKUP(PowerUnits[[#This Row],[Repair Category]],PwrRepairs[],4,FALSE)-VLOOKUP(PowerUnits[[#This Row],[Repair Category]],PwrRepairs[],3,FALSE)*PowerUnits[[#This Row],[Calculated List Price]]*(PowerUnits[[#This Row],[Tach Hours]]/1000)^VLOOKUP(PowerUnits[[#This Row],[Repair Category]],PwrRepairs[],4,FALSE))/PowerUnits[[#This Row],[Est. Hours per Year]])) -> 46.31472206 | K4: =IF(PowerUnits[[#This Row],[Depreciation Category]]=0,0,PowerUnits[[#This Row],[Calculated List Price]]*(VLOOKUP(PowerUnits[[#This Row],[Depreciation Category]],PwrDepreciation,2,FALSE)-VLOOKUP(PowerUnits[[#This Row],[Depreciation Category]],PwrDepreciation,3,FALSE)*PowerUnits[[#This Row],[Age]]^0.5-VLOOKUP(PowerUnits[[#This Row],[Depreciation Category]],PwrDepreciation,4,FALSE)*PowerUnits[[#This Row],[Tach Hours]]^0.5)^2) -> 29418.9412 | L4: =IF(PowerUnits[[#This Row],[Depreciation Category]]=0,0,PowerUnits[[#This Row],[Calculated List Price]]*(VLOOKUP(PowerUnits[[#This Row],[Depreciation Category]],PwrDepreciation,2,FALSE)-VLOOKUP(PowerUnits[[#This Row],[Depreciation Category]],PwrDepreciation,3,FALSE)*(PowerUnits[[#This Row],[Age]]+1)^0.5-VLOOKUP(PowerUnits[[#This Row],[Depreciation Category]],PwrDepreciation,4,FALSE)*(PowerUnits[[#This Row],[Tach Hours]]+PowerUnits[[#This Row],[Est. Hours per Year]])^0.5)^2) -> 19796.57334 | M4: =IF(PowerUnits[[#This Row],[Est. Hours per Year]]=0,0,(PowerUnits[[#This Row],[Calculated Beg Yr. Value]]-PowerUnits[[#This Row],[Calculated End Yr. Value]])/PowerUnits[[#This Row],[Est. Hours per Year]]) -> 32.07455952 | N4: =IF(PowerUnits[[#This Row],[Est. Hours per Year]]=0,0,PowerUnits[[#This Row],[Calculated Beg Yr. Value]]*'General Variables'!$B$9/PowerUnits[[#This Row],[Est. Hours per Year]]) -> 1.961262747 | O4: =IF(PowerUnits[[#This Row],[Est. Hours per Year]]=0,0,PowerUnits[[#This Row],[Calculated Beg Yr. Value]]*'General Variables'!$B$10/PowerUnits[[#This Row],[Est. Hours per Year]]) -> 3.922525493 | P4: =SUM(PowerUnits[[#This Row],[Depreciation per Hour]:[Opportunity Cost per Hour]]) -> 37.95834776 | R4: Combine(SP) | S4: HARVESTING | T4: 0.04 | U4: 2.1 | V4: 3000 | X4: Farm tractors | Y4: Farm tractors (>150hp) | Z4: 0.976 | AA4: 0.119 | AB4: 0.0019
A5: Diesel Pump | B5: 2 wheel drive & stationary tractor | C5: Farm tractors (80-150hp) | D5: 15000 | F5: 10 | G5: 2400 | H5: 800 | I5: =IF(PowerUnits[[#This Row],[List Price]]>1,PowerUnits[[#This Row],[List Price]],IF(C5="",0,PowerUnits[[#This Row],[Beg Yr Value]]/(VLOOKUP(PowerUnits[[#This Row],[Depreciation Category]],PwrDepreciation,2,FALSE)-VLOOKUP(PowerUnits[[#This Row],[Depreciation Category]],PwrDepreciation,3,FALSE)*PowerUnits[[#This Row],[Age]]^0.5-VLOOKUP(PowerUnits[[#This Row],[Depreciation Category]],PwrDepreciation,4,FALSE)*PowerUnits[[#This Row],[Tach Hours]]^0.5)^2)) -> 15000 | J5: =IF(PowerUnits[[#This Row],[Est. Hours per Year]]=0,0,IF(PowerUnits[[#This Row],[Repair Category]]=0,0,(VLOOKUP(PowerUnits[[#This Row],[Repair Category]],PwrRepairs[],3,FALSE)*PowerUnits[[#This Row],[Calculated List Price]]*((PowerUnits[[#This Row],[Tach Hours]]+PowerUnits[[#This Row],[Est. Hours per Year]])/1000)^VLOOKUP(PowerUnits[[#This Row],[Repair Category]],PwrRepairs[],4,FALSE)-VLOOKUP(PowerUnits[[#This Row],[Repair Category]],PwrRepairs[],3,FALSE)*PowerUnits[[#This Row],[Calculated List Price]]*(PowerUnits[[#This Row],[Tach Hours]]/1000)^VLOOKUP(PowerUnits[[#This Row],[Repair Category]],PwrRepairs[],4,FALSE))/PowerUnits[[#This Row],[Est. Hours per Year]])) -> 0.588 | K5: =IF(PowerUnits[[#This Row],[Depreciation Category]]=0,0,PowerUnits[[#This Row],[Calculated List Price]]*(VLOOKUP(PowerUnits[[#This Row],[Depreciation Category]],PwrDepreciation,2,FALSE)-VLOOKUP(PowerUnits[[#This Row],[Depreciation Category]],PwrDepreciation,3,FALSE)*PowerUnits[[#This Row],[Age]]^0.5-VLOOKUP(PowerUnits[[#This Row],[Depreciation Category]],PwrDepreciation,4,FALSE)*PowerUnits[[#This Row],[Tach Hours]]^0.5)^2) -> 5161.148452 | L5: =IF(PowerUnits[[#This Row],[Depreciation Category]]=0,0,PowerUnits[[#This Row],[Calculated List Price]]*(VLOOKUP(PowerUnits[[#This Row],[Depreciation Category]],PwrDepreciation,2,FALSE)-VLOOKUP(PowerUnits[[#This Row],[Depreciation Category]],PwrDepreciation,3,FALSE)*(PowerUnits[[#This Row],[Age]]+1)^0.5-VLOOKUP(PowerUnits[[#This Row],[Depreciation Category]],PwrDepreciation,4,FALSE)*(PowerUnits[[#This Row],[Tach Hours]]+PowerUnits[[#This Row],[Est. Hours per Year]])^0.5)^2) -> 4789.776647 | M5: =IF(PowerUnits[[#This Row],[Est. Hours per Year]]=0,0,(PowerUnits[[#This Row],[Calculated Beg Yr. Value]]-PowerUnits[[#This Row],[Calculated End Yr. Value]])/PowerUnits[[#This Row],[Est. Hours per Year]]) -> 0.464214756 | N5: =IF(PowerUnits[[#This Row],[Est. Hours per Year]]=0,0,PowerUnits[[#This Row],[Calculated Beg Yr. Value]]*'General Variables'!$B$9/PowerUnits[[#This Row],[Est. Hours per Year]]) -> 0.1290287113 | O5: =IF(PowerUnits[[#This Row],[Est. Hours per Year]]=0,0,PowerUnits[[#This Row],[Calculated Beg Yr. Value]]*'General Variables'!$B$10/PowerUnits[[#This Row],[Est. Hours per Year]]) -> 0.2580574226 | P5: =SUM(PowerUnits[[#This Row],[Depreciation per Hour]:[Opportunity Cost per Hour]]) -> 0.8513008899 | R5: Cotton picker(SP) | S5: HARVESTING | T5: 0.11 | U5: 1.8 | V5: 3000 | X5: Harvest equipment | Y5: Combines | Z5: 1.132 | AA5: 0.165 | AB5: 0.0079
A6: Electric Pump | B6: Electric Motor | C6: Farm tractors (<80hp) | D6: 10000 | F6: 5 | G6: 2400 | H6: 800 | I6: =IF(PowerUnits[[#This Row],[List Price]]>1,PowerUnits[[#This Row],[List Price]],IF(C6="",0,PowerUnits[[#This Row],[Beg Yr Value]]/(VLOOKUP(PowerUnits[[#This Row],[Depreciation Category]],PwrDepreciation,2,FALSE)-VLOOKUP(PowerUnits[[#This Row],[Depreciation Category]],PwrDepreciation,3,FALSE)*PowerUnits[[#This Row],[Age]]^0.5-VLOOKUP(PowerUnits[[#This Row],[Depreciation Category]],PwrDepreciation,4,FALSE)*PowerUnits[[#This Row],[Tach Hours]]^0.5)^2)) -> 10000 | J6: =IF(PowerUnits[[#This Row],[Est. Hours per Year]]=0,0,IF(PowerUnits[[#This Row],[Repair Category]]=0,0,(VLOOKUP(PowerUnits[[#This Row],[Repair Category]],PwrRepairs[],3,FALSE)*PowerUnits[[#This Row],[Calculated List Price]]*((PowerUnits[[#This Row],[Tach Hours]]+PowerUnits[[#This Row],[Est. Hours per Year]])/1000)^VLOOKUP(PowerUnits[[#This Row],[Repair Category]],PwrRepairs[],4,FALSE)-VLOOKUP(PowerUnits[[#This Row],[Repair Category]],PwrRepairs[],3,FALSE)*PowerUnits[[#This Row],[Calculated List Price]]*(PowerUnits[[#This Row],[Tach Hours]]/1000)^VLOOKUP(PowerUnits[[#This Row],[Repair Category]],PwrRepairs[],4,FALSE))/PowerUnits[[#This Row],[Est. Hours per Year]])) -> 0.5015675025 | K6: =IF(PowerUnits[[#This Row],[Depreciation Category]]=0,0,PowerUnits[[#This Row],[Calculated List Price]]*(VLOOKUP(PowerUnits[[#This Row],[Depreciation Category]],PwrDepreciation,2,FALSE)-VLOOKUP(PowerUnits[[#This Row],[Depreciation Category]],PwrDepreciation,3,FALSE)*PowerUnits[[#This Row],[Age]]^0.5-VLOOKUP(PowerUnits[[#This Row],[Depreciation Category]],PwrDepreciation,4,FALSE)*PowerUnits[[#This Row],[Tach Hours]]^0.5)^2) -> 2390.279699 | L6: =IF(PowerUnits[[#This Row],[Depreciation Category]]=0,0,PowerUnits[[#This Row],[Calculated List Price]]*(VLOOKUP(PowerUnits[[#This Row],[Depreciation Category]],PwrDepreciation,2,FALSE)-VLOOKUP(PowerUnits[[#This Row],[Depreciation Category]],PwrDepreciation,3,FALSE)*(PowerUnits[[#This Row],[Age]]+1)^0.5-VLOOKUP(PowerUnits[[#This Row],[Depreciation Category]],PwrDepreciation,4,FALSE)*(PowerUnits[[#This Row],[Tach Hours]]+PowerUnits[[#This Row],[Est. Hours per Year]])^0.5)^2) -> 1807.099313 | M6: =IF(PowerUnits[[#This Row],[Est. Hours per Year]]=0,0,(PowerUnits[[#This Row],[Calculated Beg Yr. Value]]-PowerUnits[[#This Row],[Calculated End Yr. Value]])/PowerUnits[[#This Row],[Est. Hours per Year]]) -> 0.7289754821 | N6: =IF(PowerUnits[[#This Row],[Est. Hours per Year]]=0,0,PowerUnits[[#This Row],[Calculated Beg Yr. Value]]*'General Variables'!$B$9/PowerUnits[[#This Row],[Est. Hours per Year]]) -> 0.05975699247 | O6: =IF(PowerUnits[[#This Row],[Est. Hours per Year]]=0,0,PowerUnits[[#This Row],[Calculated Beg Yr. Value]]*'General Variables'!$B$10/PowerUnits[[#This Row],[Est. Hours per Year]]) -> 0.1195139849 | P6: =SUM(PowerUnits[[#This Row],[Depreciation per Hour]:[Opportunity Cost per Hour]]) -> 0.9082464595 | R6: Forage harvester(SP) | S6: HARVESTING | T6: 0.03 | U6: 2.0 | V6: 4000 | X6: Harvest equipment | Y6: Swathers and all other harvest equipment | Z6: 0.791 | AA6: 0.091
A7: Diesel Pump for Pipe | B7: 2 wheel drive & stationary tractor | C7: Farm tractors (<80hp) | D7: 15000 | F7: 10 | G7: 2400 | H7: 800 | I7: =IF(PowerUnits[[#This Row],[List Price]]>1,PowerUnits[[#This Row],[List Price]],IF(C7="",0,PowerUnits[[#This Row],[Beg Yr Value]]/(VLOOKUP(PowerUnits[[#This Row],[Depreciation Category]],PwrDepreciation,2,FALSE)-VLOOKUP(PowerUnits[[#This Row],[Depreciation Category]],PwrDepreciation,3,FALSE)*PowerUnits[[#This Row],[Age]]^0.5-VLOOKUP(PowerUnits[[#This Row],[Depreciation Category]],PwrDepreciation,4,FALSE)*PowerUnits[[#This Row],[Tach Hours]]^0.5)^2)) -> 15000 | J7: =IF(PowerUnits[[#This Row],[Est. Hours per Year]]=0,0,IF(PowerUnits[[#This Row],[Repair Category]]=0,0,(VLOOKUP(PowerUnits[[#This Row],[Repair Category]],PwrRepairs[],3,FALSE)*PowerUnits[[#This Row],[Calculated List Price]]*((PowerUnits[[#This Row],[Tach Hours]]+PowerUnits[[#This Row],[Est. Hours per Year]])/1000)^VLOOKUP(PowerUnits[[#This Row],[Repair Category]],PwrRepairs[],4,FALSE)-VLOOKUP(PowerUnits[[#This Row],[Repair Category]],PwrRepairs[],3,FALSE)*PowerUnits[[#This Row],[Calculated List Price]]*(PowerUnits[[#This Row],[Tach Hours]]/1000)^VLOOKUP(PowerUnits[[#This Row],[Repair Category]],PwrRepairs[],4,FALSE))/PowerUnits[[#This Row],[Est. Hours per Year]])) -> 0.588 | K7: =IF(PowerUnits[[#This Row],[Depreciation Category]]=0,0,PowerUnits[[#This Row],[Calculated List Price]]*(VLOOKUP(PowerUnits[[#This Row],[Depreciation Category]],PwrDepreciation,2,FALSE)-VLOOKUP(PowerUnits[[#This Row],[Depreciation Category]],PwrDepreciation,3,FALSE)*PowerUnits[[#This Row],[Age]]^0.5-VLOOKUP(PowerUnits[[#This Row],[Depreciation Category]],PwrDepreciation,4,FALSE)*PowerUnits[[#This Row],[Tach Hours]]^0.5)^2) -> 2433.323284 | L7: =IF(PowerUnits[[#This Row],[Depreciation Category]]=0,0,PowerUnits[[#This Row],[Calculated List Price]]*(VLOOKUP(PowerUnits[[#This Row],[Depreciation Category]],PwrDepreciation,2,FALSE)-VLOOKUP(PowerUnits[[#This Row],[Depreciation Category]],PwrDepreciation,3,FALSE)*(PowerUnits[[#This Row],[Age]]+1)^0.5-VLOOKUP(PowerUnits[[#This Row],[Depreciation Category]],PwrDepreciation,4,FALSE)*(PowerUnits[[#This Row],[Tach Hours]]+PowerUnits[[#This Row],[Est. Hours per Year]])^0.5)^2) -> 1779.752635 | M7: =IF(PowerUnits[[#This Row],[Est. Hours per Year]]=0,0,(PowerUnits[[#This Row],[Calculated Beg Yr. Value]]-PowerUnits[[#This Row],[Calculated End Yr. Value]])/PowerUnits[[#This Row],[Est. Hours per Year]]) -> 0.8169633109 | N7: =IF(PowerUnits[[#This Row],[Est. Hours per Year]]=0,0,PowerUnits[[#This Row],[Calculated Beg Yr. Value]]*'General Variables'!$B$9/PowerUnits[[#This Row],[Est. Hours per Year]]) -> 0.0608330821 | O7: =IF(PowerUnits[[#This Row],[Est. Hours per Year]]=0,0,PowerUnits[[#This Row],[Calculated Beg Yr. Value]]*'General Variables'!$B$10/PowerUnits[[#This Row],[Est. Hours per Year]]) -> 0.1216661642 | P7: =SUM(PowerUnits[[#This Row],[Depreciation per Hour]:[Opportunity Cost per Hour]]) -> 0.9994625572 | R7: Windrower(SP) | S7: HARVESTING | T7: 0.06 | U7: 2.0 | V7: 3000 | X7: Miscellaneousequipment | Y7: Skid-steerloaders and all other vechicles | Z7: 0.786 | AA7: 0.063 | AB7: 0.0033
A8: Windrower | B8: Forage harvester(SP) | C8: Swathers and all other harvest equipment | D8: 113989 | F8: 10 | G8: 2500 | H8: 120 | I8: =IF(PowerUnits[[#This Row],[List Price]]>1,PowerUnits[[#This Row],[List Price]],IF(C8="",0,PowerUnits[[#This Row],[Beg Yr Value]]/(VLOOKUP(PowerUnits[[#This Row],[Depreciation Category]],PwrDepreciation,2,FALSE)-VLOOKUP(PowerUnits[[#This Row],[Depreciation Category]],PwrDepreciation,3,FALSE)*PowerUnits[[#This Row],[Age]]^0.5-VLOOKUP(PowerUnits[[#This Row],[Depreciation Category]],PwrDepreciation,4,FALSE)*PowerUnits[[#This Row],[Tach Hours]]^0.5)^2)) -> 113989 | J8: =IF(PowerUnits[[#This Row],[Est. Hours per Year]]=0,0,IF(PowerUnits[[#This Row],[Repair Category]]=0,0,(VLOOKUP(PowerUnits[[#This Row],[Repair Category]],PwrRepairs[],3,FALSE)*PowerUnits[[#This Row],[Calculated List Price]]*((PowerUnits[[#This Row],[Tach Hours]]+PowerUnits[[#This Row],[Est. Hours per Year]])/1000)^VLOOKUP(PowerUnits[[#This Row],[Repair Category]],PwrRepairs[],4,FALSE)-VLOOKUP(PowerUnits[[#This Row],[Repair Category]],PwrRepairs[],3,FALSE)*PowerUnits[[#This Row],[Calculated List Price]]*(PowerUnits[[#This Row],[Tach Hours]]/1000)^VLOOKUP(PowerUnits[[#This Row],[Repair Category]],PwrRepairs[],4,FALSE))/PowerUnits[[#This Row],[Est. Hours per Year]])) -> 17.5087104 | K8: =IF(PowerUnits[[#This Row],[Depreciation Category]]=0,0,PowerUnits[[#This Row],[Calculated List Price]]*(VLOOKUP(PowerUnits[[#This Row],[Depreciation Category]],PwrDepreciation,2,FALSE)-VLOOKUP(PowerUnits[[#This Row],[Depreciation Category]],PwrDepreciation,3,FALSE)*PowerUnits[[#This Row],[Age]]^0.5-VLOOKUP(PowerUnits[[#This Row],[Depreciation Category]],PwrDepreciation,4,FALSE)*PowerUnits[[#This Row],[Tach Hours]]^0.5)^2) -> 28866.93724 | L8: =IF(PowerUnits[[#This Row],[Depreciation Category]]=0,0,PowerUnits[[#This Row],[Calculated List Price]]*(VLOOKUP(PowerUnits[[#This Row],[Depreciation Category]],PwrDepreciation,2,FALSE)-VLOOKUP(PowerUnits[[#This Row],[Depreciation Category]],PwrDepreciation,3,FALSE)*(PowerUnits[[#This Row],[Age]]+1)^0.5-VLOOKUP(PowerUnits[[#This Row],[Depreciation Category]],PwrDepreciation,4,FALSE)*(PowerUnits[[#This Row],[Tach Hours]]+PowerUnits[[#This Row],[Est. Hours per Year]])^0.5)^2) -> 27278.03072 | M8: =IF(PowerUnits[[#This Row],[Est. Hours per Year]]=0,0,(PowerUnits[[#This Row],[Calculated Beg Yr. Value]]-PowerUnits[[#This Row],[Calculated End Yr. Value]])/PowerUnits[[#This Row],[Est. Hours per Year]]) -> 13.24088773 | N8: =IF(PowerUnits[[#This Row],[Est. Hours per Year]]=0,0,PowerUnits[[#This Row],[Calculated Beg Yr. Value]]*'General Variables'!$B$9/PowerUnits[[#This Row],[Est. Hours per Year]]) -> 4.811156207 | O8: =IF(PowerUnits[[#This Row],[Est. Hours per Year]]=0,0,PowerUnits[[#This Row],[Calculated Beg Yr. Value]]*'General Variables'!$B$10/PowerUnits[[#This Row],[Est. Hours per Year]]) -> 9.622312414 | P8: =SUM(PowerUnits[[#This Row],[Depreciation per Hour]:[Opportunity Cost per Hour]]) -> 27.67435635 | R8: Electric Motor | S8: See Table 5-5* | T8: 0.02 | U8: 1.5
A9: none | I9: =IF(PowerUnits[[#This Row],[List Price]]>1,PowerUnits[[#This Row],[List Price]],IF(C9="",0,PowerUnits[[#This Row],[Beg Yr Value]]/(VLOOKUP(PowerUnits[[#This Row],[Depreciation Category]],PwrDepreciation,2,FALSE)-VLOOKUP(PowerUnits[[#This Row],[Depreciation Category]],PwrDepreciation,3,FALSE)*PowerUnits[[#This Row],[Age]]^0.5-VLOOKUP(PowerUnits[[#This Row],[Depreciation Category]],PwrDepreciation,4,FALSE)*PowerUnits[[#This Row],[Tach Hours]]^0.5)^2)) -> 0 | J9: =IF(PowerUnits[[#This Row],[Est. Hours per Year]]=0,0,IF(PowerUnits[[#This Row],[Repair Category]]=0,0,(VLOOKUP(PowerUnits[[#This Row],[Repair Category]],PwrRepairs[],3,FALSE)*PowerUnits[[#This Row],[Calculated List Price]]*((PowerUnits[[#This Row],[Tach Hours]]+PowerUnits[[#This Row],[Est. Hours per Year]])/1000)^VLOOKUP(PowerUnits[[#This Row],[Repair Category]],PwrRepairs[],4,FALSE)-VLOOKUP(PowerUnits[[#This Row],[Repair Category]],PwrRepairs[],3,FALSE)*PowerUnits[[#This Row],[Calculated List Price]]*(PowerUnits[[#This Row],[Tach Hours]]/1000)^VLOOKUP(PowerUnits[[#This Row],[Repair Category]],PwrRepairs[],4,FALSE))/PowerUnits[[#This Row],[Est. Hours per Year]])) -> 0 | K9: =IF(PowerUnits[[#This Row],[Depreciation Category]]=0,0,PowerUnits[[#This Row],[Calculated List Price]]*(VLOOKUP(PowerUnits[[#This Row],[Depreciation Category]],PwrDepreciation,2,FALSE)-VLOOKUP(PowerUnits[[#This Row],[Depreciation Category]],PwrDepreciation,3,FALSE)*PowerUnits[[#This Row],[Age]]^0.5-VLOOKUP(PowerUnits[[#This Row],[Depreciation Category]],PwrDepreciation,4,FALSE)*PowerUnits[[#This Row],[Tach Hours]]^0.5)^2) -> 0 | L9: =IF(PowerUnits[[#This Row],[Depreciation Category]]=0,0,PowerUnits[[#This Row],[Calculated List Price]]*(VLOOKUP(PowerUnits[[#This Row],[Depreciation Category]],PwrDepreciation,2,FALSE)-VLOOKUP(PowerUnits[[#This Row],[Depreciation Category]],PwrDepreciation,3,FALSE)*(PowerUnits[[#This Row],[Age]]+1)^0.5-VLOOKUP(PowerUnits[[#This Row],[Depreciation Category]],PwrDepreciation,4,FALSE)*(PowerUnits[[#This Row],[Tach Hours]]+PowerUnits[[#This Row],[Est. Hours per Year]])^0.5)^2) -> 0 | M9: =IF(PowerUnits[[#This Row],[Est. Hours per Year]]=0,0,(PowerUnits[[#This Row],[Calculated Beg Yr. Value]]-PowerUnits[[#This Row],[Calculated End Yr. Value]])/PowerUnits[[#This Row],[Est. Hours per Year]]) -> 0 | N9: =IF(PowerUnits[[#This Row],[Est. Hours per Year]]=0,0,PowerUnits[[#This Row],[Calculated Beg Yr. Value]]*'General Variables'!$B$9/PowerUnits[[#This Row],[Est. Hours per Year]]) -> 0 | O9: =IF(PowerUnits[[#This Row],[Est. Hours per Year]]=0,0,PowerUnits[[#This Row],[Calculated Beg Yr. Value]]*'General Variables'!$B$10/PowerUnits[[#This Row],[Est. Hours per Year]]) -> 0 | P9: =SUM(PowerUnits[[#This Row],[Depreciation per Hour]:[Opportunity Cost per Hour]]) -> 0
I10: =IF(PowerUnits[[#This Row],[List Price]]>1,PowerUnits[[#This Row],[List Price]],IF(C10="",0,PowerUnits[[#This Row],[Beg Yr Value]]/(VLOOKUP(PowerUnits[[#This Row],[Depreciation Category]],PwrDepreciation,2,FALSE)-VLOOKUP(PowerUnits[[#This Row],[Depreciation Category]],PwrDepreciation,3,FALSE)*PowerUnits[[#This Row],[Age]]^0.5-VLOOKUP(PowerUnits[[#This Row],[Depreciation Category]],PwrDepreciation,4,FALSE)*PowerUnits[[#This Row],[Tach Hours]]^0.5)^2)) -> 0 | J10: =IF(PowerUnits[[#This Row],[Est. Hours per Year]]=0,0,IF(PowerUnits[[#This Row],[Repair Category]]=0,0,(VLOOKUP(PowerUnits[[#This Row],[Repair Category]],PwrRepairs[],3,FALSE)*PowerUnits[[#This Row],[Calculated List Price]]*((PowerUnits[[#This Row],[Tach Hours]]+PowerUnits[[#This Row],[Est. Hours per Year]])/1000)^VLOOKUP(PowerUnits[[#This Row],[Repair Category]],PwrRepairs[],4,FALSE)-VLOOKUP(PowerUnits[[#This Row],[Repair Category]],PwrRepairs[],3,FALSE)*PowerUnits[[#This Row],[Calculated List Price]]*(PowerUnits[[#This Row],[Tach Hours]]/1000)^VLOOKUP(PowerUnits[[#This Row],[Repair Category]],PwrRepairs[],4,FALSE))/PowerUnits[[#This Row],[Est. Hours per Year]])) -> 0 | K10: =IF(PowerUnits[[#This Row],[Depreciation Category]]=0,0,PowerUnits[[#This Row],[Calculated List Price]]*(VLOOKUP(PowerUnits[[#This Row],[Depreciation Category]],PwrDepreciation,2,FALSE)-VLOOKUP(PowerUnits[[#This Row],[Depreciation Category]],PwrDepreciation,3,FALSE)*PowerUnits[[#This Row],[Age]]^0.5-VLOOKUP(PowerUnits[[#This Row],[Depreciation Category]],PwrDepreciation,4,FALSE)*PowerUnits[[#This Row],[Tach Hours]]^0.5)^2) -> 0 | L10: =IF(PowerUnits[[#This Row],[Depreciation Category]]=0,0,PowerUnits[[#This Row],[Calculated List Price]]*(VLOOKUP(PowerUnits[[#This Row],[Depreciation Category]],PwrDepreciation,2,FALSE)-VLOOKUP(PowerUnits[[#This Row],[Depreciation Category]],PwrDepreciation,3,FALSE)*(PowerUnits[[#This Row],[Age]]+1)^0.5-VLOOKUP(PowerUnits[[#This Row],[Depreciation Category]],PwrDepreciation,4,FALSE)*(PowerUnits[[#This Row],[Tach Hours]]+PowerUnits[[#This Row],[Est. Hours per Year]])^0.5)^2) -> 0 | M10: =IF(PowerUnits[[#This Row],[Est. Hours per Year]]=0,0,(PowerUnits[[#This Row],[Calculated Beg Yr. Value]]-PowerUnits[[#This Row],[Calculated End Yr. Value]])/PowerUnits[[#This Row],[Est. Hours per Year]]) -> 0 | N10: =IF(PowerUnits[[#This Row],[Est. Hours per Year]]=0,0,PowerUnits[[#This Row],[Calculated Beg Yr. Value]]*'General Variables'!$B$9/PowerUnits[[#This Row],[Est. Hours per Year]]) -> 0 | O10: =IF(PowerUnits[[#This Row],[Est. Hours per Year]]=0,0,PowerUnits[[#This Row],[Calculated Beg Yr. Value]]*'General Variables'!$B$10/PowerUnits[[#This Row],[Est. Hours per Year]]) -> 0 | P10: =SUM(PowerUnits[[#This Row],[Depreciation per Hour]:[Opportunity Cost per Hour]]) -> 0
I11: =IF(PowerUnits[[#This Row],[List Price]]>1,PowerUnits[[#This Row],[List Price]],IF(C11="",0,PowerUnits[[#This Row],[Beg Yr Value]]/(VLOOKUP(PowerUnits[[#This Row],[Depreciation Category]],PwrDepreciation,2,FALSE)-VLOOKUP(PowerUnits[[#This Row],[Depreciation Category]],PwrDepreciation,3,FALSE)*PowerUnits[[#This Row],[Age]]^0.5-VLOOKUP(PowerUnits[[#This Row],[Depreciation Category]],PwrDepreciation,4,FALSE)*PowerUnits[[#This Row],[Tach Hours]]^0.5)^2)) -> 0 | J11: =IF(PowerUnits[[#This Row],[Est. Hours per Year]]=0,0,IF(PowerUnits[[#This Row],[Repair Category]]=0,0,(VLOOKUP(PowerUnits[[#This Row],[Repair Category]],PwrRepairs[],3,FALSE)*PowerUnits[[#This Row],[Calculated List Price]]*((PowerUnits[[#This Row],[Tach Hours]]+PowerUnits[[#This Row],[Est. Hours per Year]])/1000)^VLOOKUP(PowerUnits[[#This Row],[Repair Category]],PwrRepairs[],4,FALSE)-VLOOKUP(PowerUnits[[#This Row],[Repair Category]],PwrRepairs[],3,FALSE)*PowerUnits[[#This Row],[Calculated List Price]]*(PowerUnits[[#This Row],[Tach Hours]]/1000)^VLOOKUP(PowerUnits[[#This Row],[Repair Category]],PwrRepairs[],4,FALSE))/PowerUnits[[#This Row],[Est. Hours per Year]])) -> 0 | K11: =IF(PowerUnits[[#This Row],[Depreciation Category]]=0,0,PowerUnits[[#This Row],[Calculated List Price]]*(VLOOKUP(PowerUnits[[#This Row],[Depreciation Category]],PwrDepreciation,2,FALSE)-VLOOKUP(PowerUnits[[#This Row],[Depreciation Category]],PwrDepreciation,3,FALSE)*PowerUnits[[#This Row],[Age]]^0.5-VLOOKUP(PowerUnits[[#This Row],[Depreciation Category]],PwrDepreciation,4,FALSE)*PowerUnits[[#This Row],[Tach Hours]]^0.5)^2) -> 0 | L11: =IF(PowerUnits[[#This Row],[Depreciation Category]]=0,0,PowerUnits[[#This Row],[Calculated List Price]]*(VLOOKUP(PowerUnits[[#This Row],[Depreciation Category]],PwrDepreciation,2,FALSE)-VLOOKUP(PowerUnits[[#This Row],[Depreciation Category]],PwrDepreciation,3,FALSE)*(PowerUnits[[#This Row],[Age]]+1)^0.5-VLOOKUP(PowerUnits[[#This Row],[Depreciation Category]],PwrDepreciation,4,FALSE)*(PowerUnits[[#This Row],[Tach Hours]]+PowerUnits[[#This Row],[Est. Hours per Year]])^0.5)^2) -> 0 | M11: =IF(PowerUnits[[#This Row],[Est. Hours per Year]]=0,0,(PowerUnits[[#This Row],[Calculated Beg Yr. Value]]-PowerUnits[[#This Row],[Calculated End Yr. Value]])/PowerUnits[[#This Row],[Est. Hours per Year]]) -> 0 | N11: =IF(PowerUnits[[#This Row],[Est. Hours per Year]]=0,0,PowerUnits[[#This Row],[Calculated Beg Yr. Value]]*'General Variables'!$B$9/PowerUnits[[#This Row],[Est. Hours per Year]]) -> 0 | O11: =IF(PowerUnits[[#This Row],[Est. Hours per Year]]=0,0,PowerUnits[[#This Row],[Calculated Beg Yr. Value]]*'General Variables'!$B$10/PowerUnits[[#This Row],[Est. Hours per Year]]) -> 0 | P11: =SUM(PowerUnits[[#This Row],[Depreciation per Hour]:[Opportunity Cost per Hour]]) -> 0
I12: =IF(PowerUnits[[#This Row],[List Price]]>1,PowerUnits[[#This Row],[List Price]],IF(C12="",0,PowerUnits[[#This Row],[Beg Yr Value]]/(VLOOKUP(PowerUnits[[#This Row],[Depreciation Category]],PwrDepreciation,2,FALSE)-VLOOKUP(PowerUnits[[#This Row],[Depreciation Category]],PwrDepreciation,3,FALSE)*PowerUnits[[#This Row],[Age]]^0.5-VLOOKUP(PowerUnits[[#This Row],[Depreciation Category]],PwrDepreciation,4,FALSE)*PowerUnits[[#This Row],[Tach Hours]]^0.5)^2)) -> 0 | J12: =IF(PowerUnits[[#This Row],[Est. Hours per Year]]=0,0,IF(PowerUnits[[#This Row],[Repair Category]]=0,0,(VLOOKUP(PowerUnits[[#This Row],[Repair Category]],PwrRepairs[],3,FALSE)*PowerUnits[[#This Row],[Calculated List Price]]*((PowerUnits[[#This Row],[Tach Hours]]+PowerUnits[[#This Row],[Est. Hours per Year]])/1000)^VLOOKUP(PowerUnits[[#This Row],[Repair Category]],PwrRepairs[],4,FALSE)-VLOOKUP(PowerUnits[[#This Row],[Repair Category]],PwrRepairs[],3,FALSE)*PowerUnits[[#This Row],[Calculated List Price]]*(PowerUnits[[#This Row],[Tach Hours]]/1000)^VLOOKUP(PowerUnits[[#This Row],[Repair Category]],PwrRepairs[],4,FALSE))/PowerUnits[[#This Row],[Est. Hours per Year]])) -> 0 | K12: =IF(PowerUnits[[#This Row],[Depreciation Category]]=0,0,PowerUnits[[#This Row],[Calculated List Price]]*(VLOOKUP(PowerUnits[[#This Row],[Depreciation Category]],PwrDepreciation,2,FALSE)-VLOOKUP(PowerUnits[[#This Row],[Depreciation Category]],PwrDepreciation,3,FALSE)*PowerUnits[[#This Row],[Age]]^0.5-VLOOKUP(PowerUnits[[#This Row],[Depreciation Category]],PwrDepreciation,4,FALSE)*PowerUnits[[#This Row],[Tach Hours]]^0.5)^2) -> 0 | L12: =IF(PowerUnits[[#This Row],[Depreciation Category]]=0,0,PowerUnits[[#This Row],[Calculated List Price]]*(VLOOKUP(PowerUnits[[#This Row],[Depreciation Category]],PwrDepreciation,2,FALSE)-VLOOKUP(PowerUnits[[#This Row],[Depreciation Category]],PwrDepreciation,3,FALSE)*(PowerUnits[[#This Row],[Age]]+1)^0.5-VLOOKUP(PowerUnits[[#This Row],[Depreciation Category]],PwrDepreciation,4,FALSE)*(PowerUnits[[#This Row],[Tach Hours]]+PowerUnits[[#This Row],[Est. Hours per Year]])^0.5)^2) -> 0 | M12: =IF(PowerUnits[[#This Row],[Est. Hours per Year]]=0,0,(PowerUnits[[#This Row],[Calculated Beg Yr. Value]]-PowerUnits[[#This Row],[Calculated End Yr. Value]])/PowerUnits[[#This Row],[Est. Hours per Year]]) -> 0 | N12: =IF(PowerUnits[[#This Row],[Est. Hours per Year]]=0,0,PowerUnits[[#This Row],[Calculated Beg Yr. Value]]*'General Variables'!$B$9/PowerUnits[[#This Row],[Est. Hours per Year]]) -> 0 | O12: =IF(PowerUnits[[#This Row],[Est. Hours per Year]]=0,0,PowerUnits[[#This Row],[Calculated Beg Yr. Value]]*'General Variables'!$B$10/PowerUnits[[#This Row],[Est. Hours per Year]]) -> 0 | P12: =SUM(PowerUnits[[#This Row],[Depreciation per Hour]:[Opportunity Cost per Hour]]) -> 0

Sheet Operations (hidden)
A1: Op Name | B1: Unit | C1: Repair Category | D1: Depreciation Category | E1: List Price | F1: Begin Yr. Value | G1: Age | H1: Annual Use | I1: Units per Hour | J1: Labor Factor | K1: Power Source | L1: Diesel Use per Hour | M1: Kw Use per Hour | N1: Calc List Price | O1: Repairs per Unit | P1: Calc Beg Yr. Value | Q1: Calc End Yr. Value | R1: Depreciation per Unit | S1: TIH per Unit | T1: Opportunity Cost per Unit | U1: Ownership Cost per Unit | W1: Machine | X1: Catogory | Y1: RF1 | Z1: RF2 | AA1: Estimated Life | AD1: Equipment type | AE1: Machine | AF1: C1 | AG1: C2 | AH1: C3 | AK1: Table 5-5. Average Annual Maintenance Costs for Sprinkler Irrigation Systems | AO1: Power Unit
A2: Aerial Spray | B2: Custom | N2: =IF(Operations[[#This Row],[List Price]]>1,Operations[[#This Row],[List Price]],IF(Operations[[#This Row],[Depreciation Category]]=0,0,Operations[[#This Row],[Begin Yr. Value]]/(VLOOKUP(Operations[[#This Row],[Depreciation Category]],ImpDepLookup,2,FALSE)-VLOOKUP(Operations[[#This Row],[Depreciation Category]],ImpDepLookup,3,FALSE)*Operations[[#This Row],[Age]]^0.5-VLOOKUP(Operations[[#This Row],[Depreciation Category]],ImpDepLookup,4,FALSE)*(Operations[[#This Row],[Age]]*(Operations[[#This Row],[Age]]*Operations[[#This Row],[Annual Use]]/Operations[[#This Row],[Units per Hour]])^0.5))^2)) -> 0 | O2: =IF(Operations[[#This Row],[Repair Category]]="",0,(((Operations[[#This Row],[Age]]+1)*Operations[[#This Row],[Annual Use]]/Operations[[#This Row],[Units per Hour]]/1000)^VLOOKUP(Operations[[#This Row],[Repair Category]],ImpRepairFac[],4,FALSE)-(Operations[[#This Row],[Age]]*Operations[[#This Row],[Annual Use]]/Operations[[#This Row],[Units per Hour]]/1000)^VLOOKUP(Operations[[#This Row],[Repair Category]],ImpRepairFac[],4,FALSE))*Operations[[#This Row],[Calc List Price]]*VLOOKUP(Operations[[#This Row],[Repair Category]],ImpRepairFac[],3,FALSE)/Operations[[#This Row],[Annual Use]]) -> 0 | P2: =IF(Operations[[#This Row],[Calc List Price]]=0,0,Operations[[#This Row],[Calc List Price]]*(VLOOKUP(Operations[[#This Row],[Depreciation Category]],ImpDepLookup,2,FALSE)-VLOOKUP(Operations[[#This Row],[Depreciation Category]],ImpDepLookup,3,FALSE)*Operations[[#This Row],[Age]]^0.5-VLOOKUP(Operations[[#This Row],[Depreciation Category]],ImpDepLookup,4,FALSE)*(Operations[[#This Row],[Age]]*Operations[[#This Row],[Annual Use]]/Operations[[#This Row],[Units per Hour]])^0.5)^2) -> 0 | Q2: =IF(Operations[[#This Row],[Calc List Price]]=0,0,Operations[[#This Row],[Calc List Price]]*(VLOOKUP(Operations[[#This Row],[Depreciation Category]],ImpDepLookup,2,FALSE)-VLOOKUP(Operations[[#This Row],[Depreciation Category]],ImpDepLookup,3,FALSE)*(Operations[[#This Row],[Age]]+1)^0.5-VLOOKUP(Operations[[#This Row],[Depreciation Category]],ImpDepLookup,4,FALSE)*(Operations[[#This Row],[Age]]*Operations[[#This Row],[Annual Use]]/Operations[[#This Row],[Units per Hour]])^0.5)^2) -> 0 | R2: =IF(Operations[[#This Row],[Calc List Price]]=0,0,IF(Operations[[#This Row],[Units per Hour]]*Operations[[#This Row],[Annual Use]]=0,0,(Operations[[#This Row],[Calc Beg Yr. Value]]-Operations[[#This Row],[Calc End Yr. Value]])/(Operations[[#This Row],[Annual Use]]))) -> 0 | S2: =IF(Operations[[#This Row],[Annual Use]]=0,0,Operations[[#This Row],[Calc Beg Yr. Value]]*'General Variables'!$B$9/Operations[[#This Row],[Annual Use]]) -> 0 | T2: =IF(Operations[[#This Row],[Annual Use]]=0,0,Operations[[#This Row],[Calc Beg Yr. Value]]*'General Variables'!$B$10/Operations[[#This Row],[Annual Use]]) -> 0 | U2: =SUM(Operations[[#This Row],[Depreciation per Unit]:[Opportunity Cost per Unit]]) -> 0 | W2: Baler - Large rectangular | X2: HARVESTING | Y2: 0.10 | Z2: 1.8 | AA2: 3000 | AD2: Harvest equipment | AE2: Combines | AF2: 1.132 | AG2: 0.165 | AH2: 0 | AO2: =IF(PowerUnits[[#This Row],[Name]]=0,"",PowerUnits[[#This Row],[Name]]) -> Large Tractor
A3: Anhy Apply (supplier) | B3: acre | I3: 12 | J3: 1.1 | K3: Medium Tractor | L3: 6.36 | N3: =IF(Operations[[#This Row],[List Price]]>1,Operations[[#This Row],[List Price]],IF(Operations[[#This Row],[Depreciation Category]]=0,0,Operations[[#This Row],[Begin Yr. Value]]/(VLOOKUP(Operations[[#This Row],[Depreciation Category]],ImpDepLookup,2,FALSE)-VLOOKUP(Operations[[#This Row],[Depreciation Category]],ImpDepLookup,3,FALSE)*Operations[[#This Row],[Age]]^0.5-VLOOKUP(Operations[[#This Row],[Depreciation Category]],ImpDepLookup,4,FALSE)*(Operations[[#This Row],[Age]]*(Operations[[#This Row],[Age]]*Operations[[#This Row],[Annual Use]]/Operations[[#This Row],[Units per Hour]])^0.5))^2)) -> 0 | O3: =IF(Operations[[#This Row],[Repair Category]]="",0,(((Operations[[#This Row],[Age]]+1)*Operations[[#This Row],[Annual Use]]/Operations[[#This Row],[Units per Hour]]/1000)^VLOOKUP(Operations[[#This Row],[Repair Category]],ImpRepairFac[],4,FALSE)-(Operations[[#This Row],[Age]]*Operations[[#This Row],[Annual Use]]/Operations[[#This Row],[Units per Hour]]/1000)^VLOOKUP(Operations[[#This Row],[Repair Category]],ImpRepairFac[],4,FALSE))*Operations[[#This Row],[Calc List Price]]*VLOOKUP(Operations[[#This Row],[Repair Category]],ImpRepairFac[],3,FALSE)/Operations[[#This Row],[Annual Use]]) -> 0 | P3: =IF(Operations[[#This Row],[Calc List Price]]=0,0,Operations[[#This Row],[Calc List Price]]*(VLOOKUP(Operations[[#This Row],[Depreciation Category]],ImpDepLookup,2,FALSE)-VLOOKUP(Operations[[#This Row],[Depreciation Category]],ImpDepLookup,3,FALSE)*Operations[[#This Row],[Age]]^0.5-VLOOKUP(Operations[[#This Row],[Depreciation Category]],ImpDepLookup,4,FALSE)*(Operations[[#This Row],[Age]]*Operations[[#This Row],[Annual Use]]/Operations[[#This Row],[Units per Hour]])^0.5)^2) -> 0 | Q3: =IF(Operations[[#This Row],[Calc List Price]]=0,0,Operations[[#This Row],[Calc List Price]]*(VLOOKUP(Operations[[#This Row],[Depreciation Category]],ImpDepLookup,2,FALSE)-VLOOKUP(Operations[[#This Row],[Depreciation Category]],ImpDepLookup,3,FALSE)*(Operations[[#This Row],[Age]]+1)^0.5-VLOOKUP(Operations[[#This Row],[Depreciation Category]],ImpDepLookup,4,FALSE)*(Operations[[#This Row],[Age]]*Operations[[#This Row],[Annual Use]]/Operations[[#This Row],[Units per Hour]])^0.5)^2) -> 0 | R3: =IF(Operations[[#This Row],[Calc List Price]]=0,0,IF(Operations[[#This Row],[Units per Hour]]*Operations[[#This Row],[Annual Use]]=0,0,(Operations[[#This Row],[Calc Beg Yr. Value]]-Operations[[#This Row],[Calc End Yr. Value]])/(Operations[[#This Row],[Annual Use]]))) -> 0 | S3: =IF(Operations[[#This Row],[Annual Use]]=0,0,Operations[[#This Row],[Calc Beg Yr. Value]]*'General Variables'!$B$9/Operations[[#This Row],[Annual Use]]) -> 0 | T3: =IF(Operations[[#This Row],[Annual Use]]=0,0,Operations[[#This Row],[Calc Beg Yr. Value]]*'General Variables'!$B$10/Operations[[#This Row],[Annual Use]]) -> 0 | U3: =SUM(Operations[[#This Row],[Depreciation per Unit]:[Opportunity Cost per Unit]]) -> 0 | W3: Baler - Large round | X3: HARVESTING | Y3: 0.43 | Z3: 1.8 | AA3: 1500 | AD3: Harvest equipment | AE3: Mowers | AF3: 0.756 | AG3: 0.067 | AK3: System Type | AL3: Life-yrs | AM3: Maintenance, % of capital cost | AO3: =IF(PowerUnits[[#This Row],[Name]]=0,"",PowerUnits[[#This Row],[Name]]) -> Medium Tractor
A4: Anhydrous Apply | B4: acre | C4: Chisel plow (Coulter) | D4: Manure spreaders and all other miscellaneous equipment | F4: 15500 | G4: 5 | H4: 500 | I4: 12 | J4: 1.1 | K4: Medium Tractor | L4: 6.364285714 | N4: =IF(Operations[[#This Row],[List Price]]>1,Operations[[#This Row],[List Price]],IF(Operations[[#This Row],[Depreciation Category]]=0,0,Operations[[#This Row],[Begin Yr. Value]]/(VLOOKUP(Operations[[#This Row],[Depreciation Category]],ImpDepLookup,2,FALSE)-VLOOKUP(Operations[[#This Row],[Depreciation Category]],ImpDepLookup,3,FALSE)*Operations[[#This Row],[Age]]^0.5-VLOOKUP(Operations[[#This Row],[Depreciation Category]],ImpDepLookup,4,FALSE)*(Operations[[#This Row],[Age]]*(Operations[[#This Row],[Age]]*Operations[[#This Row],[Annual Use]]/Operations[[#This Row],[Units per Hour]])^0.5))^2)) -> 32108.24077 | O4: =IF(Operations[[#This Row],[Repair Category]]="",0,(((Operations[[#This Row],[Age]]+1)*Operations[[#This Row],[Annual Use]]/Operations[[#This Row],[Units per Hour]]/1000)^VLOOKUP(Operations[[#This Row],[Repair Category]],ImpRepairFac[],4,FALSE)-(Operations[[#This Row],[Age]]*Operations[[#This Row],[Annual Use]]/Operations[[#This Row],[Units per Hour]]/1000)^VLOOKUP(Operations[[#This Row],[Repair Category]],ImpRepairFac[],4,FALSE))*Operations[[#This Row],[Calc List Price]]*VLOOKUP(Operations[[#This Row],[Repair Category]],ImpRepairFac[],3,FALSE)/Operations[[#This Row],[Annual Use]]) -> 0.5816183114 | P4: =IF(Operations[[#This Row],[Calc List Price]]=0,0,Operations[[#This Row],[Calc List Price]]*(VLOOKUP(Operations[[#This Row],[Depreciation Category]],ImpDepLookup,2,FALSE)-VLOOKUP(Operations[[#This Row],[Depreciation Category]],ImpDepLookup,3,FALSE)*Operations[[#This Row],[Age]]^0.5-VLOOKUP(Operations[[#This Row],[Depreciation Category]],ImpDepLookup,4,FALSE)*(Operations[[#This Row],[Age]]*Operations[[#This Row],[Annual Use]]/Operations[[#This Row],[Units per Hour]])^0.5)^2) -> 15500 | Q4: =IF(Operations[[#This Row],[Calc List Price]]=0,0,Operations[[#This Row],[Calc List Price]]*(VLOOKUP(Operations[[#This Row],[Depreciation Category]],ImpDepLookup,2,FALSE)-VLOOKUP(Operations[[#This Row],[Depreciation Category]],ImpDepLookup,3,FALSE)*(Operations[[#This Row],[Age]]+1)^0.5-VLOOKUP(Operations[[#This Row],[Depreciation Category]],ImpDepLookup,4,FALSE)*(Operations[[#This Row],[Age]]*Operations[[#This Row],[Annual Use]]/Operations[[#This Row],[Units per Hour]])^0.5)^2) -> 14461.04177 | R4: =IF(Operations[[#This Row],[Calc List Price]]=0,0,IF(Operations[[#This Row],[Units per Hour]]*Operations[[#This Row],[Annual Use]]=0,0,(Operations[[#This Row],[Calc Beg Yr. Value]]-Operations[[#This Row],[Calc End Yr. Value]])/(Operations[[#This Row],[Annual Use]]))) -> 2.077916452 | S4: =IF(Operations[[#This Row],[Annual Use]]=0,0,Operations[[#This Row],[Calc Beg Yr. Value]]*'General Variables'!$B$9/Operations[[#This Row],[Annual Use]]) -> 0.62 | T4: =IF(Operations[[#This Row],[Annual Use]]=0,0,Operations[[#This Row],[Calc Beg Yr. Value]]*'General Variables'!$B$10/Operations[[#This Row],[Annual Use]]) -> 1.24 | U4: =SUM(Operations[[#This Row],[Depreciation per Unit]:[Opportunity Cost per Unit]]) -> 3.937916452 | W4: Baler - Rectangular | X4: HARVESTING | Y4: 0.23 | Z4: 1.8 | AA4: 2000 | AD4: Harvest equipment | AE4: Balers | AF4: 0.852 | AG4: 0.101 | AK4: Hand move lateral | AL4: 15 | AM4: 2 | AO4: =IF(PowerUnits[[#This Row],[Name]]=0,"",PowerUnits[[#This Row],[Name]]) -> Combine
A5: Cart | B5: bushel | C5: Wagon - Forage | D5: Manure spreaders and all other miscellaneous equipment | E5: 42000 | G5: 5 | H5: =2000*220 -> 440000 | I5: =7*220 -> 1540 | J5: 1.1 | K5: Medium Tractor | L5: 3 | N5: =IF(Operations[[#This Row],[List Price]]>1,Operations[[#This Row],[List Price]],IF(Operations[[#This Row],[Depreciation Category]]=0,0,Operations[[#This Row],[Begin Yr. Value]]/(VLOOKUP(Operations[[#This Row],[Depreciation Category]],ImpDepLookup,2,FALSE)-VLOOKUP(Operations[[#This Row],[Depreciation Category]],ImpDepLookup,3,FALSE)*Operations[[#This Row],[Age]]^0.5-VLOOKUP(Operations[[#This Row],[Depreciation Category]],ImpDepLookup,4,FALSE)*(Operations[[#This Row],[Age]]*(Operations[[#This Row],[Age]]*Operations[[#This Row],[Annual Use]]/Operations[[#This Row],[Units per Hour]])^0.5))^2)) -> 42000 | O5: =IF(Operations[[#This Row],[Repair Category]]="",0,(((Operations[[#This Row],[Age]]+1)*Operations[[#This Row],[Annual Use]]/Operations[[#This Row],[Units per Hour]]/1000)^VLOOKUP(Operations[[#This Row],[Repair Category]],ImpRepairFac[],4,FALSE)-(Operations[[#This Row],[Age]]*Operations[[#This Row],[Annual Use]]/Operations[[#This Row],[Units per Hour]]/1000)^VLOOKUP(Operations[[#This Row],[Repair Category]],ImpRepairFac[],4,FALSE))*Operations[[#This Row],[Calc List Price]]*VLOOKUP(Operations[[#This Row],[Repair Category]],ImpRepairFac[],3,FALSE)/Operations[[#This Row],[Annual Use]]) -> 0.009153802328 | P5: =IF(Operations[[#This Row],[Calc List Price]]=0,0,Operations[[#This Row],[Calc List Price]]*(VLOOKUP(Operations[[#This Row],[Depreciation Category]],ImpDepLookup,2,FALSE)-VLOOKUP(Operations[[#This Row],[Depreciation Category]],ImpDepLookup,3,FALSE)*Operations[[#This Row],[Age]]^0.5-VLOOKUP(Operations[[#This Row],[Depreciation Category]],ImpDepLookup,4,FALSE)*(Operations[[#This Row],[Age]]*Operations[[#This Row],[Annual Use]]/Operations[[#This Row],[Units per Hour]])^0.5)^2) -> 20275.16875 | Q5: =IF(Operations[[#This Row],[Calc List Price]]=0,0,Operations[[#This Row],[Calc List Price]]*(VLOOKUP(Operations[[#This Row],[Depreciation Category]],ImpDepLookup,2,FALSE)-VLOOKUP(Operations[[#This Row],[Depreciation Category]],ImpDepLookup,3,FALSE)*(Operations[[#This Row],[Age]]+1)^0.5-VLOOKUP(Operations[[#This Row],[Depreciation Category]],ImpDepLookup,4,FALSE)*(Operations[[#This Row],[Age]]*Operations[[#This Row],[Annual Use]]/Operations[[#This Row],[Units per Hour]])^0.5)^2) -> 18916.13305 | R5: =IF(Operations[[#This Row],[Calc List Price]]=0,0,IF(Operations[[#This Row],[Units per Hour]]*Operations[[#This Row],[Annual Use]]=0,0,(Operations[[#This Row],[Calc Beg Yr. Value]]-Operations[[#This Row],[Calc End Yr. Value]])/(Operations[[#This Row],[Annual Use]]))) -> 0.003088717502 | S5: =IF(Operations[[#This Row],[Annual Use]]=0,0,Operations[[#This Row],[Calc Beg Yr. Value]]*'General Variables'!$B$9/Operations[[#This Row],[Annual Use]]) -> 0.0009215985797 | T5: =IF(Operations[[#This Row],[Annual Use]]=0,0,Operations[[#This Row],[Calc Beg Yr. Value]]*'General Variables'!$B$10/Operations[[#This Row],[Annual Use]]) -> 0.001843197159 | U5: =SUM(Operations[[#This Row],[Depreciation per Unit]:[Opportunity Cost per Unit]]) -> 0.005853513241 | W5: Bean puller-windrower | X5: MISCELLANEOUS | Y5: 0.20 | Z5: 1.6 | AA5: 2000 | AD5: Harvest equipment | AE5: Swathers and all other harvest equipment | AF5: 0.791 | AG5: 0.091 | AK5: End tow lateral | AL5: 10 | AM5: 3 | AO5: =IF(PowerUnits[[#This Row],[Name]]=0,"",PowerUnits[[#This Row],[Name]]) -> Diesel Pump
A6: Chisel | B6: acre | C6: Chisel plow (Coulter) | D6: Disks and all other tillage equipment | E6: 56958 | G6: 5 | H6: 2000 | I6: 11.09243697 | J6: 1.1 | K6: Medium Tractor | L6: 8.263865546 | N6: =IF(Operations[[#This Row],[List Price]]>1,Operations[[#This Row],[List Price]],IF(Operations[[#This Row],[Depreciation Category]]=0,0,Operations[[#This Row],[Begin Yr. Value]]/(VLOOKUP(Operations[[#This Row],[Depreciation Category]],ImpDepLookup,2,FALSE)-VLOOKUP(Operations[[#This Row],[Depreciation Category]],ImpDepLookup,3,FALSE)*Operations[[#This Row],[Age]]^0.5-VLOOKUP(Operations[[#This Row],[Depreciation Category]],ImpDepLookup,4,FALSE)*(Operations[[#This Row],[Age]]*(Operations[[#This Row],[Age]]*Operations[[#This Row],[Annual Use]]/Operations[[#This Row],[Units per Hour]])^0.5))^2)) -> 56958 | O6: =IF(Operations[[#This Row],[Repair Category]]="",0,(((Operations[[#This Row],[Age]]+1)*Operations[[#This Row],[Annual Use]]/Operations[[#This Row],[Units per Hour]]/1000)^VLOOKUP(Operations[[#This Row],[Repair Category]],ImpRepairFac[],4,FALSE)-(Operations[[#This Row],[Age]]*Operations[[#This Row],[Annual Use]]/Operations[[#This Row],[Units per Hour]]/1000)^VLOOKUP(Operations[[#This Row],[Repair Category]],ImpRepairFac[],4,FALSE))*Operations[[#This Row],[Calc List Price]]*VLOOKUP(Operations[[#This Row],[Repair Category]],ImpRepairFac[],3,FALSE)/Operations[[#This Row],[Annual Use]]) -> 2.005470485 | P6: =IF(Operations[[#This Row],[Calc List Price]]=0,0,Operations[[#This Row],[Calc List Price]]*(VLOOKUP(Operations[[#This Row],[Depreciation Category]],ImpDepLookup,2,FALSE)-VLOOKUP(Operations[[#This Row],[Depreciation Category]],ImpDepLookup,3,FALSE)*Operations[[#This Row],[Age]]^0.5-VLOOKUP(Operations[[#This Row],[Depreciation Category]],ImpDepLookup,4,FALSE)*(Operations[[#This Row],[Age]]*Operations[[#This Row],[Annual Use]]/Operations[[#This Row],[Units per Hour]])^0.5)^2) -> 23698.34163 | Q6: =IF(Operations[[#This Row],[Calc List Price]]=0,0,Operations[[#This Row],[Calc List Price]]*(VLOOKUP(Operations[[#This Row],[Depreciation Category]],ImpDepLookup,2,FALSE)-VLOOKUP(Operations[[#This Row],[Depreciation Category]],ImpDepLookup,3,FALSE)*(Operations[[#This Row],[Age]]+1)^0.5-VLOOKUP(Operations[[#This Row],[Depreciation Category]],ImpDepLookup,4,FALSE)*(Operations[[#This Row],[Age]]*Operations[[#This Row],[Annual Use]]/Operations[[#This Row],[Units per Hour]])^0.5)^2) -> 22004.69923 | R6: =IF(Operations[[#This Row],[Calc List Price]]=0,0,IF(Operations[[#This Row],[Units per Hour]]*Operations[[#This Row],[Annual Use]]=0,0,(Operations[[#This Row],[Calc Beg Yr. Value]]-Operations[[#This Row],[Calc End Yr. Value]])/(Operations[[#This Row],[Annual Use]]))) -> 0.8468211977 | S6: =IF(Operations[[#This Row],[Annual Use]]=0,0,Operations[[#This Row],[Calc Beg Yr. Value]]*'General Variables'!$B$9/Operations[[#This Row],[Annual Use]]) -> 0.2369834163 | T6: =IF(Operations[[#This Row],[Annual Use]]=0,0,Operations[[#This Row],[Calc Beg Yr. Value]]*'General Variables'!$B$10/Operations[[#This Row],[Annual Use]]) -> 0.4739668325 | U6: =SUM(Operations[[#This Row],[Depreciation per Unit]:[Opportunity Cost per Unit]]) -> 1.557771446 | W6: Beet topper | X6: MISCELLANEOUS | Y6: 0.28 | Z6: 1.4 | AA6: 1200 | AD6: Tillage equipment | AE6: Plows | AF6: 0.738 | AG6: 0.051 | AK6: Side roll lateral | AL6: 15 | AM6: 2 | AO6: =IF(PowerUnits[[#This Row],[Name]]=0,"",PowerUnits[[#This Row],[Name]]) -> Electric Pump
A7: Chop Silage | B7: Custom | N7: =IF(Operations[[#This Row],[List Price]]>1,Operations[[#This Row],[List Price]],IF(Operations[[#This Row],[Depreciation Category]]=0,0,Operations[[#This Row],[Begin Yr. Value]]/(VLOOKUP(Operations[[#This Row],[Depreciation Category]],ImpDepLookup,2,FALSE)-VLOOKUP(Operations[[#This Row],[Depreciation Category]],ImpDepLookup,3,FALSE)*Operations[[#This Row],[Age]]^0.5-VLOOKUP(Operations[[#This Row],[Depreciation Category]],ImpDepLookup,4,FALSE)*(Operations[[#This Row],[Age]]*(Operations[[#This Row],[Age]]*Operations[[#This Row],[Annual Use]]/Operations[[#This Row],[Units per Hour]])^0.5))^2)) -> 0 | O7: =IF(Operations[[#This Row],[Repair Category]]="",0,(((Operations[[#This Row],[Age]]+1)*Operations[[#This Row],[Annual Use]]/Operations[[#This Row],[Units per Hour]]/1000)^VLOOKUP(Operations[[#This Row],[Repair Category]],ImpRepairFac[],4,FALSE)-(Operations[[#This Row],[Age]]*Operations[[#This Row],[Annual Use]]/Operations[[#This Row],[Units per Hour]]/1000)^VLOOKUP(Operations[[#This Row],[Repair Category]],ImpRepairFac[],4,FALSE))*Operations[[#This Row],[Calc List Price]]*VLOOKUP(Operations[[#This Row],[Repair Category]],ImpRepairFac[],3,FALSE)/Operations[[#This Row],[Annual Use]]) -> 0 | P7: =IF(Operations[[#This Row],[Calc List Price]]=0,0,Operations[[#This Row],[Calc List Price]]*(VLOOKUP(Operations[[#This Row],[Depreciation Category]],ImpDepLookup,2,FALSE)-VLOOKUP(Operations[[#This Row],[Depreciation Category]],ImpDepLookup,3,FALSE)*Operations[[#This Row],[Age]]^0.5-VLOOKUP(Operations[[#This Row],[Depreciation Category]],ImpDepLookup,4,FALSE)*(Operations[[#This Row],[Age]]*Operations[[#This Row],[Annual Use]]/Operations[[#This Row],[Units per Hour]])^0.5)^2) -> 0 | Q7: =IF(Operations[[#This Row],[Calc List Price]]=0,0,Operations[[#This Row],[Calc List Price]]*(VLOOKUP(Operations[[#This Row],[Depreciation Category]],ImpDepLookup,2,FALSE)-VLOOKUP(Operations[[#This Row],[Depreciation Category]],ImpDepLookup,3,FALSE)*(Operations[[#This Row],[Age]]+1)^0.5-VLOOKUP(Operations[[#This Row],[Depreciation Category]],ImpDepLookup,4,FALSE)*(Operations[[#This Row],[Age]]*Operations[[#This Row],[Annual Use]]/Operations[[#This Row],[Units per Hour]])^0.5)^2) -> 0 | R7: =IF(Operations[[#This Row],[Calc List Price]]=0,0,IF(Operations[[#This Row],[Units per Hour]]*Operations[[#This Row],[Annual Use]]=0,0,(Operations[[#This Row],[Calc Beg Yr. Value]]-Operations[[#This Row],[Calc End Yr. Value]])/(Operations[[#This Row],[Annual Use]]))) -> 0 | S7: =IF(Operations[[#This Row],[Annual Use]]=0,0,Operations[[#This Row],[Calc Beg Yr. Value]]*'General Variables'!$B$9/Operations[[#This Row],[Annual Use]]) -> 0 | T7: =IF(Operations[[#This Row],[Annual Use]]=0,0,Operations[[#This Row],[Calc Beg Yr. Value]]*'General Variables'!$B$10/Operations[[#This Row],[Annual Use]]) -> 0 | U7: =SUM(Operations[[#This Row],[Depreciation per Unit]:[Opportunity Cost per Unit]]) -> 0 | W7: Chisel plow (Coulter) | X7: TILLAGE&PLANTING | Y7: 0.28 | Z7: 1.4 | AA7: 2000 | AD7: Tillage equipment | AE7: Disks and all other tillage equipment | AF7: 0.891 | AG7: 0.110 | AK7: Lateral | AL7: 10 | AM7: 6 | AO7: =IF(PowerUnits[[#This Row],[Name]]=0,"",PowerUnits[[#This Row],[Name]]) -> Diesel Pump for Pipe
A8: Chop Stalks | B8: acre | C8: Stalk chopper | D8: Swathers and all other harvest equipment | E8: 19286 | G8: 5 | H8: 500 | I8: 12.3364486 | J8: 1.1 | K8: Medium Tractor | L8: 5.736448598 | N8: =IF(Operations[[#This Row],[List Price]]>1,Operations[[#This Row],[List Price]],IF(Operations[[#This Row],[Depreciation Category]]=0,0,Operations[[#This Row],[Begin Yr. Value]]/(VLOOKUP(Operations[[#This Row],[Depreciation Category]],ImpDepLookup,2,FALSE)-VLOOKUP(Operations[[#This Row],[Depreciation Category]],ImpDepLookup,3,FALSE)*Operations[[#This Row],[Age]]^0.5-VLOOKUP(Operations[[#This Row],[Depreciation Category]],ImpDepLookup,4,FALSE)*(Operations[[#This Row],[Age]]*(Operations[[#This Row],[Age]]*Operations[[#This Row],[Annual Use]]/Operations[[#This Row],[Units per Hour]])^0.5))^2)) -> 19286 | O8: =IF(Operations[[#This Row],[Repair Category]]="",0,(((Operations[[#This Row],[Age]]+1)*Operations[[#This Row],[Annual Use]]/Operations[[#This Row],[Units per Hour]]/1000)^VLOOKUP(Operations[[#This Row],[Repair Category]],ImpRepairFac[],4,FALSE)-(Operations[[#This Row],[Age]]*Operations[[#This Row],[Annual Use]]/Operations[[#This Row],[Units per Hour]]/1000)^VLOOKUP(Operations[[#This Row],[Repair Category]],ImpRepairFac[],4,FALSE))*Operations[[#This Row],[Calc List Price]]*VLOOKUP(Operations[[#This Row],[Repair Category]],ImpRepairFac[],3,FALSE)/Operations[[#This Row],[Annual Use]]) -> 0.3360866426 | P8: =IF(Operations[[#This Row],[Calc List Price]]=0,0,Operations[[#This Row],[Calc List Price]]*(VLOOKUP(Operations[[#This Row],[Depreciation Category]],ImpDepLookup,2,FALSE)-VLOOKUP(Operations[[#This Row],[Depreciation Category]],ImpDepLookup,3,FALSE)*Operations[[#This Row],[Age]]^0.5-VLOOKUP(Operations[[#This Row],[Depreciation Category]],ImpDepLookup,4,FALSE)*(Operations[[#This Row],[Age]]*Operations[[#This Row],[Annual Use]]/Operations[[#This Row],[Units per Hour]])^0.5)^2) -> 6657.087129 | Q8: =IF(Operations[[#This Row],[Calc List Price]]=0,0,Operations[[#This Row],[Calc List Price]]*(VLOOKUP(Operations[[#This Row],[Depreciation Category]],ImpDepLookup,2,FALSE)-VLOOKUP(Operations[[#This Row],[Depreciation Category]],ImpDepLookup,3,FALSE)*(Operations[[#This Row],[Age]]+1)^0.5-VLOOKUP(Operations[[#This Row],[Depreciation Category]],ImpDepLookup,4,FALSE)*(Operations[[#This Row],[Age]]*Operations[[#This Row],[Annual Use]]/Operations[[#This Row],[Units per Hour]])^0.5)^2) -> 6224.239393 | R8: =IF(Operations[[#This Row],[Calc List Price]]=0,0,IF(Operations[[#This Row],[Units per Hour]]*Operations[[#This Row],[Annual Use]]=0,0,(Operations[[#This Row],[Calc Beg Yr. Value]]-Operations[[#This Row],[Calc End Yr. Value]])/(Operations[[#This Row],[Annual Use]]))) -> 0.8656954716 | S8: =IF(Operations[[#This Row],[Annual Use]]=0,0,Operations[[#This Row],[Calc Beg Yr. Value]]*'General Variables'!$B$9/Operations[[#This Row],[Annual Use]]) -> 0.2662834851 | T8: =IF(Operations[[#This Row],[Annual Use]]=0,0,Operations[[#This Row],[Calc Beg Yr. Value]]*'General Variables'!$B$10/Operations[[#This Row],[Annual Use]]) -> 0.5325669703 | U8: =SUM(Operations[[#This Row],[Depreciation per Unit]:[Opportunity Cost per Unit]]) -> 1.664545927 | W8: Combine | X8: HARVESTING | Y8: 0.12 | Z8: 2.3 | AA8: 2000 | AD8: Miscellaneousequipment | AE8: Skid-steerloaders and all other vechicles | AF8: 0.786 | AG8: 0.063 | AH8: 0 | AK8: Traveling gun | AL8: 15 | AM8: 6 | AO8: =IF(PowerUnits[[#This Row],[Name]]=0,"",PowerUnits[[#This Row],[Name]]) -> Windrower
A9: Combine Dryland Corn | B9: acre | C9: Combine | D9: Combines | E9: 50450 | G9: 5 | H9: 1000 | I9: 7 | J9: 1.1 | K9: Combine | L9: 10.5 | N9: =IF(Operations[[#This Row],[List Price]]>1,Operations[[#This Row],[List Price]],IF(Operations[[#This Row],[Depreciation Category]]=0,0,Operations[[#This Row],[Begin Yr. Value]]/(VLOOKUP(Operations[[#This Row],[Depreciation Category]],ImpDepLookup,2,FALSE)-VLOOKUP(Operations[[#This Row],[Depreciation Category]],ImpDepLookup,3,FALSE)*Operations[[#This Row],[Age]]^0.5-VLOOKUP(Operations[[#This Row],[Depreciation Category]],ImpDepLookup,4,FALSE)*(Operations[[#This Row],[Age]]*(Operations[[#This Row],[Age]]*Operations[[#This Row],[Annual Use]]/Operations[[#This Row],[Units per Hour]])^0.5))^2)) -> 50450 | O9: =IF(Operations[[#This Row],[Repair Category]]="",0,(((Operations[[#This Row],[Age]]+1)*Operations[[#This Row],[Annual Use]]/Operations[[#This Row],[Units per Hour]]/1000)^VLOOKUP(Operations[[#This Row],[Repair Category]],ImpRepairFac[],4,FALSE)-(Operations[[#This Row],[Age]]*Operations[[#This Row],[Annual Use]]/Operations[[#This Row],[Units per Hour]]/1000)^VLOOKUP(Operations[[#This Row],[Repair Category]],ImpRepairFac[],4,FALSE))*Operations[[#This Row],[Calc List Price]]*VLOOKUP(Operations[[#This Row],[Repair Category]],ImpRepairFac[],3,FALSE)/Operations[[#This Row],[Annual Use]]) -> 1.454620179 | P9: =IF(Operations[[#This Row],[Calc List Price]]=0,0,Operations[[#This Row],[Calc List Price]]*(VLOOKUP(Operations[[#This Row],[Depreciation Category]],ImpDepLookup,2,FALSE)-VLOOKUP(Operations[[#This Row],[Depreciation Category]],ImpDepLookup,3,FALSE)*Operations[[#This Row],[Age]]^0.5-VLOOKUP(Operations[[#This Row],[Depreciation Category]],ImpDepLookup,4,FALSE)*(Operations[[#This Row],[Age]]*Operations[[#This Row],[Annual Use]]/Operations[[#This Row],[Units per Hour]])^0.5)^2) -> 29374.18187 | Q9: =IF(Operations[[#This Row],[Calc List Price]]=0,0,Operations[[#This Row],[Calc List Price]]*(VLOOKUP(Operations[[#This Row],[Depreciation Category]],ImpDepLookup,2,FALSE)-VLOOKUP(Operations[[#This Row],[Depreciation Category]],ImpDepLookup,3,FALSE)*(Operations[[#This Row],[Age]]+1)^0.5-VLOOKUP(Operations[[#This Row],[Depreciation Category]],ImpDepLookup,4,FALSE)*(Operations[[#This Row],[Age]]*Operations[[#This Row],[Annual Use]]/Operations[[#This Row],[Units per Hour]])^0.5)^2) -> 26725.51476 | R9: =IF(Operations[[#This Row],[Calc List Price]]=0,0,IF(Operations[[#This Row],[Units per Hour]]*Operations[[#This Row],[Annual Use]]=0,0,(Operations[[#This Row],[Calc Beg Yr. Value]]-Operations[[#This Row],[Calc End Yr. Value]])/(Operations[[#This Row],[Annual Use]]))) -> 2.648667108 | S9: =IF(Operations[[#This Row],[Annual Use]]=0,0,Operations[[#This Row],[Calc Beg Yr. Value]]*'General Variables'!$B$9/Operations[[#This Row],[Annual Use]]) -> 0.5874836373 | T9: =IF(Operations[[#This Row],[Annual Use]]=0,0,Operations[[#This Row],[Calc Beg Yr. Value]]*'General Variables'!$B$10/Operations[[#This Row],[Annual Use]]) -> 1.174967275 | U9: =SUM(Operations[[#This Row],[Depreciation per Unit]:[Opportunity Cost per Unit]]) -> 4.41111802 | W9: Corn picker-sheller | X9: HARVESTING | Y9: 0.14 | Z9: 2.3 | AA9: 2000 | AD9: Miscellaneousequipment | AE9: Planters | AF9: 0.883 | AG9: 0.078 | AK9: Center Pivot | AL9: 15 | AM9: 6 | AO9: =IF(PowerUnits[[#This Row],[Name]]=0,"",PowerUnits[[#This Row],[Name]]) -> none
A10: Combine Dryland SB | B10: acre | C10: Combine | D10: Combines | E10: 30866 | G10: 5 | H10: 1000 | I10: 6.5 | J10: 1.1 | K10: Combine | L10: 10.5 | N10: =IF(Operations[[#This Row],[List Price]]>1,Operations[[#This Row],[List Price]],IF(Operations[[#This Row],[Depreciation Category]]=0,0,Operations[[#This Row],[Begin Yr. Value]]/(VLOOKUP(Operations[[#This Row],[Depreciation Category]],ImpDepLookup,2,FALSE)-VLOOKUP(Operations[[#This Row],[Depreciation Category]],ImpDepLookup,3,FALSE)*Operations[[#This Row],[Age]]^0.5-VLOOKUP(Operations[[#This Row],[Depreciation Category]],ImpDepLookup,4,FALSE)*(Operations[[#This Row],[Age]]*(Operations[[#This Row],[Age]]*Operations[[#This Row],[Annual Use]]/Operations[[#This Row],[Units per Hour]])^0.5))^2)) -> 30866 | O10: =IF(Operations[[#This Row],[Repair Category]]="",0,(((Operations[[#This Row],[Age]]+1)*Operations[[#This Row],[Annual Use]]/Operations[[#This Row],[Units per Hour]]/1000)^VLOOKUP(Operations[[#This Row],[Repair Category]],ImpRepairFac[],4,FALSE)-(Operations[[#This Row],[Age]]*Operations[[#This Row],[Annual Use]]/Operations[[#This Row],[Units per Hour]]/1000)^VLOOKUP(Operations[[#This Row],[Repair Category]],ImpRepairFac[],4,FALSE))*Operations[[#This Row],[Calc List Price]]*VLOOKUP(Operations[[#This Row],[Repair Category]],ImpRepairFac[],3,FALSE)/Operations[[#This Row],[Annual Use]]) -> 1.055342823 | P10: =IF(Operations[[#This Row],[Calc List Price]]=0,0,Operations[[#This Row],[Calc List Price]]*(VLOOKUP(Operations[[#This Row],[Depreciation Category]],ImpDepLookup,2,FALSE)-VLOOKUP(Operations[[#This Row],[Depreciation Category]],ImpDepLookup,3,FALSE)*Operations[[#This Row],[Age]]^0.5-VLOOKUP(Operations[[#This Row],[Depreciation Category]],ImpDepLookup,4,FALSE)*(Operations[[#This Row],[Age]]*Operations[[#This Row],[Annual Use]]/Operations[[#This Row],[Units per Hour]])^0.5)^2) -> 17971.52621 | Q10: =IF(Operations[[#This Row],[Calc List Price]]=0,0,Operations[[#This Row],[Calc List Price]]*(VLOOKUP(Operations[[#This Row],[Depreciation Category]],ImpDepLookup,2,FALSE)-VLOOKUP(Operations[[#This Row],[Depreciation Category]],ImpDepLookup,3,FALSE)*(Operations[[#This Row],[Age]]+1)^0.5-VLOOKUP(Operations[[#This Row],[Depreciation Category]],ImpDepLookup,4,FALSE)*(Operations[[#This Row],[Age]]*Operations[[#This Row],[Annual Use]]/Operations[[#This Row],[Units per Hour]])^0.5)^2) -> 16351.03545 | R10: =IF(Operations[[#This Row],[Calc List Price]]=0,0,IF(Operations[[#This Row],[Units per Hour]]*Operations[[#This Row],[Annual Use]]=0,0,(Operations[[#This Row],[Calc Beg Yr. Value]]-Operations[[#This Row],[Calc End Yr. Value]])/(Operations[[#This Row],[Annual Use]]))) -> 1.620490762 | S10: =IF(Operations[[#This Row],[Annual Use]]=0,0,Operations[[#This Row],[Calc Beg Yr. Value]]*'General Variables'!$B$9/Operations[[#This Row],[Annual Use]]) -> 0.3594305243 | T10: =IF(Operations[[#This Row],[Annual Use]]=0,0,Operations[[#This Row],[Calc Beg Yr. Value]]*'General Variables'!$B$10/Operations[[#This Row],[Annual Use]]) -> 0.7188610486 | U10: =SUM(Operations[[#This Row],[Depreciation per Unit]:[Opportunity Cost per Unit]]) -> 2.698782335 | W10: Cultivator - Field | X10: TILLAGE&PLANTING | Y10: 0.27 | Z10: 1.4 | AA10: 2000 | AD10: Miscellaneous equipment | AE10: Manure spreaders and all other miscellaneous equipment | AF10: 0.943 | AG10: 0.111 | AK10: Center Pivot w/corner | AL10: 15 | AM10: 6 | AO10: =IF(PowerUnits[[#This Row],[Name]]=0,"",PowerUnits[[#This Row],[Name]]) -> 
A11: Combine Dryland SG | B11: acre | C11: Combine | D11: Combines | E11: 30866 | G11: 5 | H11: 1000 | I11: 6.5 | J11: 1.1 | K11: Combine | L11: 10.5 | N11: =IF(Operations[[#This Row],[List Price]]>1,Operations[[#This Row],[List Price]],IF(Operations[[#This Row],[Depreciation Category]]=0,0,Operations[[#This Row],[Begin Yr. Value]]/(VLOOKUP(Operations[[#This Row],[Depreciation Category]],ImpDepLookup,2,FALSE)-VLOOKUP(Operations[[#This Row],[Depreciation Category]],ImpDepLookup,3,FALSE)*Operations[[#This Row],[Age]]^0.5-VLOOKUP(Operations[[#This Row],[Depreciation Category]],ImpDepLookup,4,FALSE)*(Operations[[#This Row],[Age]]*(Operations[[#This Row],[Age]]*Operations[[#This Row],[Annual Use]]/Operations[[#This Row],[Units per Hour]])^0.5))^2)) -> 30866 | O11: =IF(Operations[[#This Row],[Repair Category]]="",0,(((Operations[[#This Row],[Age]]+1)*Operations[[#This Row],[Annual Use]]/Operations[[#This Row],[Units per Hour]]/1000)^VLOOKUP(Operations[[#This Row],[Repair Category]],ImpRepairFac[],4,FALSE)-(Operations[[#This Row],[Age]]*Operations[[#This Row],[Annual Use]]/Operations[[#This Row],[Units per Hour]]/1000)^VLOOKUP(Operations[[#This Row],[Repair Category]],ImpRepairFac[],4,FALSE))*Operations[[#This Row],[Calc List Price]]*VLOOKUP(Operations[[#This Row],[Repair Category]],ImpRepairFac[],3,FALSE)/Operations[[#This Row],[Annual Use]]) -> 1.055342823 | P11: =IF(Operations[[#This Row],[Calc List Price]]=0,0,Operations[[#This Row],[Calc List Price]]*(VLOOKUP(Operations[[#This Row],[Depreciation Category]],ImpDepLookup,2,FALSE)-VLOOKUP(Operations[[#This Row],[Depreciation Category]],ImpDepLookup,3,FALSE)*Operations[[#This Row],[Age]]^0.5-VLOOKUP(Operations[[#This Row],[Depreciation Category]],ImpDepLookup,4,FALSE)*(Operations[[#This Row],[Age]]*Operations[[#This Row],[Annual Use]]/Operations[[#This Row],[Units per Hour]])^0.5)^2) -> 17971.52621 | Q11: =IF(Operations[[#This Row],[Calc List Price]]=0,0,Operations[[#This Row],[Calc List Price]]*(VLOOKUP(Operations[[#This Row],[Depreciation Category]],ImpDepLookup,2,FALSE)-VLOOKUP(Operations[[#This Row],[Depreciation Category]],ImpDepLookup,3,FALSE)*(Operations[[#This Row],[Age]]+1)^0.5-VLOOKUP(Operations[[#This Row],[Depreciation Category]],ImpDepLookup,4,FALSE)*(Operations[[#This Row],[Age]]*Operations[[#This Row],[Annual Use]]/Operations[[#This Row],[Units per Hour]])^0.5)^2) -> 16351.03545 | R11: =IF(Operations[[#This Row],[Calc List Price]]=0,0,IF(Operations[[#This Row],[Units per Hour]]*Operations[[#This Row],[Annual Use]]=0,0,(Operations[[#This Row],[Calc Beg Yr. Value]]-Operations[[#This Row],[Calc End Yr. Value]])/(Operations[[#This Row],[Annual Use]]))) -> 1.620490762 | S11: =IF(Operations[[#This Row],[Annual Use]]=0,0,Operations[[#This Row],[Calc Beg Yr. Value]]*'General Variables'!$B$9/Operations[[#This Row],[Annual Use]]) -> 0.3594305243 | T11: =IF(Operations[[#This Row],[Annual Use]]=0,0,Operations[[#This Row],[Calc Beg Yr. Value]]*'General Variables'!$B$10/Operations[[#This Row],[Annual Use]]) -> 0.7188610486 | U11: =SUM(Operations[[#This Row],[Depreciation per Unit]:[Opportunity Cost per Unit]]) -> 2.698782335 | W11: Cultivator - Row crop | X11: TILLAGE&PLANTING | Y11: 0.17 | Z11: 2.2 | AA11: 2000 | AD11: Center Pivot | AE11: Pivots | AF11: 0.891 | AG11: 0.110 | AK11: Linear move with ditch | AL11: 15 | AM11: 6 | AO11: =IF(PowerUnits[[#This Row],[Name]]=0,"",PowerUnits[[#This Row],[Name]]) -> 
A12: Combine Irr Corn | B12: acre | C12: Combine | D12: Combines | E12: 51450 | G12: 5 | H12: 1000 | I12: 7 | J12: 1.1 | K12: Combine | L12: 10.5 | N12: =IF(Operations[[#This Row],[List Price]]>1,Operations[[#This Row],[List Price]],IF(Operations[[#This Row],[Depreciation Category]]=0,0,Operations[[#This Row],[Begin Yr. Value]]/(VLOOKUP(Operations[[#This Row],[Depreciation Category]],ImpDepLookup,2,FALSE)-VLOOKUP(Operations[[#This Row],[Depreciation Category]],ImpDepLookup,3,FALSE)*Operations[[#This Row],[Age]]^0.5-VLOOKUP(Operations[[#This Row],[Depreciation Category]],ImpDepLookup,4,FALSE)*(Operations[[#This Row],[Age]]*(Operations[[#This Row],[Age]]*Operations[[#This Row],[Annual Use]]/Operations[[#This Row],[Units per Hour]])^0.5))^2)) -> 51450 | O12: =IF(Operations[[#This Row],[Repair Category]]="",0,(((Operations[[#This Row],[Age]]+1)*Operations[[#This Row],[Annual Use]]/Operations[[#This Row],[Units per Hour]]/1000)^VLOOKUP(Operations[[#This Row],[Repair Category]],ImpRepairFac[],4,FALSE)-(Operations[[#This Row],[Age]]*Operations[[#This Row],[Annual Use]]/Operations[[#This Row],[Units per Hour]]/1000)^VLOOKUP(Operations[[#This Row],[Repair Category]],ImpRepairFac[],4,FALSE))*Operations[[#This Row],[Calc List Price]]*VLOOKUP(Operations[[#This Row],[Repair Category]],ImpRepairFac[],3,FALSE)/Operations[[#This Row],[Annual Use]]) -> 1.483453086 | P12: =IF(Operations[[#This Row],[Calc List Price]]=0,0,Operations[[#This Row],[Calc List Price]]*(VLOOKUP(Operations[[#This Row],[Depreciation Category]],ImpDepLookup,2,FALSE)-VLOOKUP(Operations[[#This Row],[Depreciation Category]],ImpDepLookup,3,FALSE)*Operations[[#This Row],[Age]]^0.5-VLOOKUP(Operations[[#This Row],[Depreciation Category]],ImpDepLookup,4,FALSE)*(Operations[[#This Row],[Age]]*Operations[[#This Row],[Annual Use]]/Operations[[#This Row],[Units per Hour]])^0.5)^2) -> 29956.42531 | Q12: =IF(Operations[[#This Row],[Calc List Price]]=0,0,Operations[[#This Row],[Calc List Price]]*(VLOOKUP(Operations[[#This Row],[Depreciation Category]],ImpDepLookup,2,FALSE)-VLOOKUP(Operations[[#This Row],[Depreciation Category]],ImpDepLookup,3,FALSE)*(Operations[[#This Row],[Age]]+1)^0.5-VLOOKUP(Operations[[#This Row],[Depreciation Category]],ImpDepLookup,4,FALSE)*(Operations[[#This Row],[Age]]*Operations[[#This Row],[Annual Use]]/Operations[[#This Row],[Units per Hour]])^0.5)^2) -> 27255.25737 | R12: =IF(Operations[[#This Row],[Calc List Price]]=0,0,IF(Operations[[#This Row],[Units per Hour]]*Operations[[#This Row],[Annual Use]]=0,0,(Operations[[#This Row],[Calc Beg Yr. Value]]-Operations[[#This Row],[Calc End Yr. Value]])/(Operations[[#This Row],[Annual Use]]))) -> 2.701167942 | S12: =IF(Operations[[#This Row],[Annual Use]]=0,0,Operations[[#This Row],[Calc Beg Yr. Value]]*'General Variables'!$B$9/Operations[[#This Row],[Annual Use]]) -> 0.5991285063 | T12: =IF(Operations[[#This Row],[Annual Use]]=0,0,Operations[[#This Row],[Calc Beg Yr. Value]]*'General Variables'!$B$10/Operations[[#This Row],[Annual Use]]) -> 1.198257013 | U12: =SUM(Operations[[#This Row],[Depreciation per Unit]:[Opportunity Cost per Unit]]) -> 4.498553461 | W12: Disk - Heavy-duty | X12: TILLAGE&PLANTING | Y12: 0.18 | Z12: 1.7 | AA12: 2000 | AK12: Linear move with pipe | AL12: 15 | AM12: 6
A13: Combine Irr Dry Beans | B13: acre | C13: Combine | D13: Combines | E13: 30866 | G13: 5 | H13: 1000 | I13: 5 | J13: 1.1 | K13: Combine | L13: 10.5 | N13: =IF(Operations[[#This Row],[List Price]]>1,Operations[[#This Row],[List Price]],IF(Operations[[#This Row],[Depreciation Category]]=0,0,Operations[[#This Row],[Begin Yr. Value]]/(VLOOKUP(Operations[[#This Row],[Depreciation Category]],ImpDepLookup,2,FALSE)-VLOOKUP(Operations[[#This Row],[Depreciation Category]],ImpDepLookup,3,FALSE)*Operations[[#This Row],[Age]]^0.5-VLOOKUP(Operations[[#This Row],[Depreciation Category]],ImpDepLookup,4,FALSE)*(Operations[[#This Row],[Age]]*(Operations[[#This Row],[Age]]*Operations[[#This Row],[Annual Use]]/Operations[[#This Row],[Units per Hour]])^0.5))^2)) -> 30866 | O13: =IF(Operations[[#This Row],[Repair Category]]="",0,(((Operations[[#This Row],[Age]]+1)*Operations[[#This Row],[Annual Use]]/Operations[[#This Row],[Units per Hour]]/1000)^VLOOKUP(Operations[[#This Row],[Repair Category]],ImpRepairFac[],4,FALSE)-(Operations[[#This Row],[Age]]*Operations[[#This Row],[Annual Use]]/Operations[[#This Row],[Units per Hour]]/1000)^VLOOKUP(Operations[[#This Row],[Repair Category]],ImpRepairFac[],4,FALSE))*Operations[[#This Row],[Calc List Price]]*VLOOKUP(Operations[[#This Row],[Repair Category]],ImpRepairFac[],3,FALSE)/Operations[[#This Row],[Annual Use]]) -> 1.929582142 | P13: =IF(Operations[[#This Row],[Calc List Price]]=0,0,Operations[[#This Row],[Calc List Price]]*(VLOOKUP(Operations[[#This Row],[Depreciation Category]],ImpDepLookup,2,FALSE)-VLOOKUP(Operations[[#This Row],[Depreciation Category]],ImpDepLookup,3,FALSE)*Operations[[#This Row],[Age]]^0.5-VLOOKUP(Operations[[#This Row],[Depreciation Category]],ImpDepLookup,4,FALSE)*(Operations[[#This Row],[Age]]*Operations[[#This Row],[Annual Use]]/Operations[[#This Row],[Units per Hour]])^0.5)^2) -> 17971.52621 | Q13: =IF(Operations[[#This Row],[Calc List Price]]=0,0,Operations[[#This Row],[Calc List Price]]*(VLOOKUP(Operations[[#This Row],[Depreciation Category]],ImpDepLookup,2,FALSE)-VLOOKUP(Operations[[#This Row],[Depreciation Category]],ImpDepLookup,3,FALSE)*(Operations[[#This Row],[Age]]+1)^0.5-VLOOKUP(Operations[[#This Row],[Depreciation Category]],ImpDepLookup,4,FALSE)*(Operations[[#This Row],[Age]]*Operations[[#This Row],[Annual Use]]/Operations[[#This Row],[Units per Hour]])^0.5)^2) -> 16351.03545 | R13: =IF(Operations[[#This Row],[Calc List Price]]=0,0,IF(Operations[[#This Row],[Units per Hour]]*Operations[[#This Row],[Annual Use]]=0,0,(Operations[[#This Row],[Calc Beg Yr. Value]]-Operations[[#This Row],[Calc End Yr. Value]])/(Operations[[#This Row],[Annual Use]]))) -> 1.620490762 | S13: =IF(Operations[[#This Row],[Annual Use]]=0,0,Operations[[#This Row],[Calc Beg Yr. Value]]*'General Variables'!$B$9/Operations[[#This Row],[Annual Use]]) -> 0.3594305243 | T13: =IF(Operations[[#This Row],[Annual Use]]=0,0,Operations[[#This Row],[Calc Beg Yr. Value]]*'General Variables'!$B$10/Operations[[#This Row],[Annual Use]]) -> 0.7188610486 | U13: =SUM(Operations[[#This Row],[Depreciation per Unit]:[Opportunity Cost per Unit]]) -> 2.698782335 | W13: Diskharrow - Tandem | X13: TILLAGE&PLANTING | Y13: 0.18 | Z13: 1.7 | AA13: 2000 | AK13: Portable solid set | AL13: 15 | AM13: 2
A14: Combine Irr SB | B14: acre | C14: Combine | D14: Combines | E14: 30866 | G14: 5 | H14: 1000 | I14: 6 | J14: 1.1 | K14: Combine | L14: 10.5 | N14: =IF(Operations[[#This Row],[List Price]]>1,Operations[[#This Row],[List Price]],IF(Operations[[#This Row],[Depreciation Category]]=0,0,Operations[[#This Row],[Begin Yr. Value]]/(VLOOKUP(Operations[[#This Row],[Depreciation Category]],ImpDepLookup,2,FALSE)-VLOOKUP(Operations[[#This Row],[Depreciation Category]],ImpDepLookup,3,FALSE)*Operations[[#This Row],[Age]]^0.5-VLOOKUP(Operations[[#This Row],[Depreciation Category]],ImpDepLookup,4,FALSE)*(Operations[[#This Row],[Age]]*(Operations[[#This Row],[Age]]*Operations[[#This Row],[Annual Use]]/Operations[[#This Row],[Units per Hour]])^0.5))^2)) -> 30866 | O14: =IF(Operations[[#This Row],[Repair Category]]="",0,(((Operations[[#This Row],[Age]]+1)*Operations[[#This Row],[Annual Use]]/Operations[[#This Row],[Units per Hour]]/1000)^VLOOKUP(Operations[[#This Row],[Repair Category]],ImpRepairFac[],4,FALSE)-(Operations[[#This Row],[Age]]*Operations[[#This Row],[Annual Use]]/Operations[[#This Row],[Units per Hour]]/1000)^VLOOKUP(Operations[[#This Row],[Repair Category]],ImpRepairFac[],4,FALSE))*Operations[[#This Row],[Calc List Price]]*VLOOKUP(Operations[[#This Row],[Repair Category]],ImpRepairFac[],3,FALSE)/Operations[[#This Row],[Annual Use]]) -> 1.268663383 | P14: =IF(Operations[[#This Row],[Calc List Price]]=0,0,Operations[[#This Row],[Calc List Price]]*(VLOOKUP(Operations[[#This Row],[Depreciation Category]],ImpDepLookup,2,FALSE)-VLOOKUP(Operations[[#This Row],[Depreciation Category]],ImpDepLookup,3,FALSE)*Operations[[#This Row],[Age]]^0.5-VLOOKUP(Operations[[#This Row],[Depreciation Category]],ImpDepLookup,4,FALSE)*(Operations[[#This Row],[Age]]*Operations[[#This Row],[Annual Use]]/Operations[[#This Row],[Units per Hour]])^0.5)^2) -> 17971.52621 | Q14: =IF(Operations[[#This Row],[Calc List Price]]=0,0,Operations[[#This Row],[Calc List Price]]*(VLOOKUP(Operations[[#This Row],[Depreciation Category]],ImpDepLookup,2,FALSE)-VLOOKUP(Operations[[#This Row],[Depreciation Category]],ImpDepLookup,3,FALSE)*(Operations[[#This Row],[Age]]+1)^0.5-VLOOKUP(Operations[[#This Row],[Depreciation Category]],ImpDepLookup,4,FALSE)*(Operations[[#This Row],[Age]]*Operations[[#This Row],[Annual Use]]/Operations[[#This Row],[Units per Hour]])^0.5)^2) -> 16351.03545 | R14: =IF(Operations[[#This Row],[Calc List Price]]=0,0,IF(Operations[[#This Row],[Units per Hour]]*Operations[[#This Row],[Annual Use]]=0,0,(Operations[[#This Row],[Calc Beg Yr. Value]]-Operations[[#This Row],[Calc End Yr. Value]])/(Operations[[#This Row],[Annual Use]]))) -> 1.620490762 | S14: =IF(Operations[[#This Row],[Annual Use]]=0,0,Operations[[#This Row],[Calc Beg Yr. Value]]*'General Variables'!$B$9/Operations[[#This Row],[Annual Use]]) -> 0.3594305243 | T14: =IF(Operations[[#This Row],[Annual Use]]=0,0,Operations[[#This Row],[Calc Beg Yr. Value]]*'General Variables'!$B$10/Operations[[#This Row],[Annual Use]]) -> 0.7188610486 | U14: =SUM(Operations[[#This Row],[Depreciation per Unit]:[Opportunity Cost per Unit]]) -> 2.698782335 | W14: Drill - Grain | X14: TILLAGE&PLANTING | Y14: 0.32 | Z14: 2.1 | AA14: 1500 | AK14: Permanent solid set | AL14: 20 | AM14: 1
A15: Combine Irr SG | B15: acre | C15: Combine | D15: Combines | E15: 30866 | G15: 5 | H15: 1000 | I15: 6.5 | J15: 1.1 | K15: Combine | L15: 10.5 | N15: =IF(Operations[[#This Row],[List Price]]>1,Operations[[#This Row],[List Price]],IF(Operations[[#This Row],[Depreciation Category]]=0,0,Operations[[#This Row],[Begin Yr. Value]]/(VLOOKUP(Operations[[#This Row],[Depreciation Category]],ImpDepLookup,2,FALSE)-VLOOKUP(Operations[[#This Row],[Depreciation Category]],ImpDepLookup,3,FALSE)*Operations[[#This Row],[Age]]^0.5-VLOOKUP(Operations[[#This Row],[Depreciation Category]],ImpDepLookup,4,FALSE)*(Operations[[#This Row],[Age]]*(Operations[[#This Row],[Age]]*Operations[[#This Row],[Annual Use]]/Operations[[#This Row],[Units per Hour]])^0.5))^2)) -> 30866 | O15: =IF(Operations[[#This Row],[Repair Category]]="",0,(((Operations[[#This Row],[Age]]+1)*Operations[[#This Row],[Annual Use]]/Operations[[#This Row],[Units per Hour]]/1000)^VLOOKUP(Operations[[#This Row],[Repair Category]],ImpRepairFac[],4,FALSE)-(Operations[[#This Row],[Age]]*Operations[[#This Row],[Annual Use]]/Operations[[#This Row],[Units per Hour]]/1000)^VLOOKUP(Operations[[#This Row],[Repair Category]],ImpRepairFac[],4,FALSE))*Operations[[#This Row],[Calc List Price]]*VLOOKUP(Operations[[#This Row],[Repair Category]],ImpRepairFac[],3,FALSE)/Operations[[#This Row],[Annual Use]]) -> 1.055342823 | P15: =IF(Operations[[#This Row],[Calc List Price]]=0,0,Operations[[#This Row],[Calc List Price]]*(VLOOKUP(Operations[[#This Row],[Depreciation Category]],ImpDepLookup,2,FALSE)-VLOOKUP(Operations[[#This Row],[Depreciation Category]],ImpDepLookup,3,FALSE)*Operations[[#This Row],[Age]]^0.5-VLOOKUP(Operations[[#This Row],[Depreciation Category]],ImpDepLookup,4,FALSE)*(Operations[[#This Row],[Age]]*Operations[[#This Row],[Annual Use]]/Operations[[#This Row],[Units per Hour]])^0.5)^2) -> 17971.52621 | Q15: =IF(Operations[[#This Row],[Calc List Price]]=0,0,Operations[[#This Row],[Calc List Price]]*(VLOOKUP(Operations[[#This Row],[Depreciation Category]],ImpDepLookup,2,FALSE)-VLOOKUP(Operations[[#This Row],[Depreciation Category]],ImpDepLookup,3,FALSE)*(Operations[[#This Row],[Age]]+1)^0.5-VLOOKUP(Operations[[#This Row],[Depreciation Category]],ImpDepLookup,4,FALSE)*(Operations[[#This Row],[Age]]*Operations[[#This Row],[Annual Use]]/Operations[[#This Row],[Units per Hour]])^0.5)^2) -> 16351.03545 | R15: =IF(Operations[[#This Row],[Calc List Price]]=0,0,IF(Operations[[#This Row],[Units per Hour]]*Operations[[#This Row],[Annual Use]]=0,0,(Operations[[#This Row],[Calc Beg Yr. Value]]-Operations[[#This Row],[Calc End Yr. Value]])/(Operations[[#This Row],[Annual Use]]))) -> 1.620490762 | S15: =IF(Operations[[#This Row],[Annual Use]]=0,0,Operations[[#This Row],[Calc Beg Yr. Value]]*'General Variables'!$B$9/Operations[[#This Row],[Annual Use]]) -> 0.3594305243 | T15: =IF(Operations[[#This Row],[Annual Use]]=0,0,Operations[[#This Row],[Calc Beg Yr. Value]]*'General Variables'!$B$10/Operations[[#This Row],[Annual Use]]) -> 0.7188610486 | U15: =SUM(Operations[[#This Row],[Depreciation per Unit]:[Opportunity Cost per Unit]]) -> 2.698782335 | W15: Fertilizer spreader | X15: MISCELLANEOUS | Y15: 0.63 | Z15: 1.3 | AA15: 1200 | AK15: Orchard hose-pull | AL15: 15 | AM15: 3
A16: Combine Irrigated Dry Beans with Draper Flex Platform | B16: acre | C16: Combine | D16: Combines | E16: 79100 | G16: 5 | H16: 1000 | I16: 5 | J16: 1.1 | K16: Combine | L16: 10.5 | N16: =IF(Operations[[#This Row],[List Price]]>1,Operations[[#This Row],[List Price]],IF(Operations[[#This Row],[Depreciation Category]]=0,0,Operations[[#This Row],[Begin Yr. Value]]/(VLOOKUP(Operations[[#This Row],[Depreciation Category]],ImpDepLookup,2,FALSE)-VLOOKUP(Operations[[#This Row],[Depreciation Category]],ImpDepLookup,3,FALSE)*Operations[[#This Row],[Age]]^0.5-VLOOKUP(Operations[[#This Row],[Depreciation Category]],ImpDepLookup,4,FALSE)*(Operations[[#This Row],[Age]]*(Operations[[#This Row],[Age]]*Operations[[#This Row],[Annual Use]]/Operations[[#This Row],[Units per Hour]])^0.5))^2)) -> 79100 | O16: =IF(Operations[[#This Row],[Repair Category]]="",0,(((Operations[[#This Row],[Age]]+1)*Operations[[#This Row],[Annual Use]]/Operations[[#This Row],[Units per Hour]]/1000)^VLOOKUP(Operations[[#This Row],[Repair Category]],ImpRepairFac[],4,FALSE)-(Operations[[#This Row],[Age]]*Operations[[#This Row],[Annual Use]]/Operations[[#This Row],[Units per Hour]]/1000)^VLOOKUP(Operations[[#This Row],[Repair Category]],ImpRepairFac[],4,FALSE))*Operations[[#This Row],[Calc List Price]]*VLOOKUP(Operations[[#This Row],[Repair Category]],ImpRepairFac[],3,FALSE)/Operations[[#This Row],[Annual Use]]) -> 4.944921514 | P16: =IF(Operations[[#This Row],[Calc List Price]]=0,0,Operations[[#This Row],[Calc List Price]]*(VLOOKUP(Operations[[#This Row],[Depreciation Category]],ImpDepLookup,2,FALSE)-VLOOKUP(Operations[[#This Row],[Depreciation Category]],ImpDepLookup,3,FALSE)*Operations[[#This Row],[Age]]^0.5-VLOOKUP(Operations[[#This Row],[Depreciation Category]],ImpDepLookup,4,FALSE)*(Operations[[#This Row],[Age]]*Operations[[#This Row],[Annual Use]]/Operations[[#This Row],[Units per Hour]])^0.5)^2) -> 46055.4566 | Q16: =IF(Operations[[#This Row],[Calc List Price]]=0,0,Operations[[#This Row],[Calc List Price]]*(VLOOKUP(Operations[[#This Row],[Depreciation Category]],ImpDepLookup,2,FALSE)-VLOOKUP(Operations[[#This Row],[Depreciation Category]],ImpDepLookup,3,FALSE)*(Operations[[#This Row],[Age]]+1)^0.5-VLOOKUP(Operations[[#This Row],[Depreciation Category]],ImpDepLookup,4,FALSE)*(Operations[[#This Row],[Age]]*Operations[[#This Row],[Annual Use]]/Operations[[#This Row],[Units per Hour]])^0.5)^2) -> 41902.64058 | R16: =IF(Operations[[#This Row],[Calc List Price]]=0,0,IF(Operations[[#This Row],[Units per Hour]]*Operations[[#This Row],[Annual Use]]=0,0,(Operations[[#This Row],[Calc Beg Yr. Value]]-Operations[[#This Row],[Calc End Yr. Value]])/(Operations[[#This Row],[Annual Use]]))) -> 4.15281602 | S16: =IF(Operations[[#This Row],[Annual Use]]=0,0,Operations[[#This Row],[Calc Beg Yr. Value]]*'General Variables'!$B$9/Operations[[#This Row],[Annual Use]]) -> 0.9211091321 | T16: =IF(Operations[[#This Row],[Annual Use]]=0,0,Operations[[#This Row],[Calc Beg Yr. Value]]*'General Variables'!$B$10/Operations[[#This Row],[Annual Use]]) -> 1.842218264 | U16: =SUM(Operations[[#This Row],[Depreciation per Unit]:[Opportunity Cost per Unit]]) -> 6.916143416 | W16: Forage blower | X16: MISCELLANEOUS | Y16: 0.22 | Z16: 1.8 | AA16: 1500 | AK16: From "Selection of Irrigation Methods for Agriculture" by C.M. Burt, A.J. Clemmens, R.Bliesner, J.L. Merriam, and L. Hardy. ©2000 by American Society of Civil Engineers, 1801 Alexander Bell Drive, Reston, Virginia, 20191-4400. page 112
A17: Combine Small Grain | B17: acre | C17: Combine | D17: Combines | E17: 30866 | F17: 15000 | G17: 5 | H17: 1000 | I17: 7 | J17: 1.1 | K17: Combine | L17: 10.46803279 | N17: =IF(Operations[[#This Row],[List Price]]>1,Operations[[#This Row],[List Price]],IF(Operations[[#This Row],[Depreciation Category]]=0,0,Operations[[#This Row],[Begin Yr. Value]]/(VLOOKUP(Operations[[#This Row],[Depreciation Category]],ImpDepLookup,2,FALSE)-VLOOKUP(Operations[[#This Row],[Depreciation Category]],ImpDepLookup,3,FALSE)*Operations[[#This Row],[Age]]^0.5-VLOOKUP(Operations[[#This Row],[Depreciation Category]],ImpDepLookup,4,FALSE)*(Operations[[#This Row],[Age]]*(Operations[[#This Row],[Age]]*Operations[[#This Row],[Annual Use]]/Operations[[#This Row],[Units per Hour]])^0.5))^2)) -> 30866 | O17: =IF(Operations[[#This Row],[Repair Category]]="",0,(((Operations[[#This Row],[Age]]+1)*Operations[[#This Row],[Annual Use]]/Operations[[#This Row],[Units per Hour]]/1000)^VLOOKUP(Operations[[#This Row],[Repair Category]],ImpRepairFac[],4,FALSE)-(Operations[[#This Row],[Age]]*Operations[[#This Row],[Annual Use]]/Operations[[#This Row],[Units per Hour]]/1000)^VLOOKUP(Operations[[#This Row],[Repair Category]],ImpRepairFac[],4,FALSE))*Operations[[#This Row],[Calc List Price]]*VLOOKUP(Operations[[#This Row],[Repair Category]],ImpRepairFac[],3,FALSE)/Operations[[#This Row],[Annual Use]]) -> 0.8899565201 | P17: =IF(Operations[[#This Row],[Calc List Price]]=0,0,Operations[[#This Row],[Calc List Price]]*(VLOOKUP(Operations[[#This Row],[Depreciation Category]],ImpDepLookup,2,FALSE)-VLOOKUP(Operations[[#This Row],[Depreciation Category]],ImpDepLookup,3,FALSE)*Operations[[#This Row],[Age]]^0.5-VLOOKUP(Operations[[#This Row],[Depreciation Category]],ImpDepLookup,4,FALSE)*(Operations[[#This Row],[Age]]*Operations[[#This Row],[Annual Use]]/Operations[[#This Row],[Units per Hour]])^0.5)^2) -> 17971.52621 | Q17: =IF(Operations[[#This Row],[Calc List Price]]=0,0,Operations[[#This Row],[Calc List Price]]*(VLOOKUP(Operations[[#This Row],[Depreciation Category]],ImpDepLookup,2,FALSE)-VLOOKUP(Operations[[#This Row],[Depreciation Category]],ImpDepLookup,3,FALSE)*(Operations[[#This Row],[Age]]+1)^0.5-VLOOKUP(Operations[[#This Row],[Depreciation Category]],ImpDepLookup,4,FALSE)*(Operations[[#This Row],[Age]]*Operations[[#This Row],[Annual Use]]/Operations[[#This Row],[Units per Hour]])^0.5)^2) -> 16351.03545 | R17: =IF(Operations[[#This Row],[Calc List Price]]=0,0,IF(Operations[[#This Row],[Units per Hour]]*Operations[[#This Row],[Annual Use]]=0,0,(Operations[[#This Row],[Calc Beg Yr. Value]]-Operations[[#This Row],[Calc End Yr. Value]])/(Operations[[#This Row],[Annual Use]]))) -> 1.620490762 | S17: =IF(Operations[[#This Row],[Annual Use]]=0,0,Operations[[#This Row],[Calc Beg Yr. Value]]*'General Variables'!$B$9/Operations[[#This Row],[Annual Use]]) -> 0.3594305243 | T17: =IF(Operations[[#This Row],[Annual Use]]=0,0,Operations[[#This Row],[Calc Beg Yr. Value]]*'General Variables'!$B$10/Operations[[#This Row],[Annual Use]]) -> 0.7188610486 | U17: =SUM(Operations[[#This Row],[Depreciation per Unit]:[Opportunity Cost per Unit]]) -> 2.698782335 | W17: Forage harvester | X17: HARVESTING | Y17: 0.15 | Z17: 1.6 | AA17: 2500
A18: Combine Sunflowers | B18: acre | C18: Combine | D18: Combines | E18: 35000 | G18: 5 | H18: 1000 | I18: 7 | J18: 1.1 | K18: Combine | L18: 10.5 | N18: =IF(Operations[[#This Row],[List Price]]>1,Operations[[#This Row],[List Price]],IF(Operations[[#This Row],[Depreciation Category]]=0,0,Operations[[#This Row],[Begin Yr. Value]]/(VLOOKUP(Operations[[#This Row],[Depreciation Category]],ImpDepLookup,2,FALSE)-VLOOKUP(Operations[[#This Row],[Depreciation Category]],ImpDepLookup,3,FALSE)*Operations[[#This Row],[Age]]^0.5-VLOOKUP(Operations[[#This Row],[Depreciation Category]],ImpDepLookup,4,FALSE)*(Operations[[#This Row],[Age]]*(Operations[[#This Row],[Age]]*Operations[[#This Row],[Annual Use]]/Operations[[#This Row],[Units per Hour]])^0.5))^2)) -> 35000 | O18: =IF(Operations[[#This Row],[Repair Category]]="",0,(((Operations[[#This Row],[Age]]+1)*Operations[[#This Row],[Annual Use]]/Operations[[#This Row],[Units per Hour]]/1000)^VLOOKUP(Operations[[#This Row],[Repair Category]],ImpRepairFac[],4,FALSE)-(Operations[[#This Row],[Age]]*Operations[[#This Row],[Annual Use]]/Operations[[#This Row],[Units per Hour]]/1000)^VLOOKUP(Operations[[#This Row],[Repair Category]],ImpRepairFac[],4,FALSE))*Operations[[#This Row],[Calc List Price]]*VLOOKUP(Operations[[#This Row],[Repair Category]],ImpRepairFac[],3,FALSE)/Operations[[#This Row],[Annual Use]]) -> 1.009151759 | P18: =IF(Operations[[#This Row],[Calc List Price]]=0,0,Operations[[#This Row],[Calc List Price]]*(VLOOKUP(Operations[[#This Row],[Depreciation Category]],ImpDepLookup,2,FALSE)-VLOOKUP(Operations[[#This Row],[Depreciation Category]],ImpDepLookup,3,FALSE)*Operations[[#This Row],[Age]]^0.5-VLOOKUP(Operations[[#This Row],[Depreciation Category]],ImpDepLookup,4,FALSE)*(Operations[[#This Row],[Age]]*Operations[[#This Row],[Annual Use]]/Operations[[#This Row],[Units per Hour]])^0.5)^2) -> 20378.52062 | Q18: =IF(Operations[[#This Row],[Calc List Price]]=0,0,Operations[[#This Row],[Calc List Price]]*(VLOOKUP(Operations[[#This Row],[Depreciation Category]],ImpDepLookup,2,FALSE)-VLOOKUP(Operations[[#This Row],[Depreciation Category]],ImpDepLookup,3,FALSE)*(Operations[[#This Row],[Age]]+1)^0.5-VLOOKUP(Operations[[#This Row],[Depreciation Category]],ImpDepLookup,4,FALSE)*(Operations[[#This Row],[Age]]*Operations[[#This Row],[Annual Use]]/Operations[[#This Row],[Units per Hour]])^0.5)^2) -> 18540.99141 | R18: =IF(Operations[[#This Row],[Calc List Price]]=0,0,IF(Operations[[#This Row],[Units per Hour]]*Operations[[#This Row],[Annual Use]]=0,0,(Operations[[#This Row],[Calc Beg Yr. Value]]-Operations[[#This Row],[Calc End Yr. Value]])/(Operations[[#This Row],[Annual Use]]))) -> 1.837529212 | S18: =IF(Operations[[#This Row],[Annual Use]]=0,0,Operations[[#This Row],[Calc Beg Yr. Value]]*'General Variables'!$B$9/Operations[[#This Row],[Annual Use]]) -> 0.4075704124 | T18: =IF(Operations[[#This Row],[Annual Use]]=0,0,Operations[[#This Row],[Calc Beg Yr. Value]]*'General Variables'!$B$10/Operations[[#This Row],[Annual Use]]) -> 0.8151408249 | U18: =SUM(Operations[[#This Row],[Depreciation per Unit]:[Opportunity Cost per Unit]]) -> 3.06024045 | W18: Harrow - Spring tooth | X18: TILLAGE&PLANTING | Y18: 0.27 | Z18: 1.4 | AA18: 2000
A19: Corrugate | B19: acre | C19: Cultivator - Field | D19: Disks and all other tillage equipment | E19: 29000 | G19: 5 | H19: 300 | I19: 7.021276596 | J19: 1.1 | K19: Medium Tractor | L19: 4.388297872 | N19: =IF(Operations[[#This Row],[List Price]]>1,Operations[[#This Row],[List Price]],IF(Operations[[#This Row],[Depreciation Category]]=0,0,Operations[[#This Row],[Begin Yr. Value]]/(VLOOKUP(Operations[[#This Row],[Depreciation Category]],ImpDepLookup,2,FALSE)-VLOOKUP(Operations[[#This Row],[Depreciation Category]],ImpDepLookup,3,FALSE)*Operations[[#This Row],[Age]]^0.5-VLOOKUP(Operations[[#This Row],[Depreciation Category]],ImpDepLookup,4,FALSE)*(Operations[[#This Row],[Age]]*(Operations[[#This Row],[Age]]*Operations[[#This Row],[Annual Use]]/Operations[[#This Row],[Units per Hour]])^0.5))^2)) -> 29000 | O19: =IF(Operations[[#This Row],[Repair Category]]="",0,(((Operations[[#This Row],[Age]]+1)*Operations[[#This Row],[Annual Use]]/Operations[[#This Row],[Units per Hour]]/1000)^VLOOKUP(Operations[[#This Row],[Repair Category]],ImpRepairFac[],4,FALSE)-(Operations[[#This Row],[Age]]*Operations[[#This Row],[Annual Use]]/Operations[[#This Row],[Units per Hour]]/1000)^VLOOKUP(Operations[[#This Row],[Repair Category]],ImpRepairFac[],4,FALSE))*Operations[[#This Row],[Calc List Price]]*VLOOKUP(Operations[[#This Row],[Repair Category]],ImpRepairFac[],3,FALSE)/Operations[[#This Row],[Annual Use]]) -> 0.8744943761 | P19: =IF(Operations[[#This Row],[Calc List Price]]=0,0,Operations[[#This Row],[Calc List Price]]*(VLOOKUP(Operations[[#This Row],[Depreciation Category]],ImpDepLookup,2,FALSE)-VLOOKUP(Operations[[#This Row],[Depreciation Category]],ImpDepLookup,3,FALSE)*Operations[[#This Row],[Age]]^0.5-VLOOKUP(Operations[[#This Row],[Depreciation Category]],ImpDepLookup,4,FALSE)*(Operations[[#This Row],[Age]]*Operations[[#This Row],[Annual Use]]/Operations[[#This Row],[Units per Hour]])^0.5)^2) -> 12065.9417 | Q19: =IF(Operations[[#This Row],[Calc List Price]]=0,0,Operations[[#This Row],[Calc List Price]]*(VLOOKUP(Operations[[#This Row],[Depreciation Category]],ImpDepLookup,2,FALSE)-VLOOKUP(Operations[[#This Row],[Depreciation Category]],ImpDepLookup,3,FALSE)*(Operations[[#This Row],[Age]]+1)^0.5-VLOOKUP(Operations[[#This Row],[Depreciation Category]],ImpDepLookup,4,FALSE)*(Operations[[#This Row],[Age]]*Operations[[#This Row],[Annual Use]]/Operations[[#This Row],[Units per Hour]])^0.5)^2) -> 11203.6286 | R19: =IF(Operations[[#This Row],[Calc List Price]]=0,0,IF(Operations[[#This Row],[Units per Hour]]*Operations[[#This Row],[Annual Use]]=0,0,(Operations[[#This Row],[Calc Beg Yr. Value]]-Operations[[#This Row],[Calc End Yr. Value]])/(Operations[[#This Row],[Annual Use]]))) -> 2.874376995 | S19: =IF(Operations[[#This Row],[Annual Use]]=0,0,Operations[[#This Row],[Calc Beg Yr. Value]]*'General Variables'!$B$9/Operations[[#This Row],[Annual Use]]) -> 0.8043961131 | T19: =IF(Operations[[#This Row],[Annual Use]]=0,0,Operations[[#This Row],[Calc Beg Yr. Value]]*'General Variables'!$B$10/Operations[[#This Row],[Annual Use]]) -> 1.608792226 | U19: =SUM(Operations[[#This Row],[Depreciation per Unit]:[Opportunity Cost per Unit]]) -> 5.287565334 | W19: Mower | X19: HARVESTING | Y19: 0.46 | Z19: 1.7 | AA19: 2000
A20: Disc | B20: acre | C20: Disk - Heavy-duty | D20: Disks and all other tillage equipment | E20: 39688 | G20: 5 | H20: 2000 | I20: 10.90909091 | J20: 1.1 | K20: Large Tractor | L20: 8.290909091 | N20: =IF(Operations[[#This Row],[List Price]]>1,Operations[[#This Row],[List Price]],IF(Operations[[#This Row],[Depreciation Category]]=0,0,Operations[[#This Row],[Begin Yr. Value]]/(VLOOKUP(Operations[[#This Row],[Depreciation Category]],ImpDepLookup,2,FALSE)-VLOOKUP(Operations[[#This Row],[Depreciation Category]],ImpDepLookup,3,FALSE)*Operations[[#This Row],[Age]]^0.5-VLOOKUP(Operations[[#This Row],[Depreciation Category]],ImpDepLookup,4,FALSE)*(Operations[[#This Row],[Age]]*(Operations[[#This Row],[Age]]*Operations[[#This Row],[Annual Use]]/Operations[[#This Row],[Units per Hour]])^0.5))^2)) -> 39688 | O20: =IF(Operations[[#This Row],[Repair Category]]="",0,(((Operations[[#This Row],[Age]]+1)*Operations[[#This Row],[Annual Use]]/Operations[[#This Row],[Units per Hour]]/1000)^VLOOKUP(Operations[[#This Row],[Repair Category]],ImpRepairFac[],4,FALSE)-(Operations[[#This Row],[Age]]*Operations[[#This Row],[Annual Use]]/Operations[[#This Row],[Units per Hour]]/1000)^VLOOKUP(Operations[[#This Row],[Repair Category]],ImpRepairFac[],4,FALSE))*Operations[[#This Row],[Calc List Price]]*VLOOKUP(Operations[[#This Row],[Repair Category]],ImpRepairFac[],3,FALSE)/Operations[[#This Row],[Annual Use]]) -> 1.119409969 | P20: =IF(Operations[[#This Row],[Calc List Price]]=0,0,Operations[[#This Row],[Calc List Price]]*(VLOOKUP(Operations[[#This Row],[Depreciation Category]],ImpDepLookup,2,FALSE)-VLOOKUP(Operations[[#This Row],[Depreciation Category]],ImpDepLookup,3,FALSE)*Operations[[#This Row],[Age]]^0.5-VLOOKUP(Operations[[#This Row],[Depreciation Category]],ImpDepLookup,4,FALSE)*(Operations[[#This Row],[Age]]*Operations[[#This Row],[Annual Use]]/Operations[[#This Row],[Units per Hour]])^0.5)^2) -> 16512.86531 | Q20: =IF(Operations[[#This Row],[Calc List Price]]=0,0,Operations[[#This Row],[Calc List Price]]*(VLOOKUP(Operations[[#This Row],[Depreciation Category]],ImpDepLookup,2,FALSE)-VLOOKUP(Operations[[#This Row],[Depreciation Category]],ImpDepLookup,3,FALSE)*(Operations[[#This Row],[Age]]+1)^0.5-VLOOKUP(Operations[[#This Row],[Depreciation Category]],ImpDepLookup,4,FALSE)*(Operations[[#This Row],[Age]]*Operations[[#This Row],[Annual Use]]/Operations[[#This Row],[Units per Hour]])^0.5)^2) -> 15332.74523 | R20: =IF(Operations[[#This Row],[Calc List Price]]=0,0,IF(Operations[[#This Row],[Units per Hour]]*Operations[[#This Row],[Annual Use]]=0,0,(Operations[[#This Row],[Calc Beg Yr. Value]]-Operations[[#This Row],[Calc End Yr. Value]])/(Operations[[#This Row],[Annual Use]]))) -> 0.5900600388 | S20: =IF(Operations[[#This Row],[Annual Use]]=0,0,Operations[[#This Row],[Calc Beg Yr. Value]]*'General Variables'!$B$9/Operations[[#This Row],[Annual Use]]) -> 0.1651286531 | T20: =IF(Operations[[#This Row],[Annual Use]]=0,0,Operations[[#This Row],[Calc Beg Yr. Value]]*'General Variables'!$B$10/Operations[[#This Row],[Annual Use]]) -> 0.3302573062 | U20: =SUM(Operations[[#This Row],[Depreciation per Unit]:[Opportunity Cost per Unit]]) -> 1.085445998 | W20: Mower(rotary) | X20: HARVESTING | Y20: 0.44 | Z20: 2.0 | AA20: 2000
A21: Ditch Irrigation | B21: acre-inch | G21: 5 | H21: 1000 | I21: 1.8 | J21: 0.1 | K21: none | L21: 0 | N21: =IF(Operations[[#This Row],[List Price]]>1,Operations[[#This Row],[List Price]],IF(Operations[[#This Row],[Depreciation Category]]=0,0,Operations[[#This Row],[Begin Yr. Value]]/(VLOOKUP(Operations[[#This Row],[Depreciation Category]],ImpDepLookup,2,FALSE)-VLOOKUP(Operations[[#This Row],[Depreciation Category]],ImpDepLookup,3,FALSE)*Operations[[#This Row],[Age]]^0.5-VLOOKUP(Operations[[#This Row],[Depreciation Category]],ImpDepLookup,4,FALSE)*(Operations[[#This Row],[Age]]*(Operations[[#This Row],[Age]]*Operations[[#This Row],[Annual Use]]/Operations[[#This Row],[Units per Hour]])^0.5))^2)) -> 0 | O21: =IF(Operations[[#This Row],[Repair Category]]="",0,(((Operations[[#This Row],[Age]]+1)*Operations[[#This Row],[Annual Use]]/Operations[[#This Row],[Units per Hour]]/1000)^VLOOKUP(Operations[[#This Row],[Repair Category]],ImpRepairFac[],4,FALSE)-(Operations[[#This Row],[Age]]*Operations[[#This Row],[Annual Use]]/Operations[[#This Row],[Units per Hour]]/1000)^VLOOKUP(Operations[[#This Row],[Repair Category]],ImpRepairFac[],4,FALSE))*Operations[[#This Row],[Calc List Price]]*VLOOKUP(Operations[[#This Row],[Repair Category]],ImpRepairFac[],3,FALSE)/Operations[[#This Row],[Annual Use]]) -> 0 | P21: =IF(Operations[[#This Row],[Calc List Price]]=0,0,Operations[[#This Row],[Calc List Price]]*(VLOOKUP(Operations[[#This Row],[Depreciation Category]],ImpDepLookup,2,FALSE)-VLOOKUP(Operations[[#This Row],[Depreciation Category]],ImpDepLookup,3,FALSE)*Operations[[#This Row],[Age]]^0.5-VLOOKUP(Operations[[#This Row],[Depreciation Category]],ImpDepLookup,4,FALSE)*(Operations[[#This Row],[Age]]*Operations[[#This Row],[Annual Use]]/Operations[[#This Row],[Units per Hour]])^0.5)^2) -> 0 | Q21: =IF(Operations[[#This Row],[Calc List Price]]=0,0,Operations[[#This Row],[Calc List Price]]*(VLOOKUP(Operations[[#This Row],[Depreciation Category]],ImpDepLookup,2,FALSE)-VLOOKUP(Operations[[#This Row],[Depreciation Category]],ImpDepLookup,3,FALSE)*(Operations[[#This Row],[Age]]+1)^0.5-VLOOKUP(Operations[[#This Row],[Depreciation Category]],ImpDepLookup,4,FALSE)*(Operations[[#This Row],[Age]]*Operations[[#This Row],[Annual Use]]/Operations[[#This Row],[Units per Hour]])^0.5)^2) -> 0 | R21: =IF(Operations[[#This Row],[Calc List Price]]=0,0,IF(Operations[[#This Row],[Units per Hour]]*Operations[[#This Row],[Annual Use]]=0,0,(Operations[[#This Row],[Calc Beg Yr. Value]]-Operations[[#This Row],[Calc End Yr. Value]])/(Operations[[#This Row],[Annual Use]]))) -> 0 | S21: =IF(Operations[[#This Row],[Annual Use]]=0,0,Operations[[#This Row],[Calc Beg Yr. Value]]*'General Variables'!$B$9/Operations[[#This Row],[Annual Use]]) -> 0 | T21: =IF(Operations[[#This Row],[Annual Use]]=0,0,Operations[[#This Row],[Calc Beg Yr. Value]]*'General Variables'!$B$10/Operations[[#This Row],[Annual Use]]) -> 0 | U21: =SUM(Operations[[#This Row],[Depreciation per Unit]:[Opportunity Cost per Unit]]) -> 0 | W21: Mower-conditioner | X21: HARVESTING | Y21: 0.18 | Z21: 1.6 | AA21: 2500
A22: Double Windrows | B22: acre | C22: Rake - Side delivery | D22: Swathers and all other harvest equipment | E22: 7187 | G22: 20 | H22: 300 | I22: 20 | J22: 1.1 | K22: Medium Tractor | L22: 2.107042254 | N22: =IF(Operations[[#This Row],[List Price]]>1,Operations[[#This Row],[List Price]],IF(Operations[[#This Row],[Depreciation Category]]=0,0,Operations[[#This Row],[Begin Yr. Value]]/(VLOOKUP(Operations[[#This Row],[Depreciation Category]],ImpDepLookup,2,FALSE)-VLOOKUP(Operations[[#This Row],[Depreciation Category]],ImpDepLookup,3,FALSE)*Operations[[#This Row],[Age]]^0.5-VLOOKUP(Operations[[#This Row],[Depreciation Category]],ImpDepLookup,4,FALSE)*(Operations[[#This Row],[Age]]*(Operations[[#This Row],[Age]]*Operations[[#This Row],[Annual Use]]/Operations[[#This Row],[Units per Hour]])^0.5))^2)) -> 7187 | O22: =IF(Operations[[#This Row],[Repair Category]]="",0,(((Operations[[#This Row],[Age]]+1)*Operations[[#This Row],[Annual Use]]/Operations[[#This Row],[Units per Hour]]/1000)^VLOOKUP(Operations[[#This Row],[Repair Category]],ImpRepairFac[],4,FALSE)-(Operations[[#This Row],[Age]]*Operations[[#This Row],[Annual Use]]/Operations[[#This Row],[Units per Hour]]/1000)^VLOOKUP(Operations[[#This Row],[Repair Category]],ImpRepairFac[],4,FALSE))*Operations[[#This Row],[Calc List Price]]*VLOOKUP(Operations[[#This Row],[Repair Category]],ImpRepairFac[],3,FALSE)/Operations[[#This Row],[Annual Use]]) -> 0.05336079836 | P22: =IF(Operations[[#This Row],[Calc List Price]]=0,0,Operations[[#This Row],[Calc List Price]]*(VLOOKUP(Operations[[#This Row],[Depreciation Category]],ImpDepLookup,2,FALSE)-VLOOKUP(Operations[[#This Row],[Depreciation Category]],ImpDepLookup,3,FALSE)*Operations[[#This Row],[Age]]^0.5-VLOOKUP(Operations[[#This Row],[Depreciation Category]],ImpDepLookup,4,FALSE)*(Operations[[#This Row],[Age]]*Operations[[#This Row],[Annual Use]]/Operations[[#This Row],[Units per Hour]])^0.5)^2) -> 1059.962935 | Q22: =IF(Operations[[#This Row],[Calc List Price]]=0,0,Operations[[#This Row],[Calc List Price]]*(VLOOKUP(Operations[[#This Row],[Depreciation Category]],ImpDepLookup,2,FALSE)-VLOOKUP(Operations[[#This Row],[Depreciation Category]],ImpDepLookup,3,FALSE)*(Operations[[#This Row],[Age]]+1)^0.5-VLOOKUP(Operations[[#This Row],[Depreciation Category]],ImpDepLookup,4,FALSE)*(Operations[[#This Row],[Age]]*Operations[[#This Row],[Annual Use]]/Operations[[#This Row],[Units per Hour]])^0.5)^2) -> 1005.211464 | R22: =IF(Operations[[#This Row],[Calc List Price]]=0,0,IF(Operations[[#This Row],[Units per Hour]]*Operations[[#This Row],[Annual Use]]=0,0,(Operations[[#This Row],[Calc Beg Yr. Value]]-Operations[[#This Row],[Calc End Yr. Value]])/(Operations[[#This Row],[Annual Use]]))) -> 0.1825049015 | S22: =IF(Operations[[#This Row],[Annual Use]]=0,0,Operations[[#This Row],[Calc Beg Yr. Value]]*'General Variables'!$B$9/Operations[[#This Row],[Annual Use]]) -> 0.07066419564 | T22: =IF(Operations[[#This Row],[Annual Use]]=0,0,Operations[[#This Row],[Calc Beg Yr. Value]]*'General Variables'!$B$10/Operations[[#This Row],[Annual Use]]) -> 0.1413283913 | U22: =SUM(Operations[[#This Row],[Depreciation per Unit]:[Opportunity Cost per Unit]]) -> 0.3944974884 | W22: Mower-conditioner(rotary) | X22: HARVESTING | Y22: 0.16 | Z22: 2.0 | AA22: 2500
A23: Drill | B23: acre | C23: Drill - Grain | D23: Planters | E23: 62454 | G23: 10 | H23: 1000 | I23: 12.5 | J23: 1.1 | K23: Medium Tractor | L23: 4.986666667 | N23: =IF(Operations[[#This Row],[List Price]]>1,Operations[[#This Row],[List Price]],IF(Operations[[#This Row],[Depreciation Category]]=0,0,Operations[[#This Row],[Begin Yr. Value]]/(VLOOKUP(Operations[[#This Row],[Depreciation Category]],ImpDepLookup,2,FALSE)-VLOOKUP(Operations[[#This Row],[Depreciation Category]],ImpDepLookup,3,FALSE)*Operations[[#This Row],[Age]]^0.5-VLOOKUP(Operations[[#This Row],[Depreciation Category]],ImpDepLookup,4,FALSE)*(Operations[[#This Row],[Age]]*(Operations[[#This Row],[Age]]*Operations[[#This Row],[Annual Use]]/Operations[[#This Row],[Units per Hour]])^0.5))^2)) -> 62454 | O23: =IF(Operations[[#This Row],[Repair Category]]="",0,(((Operations[[#This Row],[Age]]+1)*Operations[[#This Row],[Annual Use]]/Operations[[#This Row],[Units per Hour]]/1000)^VLOOKUP(Operations[[#This Row],[Repair Category]],ImpRepairFac[],4,FALSE)-(Operations[[#This Row],[Age]]*Operations[[#This Row],[Annual Use]]/Operations[[#This Row],[Units per Hour]]/1000)^VLOOKUP(Operations[[#This Row],[Repair Category]],ImpRepairFac[],4,FALSE))*Operations[[#This Row],[Calc List Price]]*VLOOKUP(Operations[[#This Row],[Repair Category]],ImpRepairFac[],3,FALSE)/Operations[[#This Row],[Annual Use]]) -> 2.77169087 | P23: =IF(Operations[[#This Row],[Calc List Price]]=0,0,Operations[[#This Row],[Calc List Price]]*(VLOOKUP(Operations[[#This Row],[Depreciation Category]],ImpDepLookup,2,FALSE)-VLOOKUP(Operations[[#This Row],[Depreciation Category]],ImpDepLookup,3,FALSE)*Operations[[#This Row],[Age]]^0.5-VLOOKUP(Operations[[#This Row],[Depreciation Category]],ImpDepLookup,4,FALSE)*(Operations[[#This Row],[Age]]*Operations[[#This Row],[Annual Use]]/Operations[[#This Row],[Units per Hour]])^0.5)^2) -> 25289.5967 | Q23: =IF(Operations[[#This Row],[Calc List Price]]=0,0,Operations[[#This Row],[Calc List Price]]*(VLOOKUP(Operations[[#This Row],[Depreciation Category]],ImpDepLookup,2,FALSE)-VLOOKUP(Operations[[#This Row],[Depreciation Category]],ImpDepLookup,3,FALSE)*(Operations[[#This Row],[Age]]+1)^0.5-VLOOKUP(Operations[[#This Row],[Depreciation Category]],ImpDepLookup,4,FALSE)*(Operations[[#This Row],[Age]]*Operations[[#This Row],[Annual Use]]/Operations[[#This Row],[Units per Hour]])^0.5)^2) -> 24341.73181 | R23: =IF(Operations[[#This Row],[Calc List Price]]=0,0,IF(Operations[[#This Row],[Units per Hour]]*Operations[[#This Row],[Annual Use]]=0,0,(Operations[[#This Row],[Calc Beg Yr. Value]]-Operations[[#This Row],[Calc End Yr. Value]])/(Operations[[#This Row],[Annual Use]]))) -> 0.9478648882 | S23: =IF(Operations[[#This Row],[Annual Use]]=0,0,Operations[[#This Row],[Calc Beg Yr. Value]]*'General Variables'!$B$9/Operations[[#This Row],[Annual Use]]) -> 0.505791934 | T23: =IF(Operations[[#This Row],[Annual Use]]=0,0,Operations[[#This Row],[Calc Beg Yr. Value]]*'General Variables'!$B$10/Operations[[#This Row],[Annual Use]]) -> 1.011583868 | U23: =SUM(Operations[[#This Row],[Depreciation per Unit]:[Opportunity Cost per Unit]]) -> 2.46524069 | W23: Mulcher-packer | X23: TILLAGE&PLANTING | Y23: 0.16 | Z23: 1.3 | AA23: 2000
A24: Drill w/ Fertillizer | B24: acre | C24: Drill - Grain | D24: Planters | E24: 62454 | G24: 10 | H24: 1000 | I24: 11 | J24: 1.2 | K24: Medium Tractor | L24: 5 | N24: =IF(Operations[[#This Row],[List Price]]>1,Operations[[#This Row],[List Price]],IF(Operations[[#This Row],[Depreciation Category]]=0,0,Operations[[#This Row],[Begin Yr. Value]]/(VLOOKUP(Operations[[#This Row],[Depreciation Category]],ImpDepLookup,2,FALSE)-VLOOKUP(Operations[[#This Row],[Depreciation Category]],ImpDepLookup,3,FALSE)*Operations[[#This Row],[Age]]^0.5-VLOOKUP(Operations[[#This Row],[Depreciation Category]],ImpDepLookup,4,FALSE)*(Operations[[#This Row],[Age]]*(Operations[[#This Row],[Age]]*Operations[[#This Row],[Annual Use]]/Operations[[#This Row],[Units per Hour]])^0.5))^2)) -> 62454 | O24: =IF(Operations[[#This Row],[Repair Category]]="",0,(((Operations[[#This Row],[Age]]+1)*Operations[[#This Row],[Annual Use]]/Operations[[#This Row],[Units per Hour]]/1000)^VLOOKUP(Operations[[#This Row],[Repair Category]],ImpRepairFac[],4,FALSE)-(Operations[[#This Row],[Age]]*Operations[[#This Row],[Annual Use]]/Operations[[#This Row],[Units per Hour]]/1000)^VLOOKUP(Operations[[#This Row],[Repair Category]],ImpRepairFac[],4,FALSE))*Operations[[#This Row],[Calc List Price]]*VLOOKUP(Operations[[#This Row],[Repair Category]],ImpRepairFac[],3,FALSE)/Operations[[#This Row],[Annual Use]]) -> 3.625193393 | P24: =IF(Operations[[#This Row],[Calc List Price]]=0,0,Operations[[#This Row],[Calc List Price]]*(VLOOKUP(Operations[[#This Row],[Depreciation Category]],ImpDepLookup,2,FALSE)-VLOOKUP(Operations[[#This Row],[Depreciation Category]],ImpDepLookup,3,FALSE)*Operations[[#This Row],[Age]]^0.5-VLOOKUP(Operations[[#This Row],[Depreciation Category]],ImpDepLookup,4,FALSE)*(Operations[[#This Row],[Age]]*Operations[[#This Row],[Annual Use]]/Operations[[#This Row],[Units per Hour]])^0.5)^2) -> 25289.5967 | Q24: =IF(Operations[[#This Row],[Calc List Price]]=0,0,Operations[[#This Row],[Calc List Price]]*(VLOOKUP(Operations[[#This Row],[Depreciation Category]],ImpDepLookup,2,FALSE)-VLOOKUP(Operations[[#This Row],[Depreciation Category]],ImpDepLookup,3,FALSE)*(Operations[[#This Row],[Age]]+1)^0.5-VLOOKUP(Operations[[#This Row],[Depreciation Category]],ImpDepLookup,4,FALSE)*(Operations[[#This Row],[Age]]*Operations[[#This Row],[Annual Use]]/Operations[[#This Row],[Units per Hour]])^0.5)^2) -> 24341.73181 | R24: =IF(Operations[[#This Row],[Calc List Price]]=0,0,IF(Operations[[#This Row],[Units per Hour]]*Operations[[#This Row],[Annual Use]]=0,0,(Operations[[#This Row],[Calc Beg Yr. Value]]-Operations[[#This Row],[Calc End Yr. Value]])/(Operations[[#This Row],[Annual Use]]))) -> 0.9478648882 | S24: =IF(Operations[[#This Row],[Annual Use]]=0,0,Operations[[#This Row],[Calc Beg Yr. Value]]*'General Variables'!$B$9/Operations[[#This Row],[Annual Use]]) -> 0.505791934 | T24: =IF(Operations[[#This Row],[Annual Use]]=0,0,Operations[[#This Row],[Calc Beg Yr. Value]]*'General Variables'!$B$10/Operations[[#This Row],[Annual Use]]) -> 1.011583868 | U24: =SUM(Operations[[#This Row],[Depreciation per Unit]:[Opportunity Cost per Unit]]) -> 2.46524069 | W24: Planter - Row crop | X24: TILLAGE&PLANTING | Y24: 0.32 | Z24: 2.1 | AA24: 1500
A25: Dry Grain | B25: bushel | N25: =IF(Operations[[#This Row],[List Price]]>1,Operations[[#This Row],[List Price]],IF(Operations[[#This Row],[Depreciation Category]]=0,0,Operations[[#This Row],[Begin Yr. Value]]/(VLOOKUP(Operations[[#This Row],[Depreciation Category]],ImpDepLookup,2,FALSE)-VLOOKUP(Operations[[#This Row],[Depreciation Category]],ImpDepLookup,3,FALSE)*Operations[[#This Row],[Age]]^0.5-VLOOKUP(Operations[[#This Row],[Depreciation Category]],ImpDepLookup,4,FALSE)*(Operations[[#This Row],[Age]]*(Operations[[#This Row],[Age]]*Operations[[#This Row],[Annual Use]]/Operations[[#This Row],[Units per Hour]])^0.5))^2)) -> 0 | O25: =IF(Operations[[#This Row],[Repair Category]]="",0,(((Operations[[#This Row],[Age]]+1)*Operations[[#This Row],[Annual Use]]/Operations[[#This Row],[Units per Hour]]/1000)^VLOOKUP(Operations[[#This Row],[Repair Category]],ImpRepairFac[],4,FALSE)-(Operations[[#This Row],[Age]]*Operations[[#This Row],[Annual Use]]/Operations[[#This Row],[Units per Hour]]/1000)^VLOOKUP(Operations[[#This Row],[Repair Category]],ImpRepairFac[],4,FALSE))*Operations[[#This Row],[Calc List Price]]*VLOOKUP(Operations[[#This Row],[Repair Category]],ImpRepairFac[],3,FALSE)/Operations[[#This Row],[Annual Use]]) -> 0 | P25: =IF(Operations[[#This Row],[Calc List Price]]=0,0,Operations[[#This Row],[Calc List Price]]*(VLOOKUP(Operations[[#This Row],[Depreciation Category]],ImpDepLookup,2,FALSE)-VLOOKUP(Operations[[#This Row],[Depreciation Category]],ImpDepLookup,3,FALSE)*Operations[[#This Row],[Age]]^0.5-VLOOKUP(Operations[[#This Row],[Depreciation Category]],ImpDepLookup,4,FALSE)*(Operations[[#This Row],[Age]]*Operations[[#This Row],[Annual Use]]/Operations[[#This Row],[Units per Hour]])^0.5)^2) -> 0 | Q25: =IF(Operations[[#This Row],[Calc List Price]]=0,0,Operations[[#This Row],[Calc List Price]]*(VLOOKUP(Operations[[#This Row],[Depreciation Category]],ImpDepLookup,2,FALSE)-VLOOKUP(Operations[[#This Row],[Depreciation Category]],ImpDepLookup,3,FALSE)*(Operations[[#This Row],[Age]]+1)^0.5-VLOOKUP(Operations[[#This Row],[Depreciation Category]],ImpDepLookup,4,FALSE)*(Operations[[#This Row],[Age]]*Operations[[#This Row],[Annual Use]]/Operations[[#This Row],[Units per Hour]])^0.5)^2) -> 0 | R25: =IF(Operations[[#This Row],[Calc List Price]]=0,0,IF(Operations[[#This Row],[Units per Hour]]*Operations[[#This Row],[Annual Use]]=0,0,(Operations[[#This Row],[Calc Beg Yr. Value]]-Operations[[#This Row],[Calc End Yr. Value]])/(Operations[[#This Row],[Annual Use]]))) -> 0 | S25: =IF(Operations[[#This Row],[Annual Use]]=0,0,Operations[[#This Row],[Calc Beg Yr. Value]]*'General Variables'!$B$9/Operations[[#This Row],[Annual Use]]) -> 0 | T25: =IF(Operations[[#This Row],[Annual Use]]=0,0,Operations[[#This Row],[Calc Beg Yr. Value]]*'General Variables'!$B$10/Operations[[#This Row],[Annual Use]]) -> 0 | U25: =SUM(Operations[[#This Row],[Depreciation per Unit]:[Opportunity Cost per Unit]]) -> 0 | W25: Plow - Moldboard | X25: TILLAGE&PLANTING | Y25: 0.29 | Z25: 1.8 | AA25: 2000
A26: Fallow Master | B26: acre | C26: Mulcher-packer | D26: Disks and all other tillage equipment | E26: 56958 | G26: 5 | H26: 2000 | I26: 12.5 | J26: 1.1 | K26: Large Tractor | L26: 8.622580645 | N26: =IF(Operations[[#This Row],[List Price]]>1,Operations[[#This Row],[List Price]],IF(Operations[[#This Row],[Depreciation Category]]=0,0,Operations[[#This Row],[Begin Yr. Value]]/(VLOOKUP(Operations[[#This Row],[Depreciation Category]],ImpDepLookup,2,FALSE)-VLOOKUP(Operations[[#This Row],[Depreciation Category]],ImpDepLookup,3,FALSE)*Operations[[#This Row],[Age]]^0.5-VLOOKUP(Operations[[#This Row],[Depreciation Category]],ImpDepLookup,4,FALSE)*(Operations[[#This Row],[Age]]*(Operations[[#This Row],[Age]]*Operations[[#This Row],[Annual Use]]/Operations[[#This Row],[Units per Hour]])^0.5))^2)) -> 56958 | O26: =IF(Operations[[#This Row],[Repair Category]]="",0,(((Operations[[#This Row],[Age]]+1)*Operations[[#This Row],[Annual Use]]/Operations[[#This Row],[Units per Hour]]/1000)^VLOOKUP(Operations[[#This Row],[Repair Category]],ImpRepairFac[],4,FALSE)-(Operations[[#This Row],[Age]]*Operations[[#This Row],[Annual Use]]/Operations[[#This Row],[Units per Hour]]/1000)^VLOOKUP(Operations[[#This Row],[Repair Category]],ImpRepairFac[],4,FALSE))*Operations[[#This Row],[Calc List Price]]*VLOOKUP(Operations[[#This Row],[Repair Category]],ImpRepairFac[],3,FALSE)/Operations[[#This Row],[Annual Use]]) -> 0.9118575014 | P26: =IF(Operations[[#This Row],[Calc List Price]]=0,0,Operations[[#This Row],[Calc List Price]]*(VLOOKUP(Operations[[#This Row],[Depreciation Category]],ImpDepLookup,2,FALSE)-VLOOKUP(Operations[[#This Row],[Depreciation Category]],ImpDepLookup,3,FALSE)*Operations[[#This Row],[Age]]^0.5-VLOOKUP(Operations[[#This Row],[Depreciation Category]],ImpDepLookup,4,FALSE)*(Operations[[#This Row],[Age]]*Operations[[#This Row],[Annual Use]]/Operations[[#This Row],[Units per Hour]])^0.5)^2) -> 23698.34163 | Q26: =IF(Operations[[#This Row],[Calc List Price]]=0,0,Operations[[#This Row],[Calc List Price]]*(VLOOKUP(Operations[[#This Row],[Depreciation Category]],ImpDepLookup,2,FALSE)-VLOOKUP(Operations[[#This Row],[Depreciation Category]],ImpDepLookup,3,FALSE)*(Operations[[#This Row],[Age]]+1)^0.5-VLOOKUP(Operations[[#This Row],[Depreciation Category]],ImpDepLookup,4,FALSE)*(Operations[[#This Row],[Age]]*Operations[[#This Row],[Annual Use]]/Operations[[#This Row],[Units per Hour]])^0.5)^2) -> 22004.69923 | R26: =IF(Operations[[#This Row],[Calc List Price]]=0,0,IF(Operations[[#This Row],[Units per Hour]]*Operations[[#This Row],[Annual Use]]=0,0,(Operations[[#This Row],[Calc Beg Yr. Value]]-Operations[[#This Row],[Calc End Yr. Value]])/(Operations[[#This Row],[Annual Use]]))) -> 0.8468211977 | S26: =IF(Operations[[#This Row],[Annual Use]]=0,0,Operations[[#This Row],[Calc Beg Yr. Value]]*'General Variables'!$B$9/Operations[[#This Row],[Annual Use]]) -> 0.2369834163 | T26: =IF(Operations[[#This Row],[Annual Use]]=0,0,Operations[[#This Row],[Calc Beg Yr. Value]]*'General Variables'!$B$10/Operations[[#This Row],[Annual Use]]) -> 0.4739668325 | U26: =SUM(Operations[[#This Row],[Depreciation per Unit]:[Opportunity Cost per Unit]]) -> 1.557771446 | W26: Potato harvester | X26: HARVESTING | Y26: 0.19 | Z26: 1.4 | AA26: 2500
A27: Field Cultivation | B27: acre | C27: Cultivator - Field | D27: Disks and all other tillage equipment | E27: 56958 | G27: 5 | H27: 2000 | I27: 15 | J27: 1.1 | K27: Medium Tractor | L27: 8.196774194 | N27: =IF(Operations[[#This Row],[List Price]]>1,Operations[[#This Row],[List Price]],IF(Operations[[#This Row],[Depreciation Category]]=0,0,Operations[[#This Row],[Begin Yr. Value]]/(VLOOKUP(Operations[[#This Row],[Depreciation Category]],ImpDepLookup,2,FALSE)-VLOOKUP(Operations[[#This Row],[Depreciation Category]],ImpDepLookup,3,FALSE)*Operations[[#This Row],[Age]]^0.5-VLOOKUP(Operations[[#This Row],[Depreciation Category]],ImpDepLookup,4,FALSE)*(Operations[[#This Row],[Age]]*(Operations[[#This Row],[Age]]*Operations[[#This Row],[Annual Use]]/Operations[[#This Row],[Units per Hour]])^0.5))^2)) -> 56958 | O27: =IF(Operations[[#This Row],[Repair Category]]="",0,(((Operations[[#This Row],[Age]]+1)*Operations[[#This Row],[Annual Use]]/Operations[[#This Row],[Units per Hour]]/1000)^VLOOKUP(Operations[[#This Row],[Repair Category]],ImpRepairFac[],4,FALSE)-(Operations[[#This Row],[Age]]*Operations[[#This Row],[Annual Use]]/Operations[[#This Row],[Units per Hour]]/1000)^VLOOKUP(Operations[[#This Row],[Repair Category]],ImpRepairFac[],4,FALSE))*Operations[[#This Row],[Calc List Price]]*VLOOKUP(Operations[[#This Row],[Repair Category]],ImpRepairFac[],3,FALSE)/Operations[[#This Row],[Annual Use]]) -> 1.267453405 | P27: =IF(Operations[[#This Row],[Calc List Price]]=0,0,Operations[[#This Row],[Calc List Price]]*(VLOOKUP(Operations[[#This Row],[Depreciation Category]],ImpDepLookup,2,FALSE)-VLOOKUP(Operations[[#This Row],[Depreciation Category]],ImpDepLookup,3,FALSE)*Operations[[#This Row],[Age]]^0.5-VLOOKUP(Operations[[#This Row],[Depreciation Category]],ImpDepLookup,4,FALSE)*(Operations[[#This Row],[Age]]*Operations[[#This Row],[Annual Use]]/Operations[[#This Row],[Units per Hour]])^0.5)^2) -> 23698.34163 | Q27: =IF(Operations[[#This Row],[Calc List Price]]=0,0,Operations[[#This Row],[Calc List Price]]*(VLOOKUP(Operations[[#This Row],[Depreciation Category]],ImpDepLookup,2,FALSE)-VLOOKUP(Operations[[#This Row],[Depreciation Category]],ImpDepLookup,3,FALSE)*(Operations[[#This Row],[Age]]+1)^0.5-VLOOKUP(Operations[[#This Row],[Depreciation Category]],ImpDepLookup,4,FALSE)*(Operations[[#This Row],[Age]]*Operations[[#This Row],[Annual Use]]/Operations[[#This Row],[Units per Hour]])^0.5)^2) -> 22004.69923 | R27: =IF(Operations[[#This Row],[Calc List Price]]=0,0,IF(Operations[[#This Row],[Units per Hour]]*Operations[[#This Row],[Annual Use]]=0,0,(Operations[[#This Row],[Calc Beg Yr. Value]]-Operations[[#This Row],[Calc End Yr. Value]])/(Operations[[#This Row],[Annual Use]]))) -> 0.8468211977 | S27: =IF(Operations[[#This Row],[Annual Use]]=0,0,Operations[[#This Row],[Calc Beg Yr. Value]]*'General Variables'!$B$9/Operations[[#This Row],[Annual Use]]) -> 0.2369834163 | T27: =IF(Operations[[#This Row],[Annual Use]]=0,0,Operations[[#This Row],[Calc Beg Yr. Value]]*'General Variables'!$B$10/Operations[[#This Row],[Annual Use]]) -> 0.4739668325 | U27: =SUM(Operations[[#This Row],[Depreciation per Unit]:[Opportunity Cost per Unit]]) -> 1.557771446 | W27: Rake - Side delivery | X27: HARVESTING | Y27: 0.17 | Z27: 1.4 | AA27: 2500
A28: Grass Drill | B28: acre | C28: Drill - Grain | D28: Planters | E28: 73000 | G28: 10 | H28: 1000 | I28: 9 | J28: 1.1 | K28: Medium Tractor | L28: 4.293680297 | N28: =IF(Operations[[#This Row],[List Price]]>1,Operations[[#This Row],[List Price]],IF(Operations[[#This Row],[Depreciation Category]]=0,0,Operations[[#This Row],[Begin Yr. Value]]/(VLOOKUP(Operations[[#This Row],[Depreciation Category]],ImpDepLookup,2,FALSE)-VLOOKUP(Operations[[#This Row],[Depreciation Category]],ImpDepLookup,3,FALSE)*Operations[[#This Row],[Age]]^0.5-VLOOKUP(Operations[[#This Row],[Depreciation Category]],ImpDepLookup,4,FALSE)*(Operations[[#This Row],[Age]]*(Operations[[#This Row],[Age]]*Operations[[#This Row],[Annual Use]]/Operations[[#This Row],[Units per Hour]])^0.5))^2)) -> 73000 | O28: =IF(Operations[[#This Row],[Repair Category]]="",0,(((Operations[[#This Row],[Age]]+1)*Operations[[#This Row],[Annual Use]]/Operations[[#This Row],[Units per Hour]]/1000)^VLOOKUP(Operations[[#This Row],[Repair Category]],ImpRepairFac[],4,FALSE)-(Operations[[#This Row],[Age]]*Operations[[#This Row],[Annual Use]]/Operations[[#This Row],[Units per Hour]]/1000)^VLOOKUP(Operations[[#This Row],[Repair Category]],ImpRepairFac[],4,FALSE))*Operations[[#This Row],[Calc List Price]]*VLOOKUP(Operations[[#This Row],[Repair Category]],ImpRepairFac[],3,FALSE)/Operations[[#This Row],[Annual Use]]) -> 6.458165199 | P28: =IF(Operations[[#This Row],[Calc List Price]]=0,0,Operations[[#This Row],[Calc List Price]]*(VLOOKUP(Operations[[#This Row],[Depreciation Category]],ImpDepLookup,2,FALSE)-VLOOKUP(Operations[[#This Row],[Depreciation Category]],ImpDepLookup,3,FALSE)*Operations[[#This Row],[Age]]^0.5-VLOOKUP(Operations[[#This Row],[Depreciation Category]],ImpDepLookup,4,FALSE)*(Operations[[#This Row],[Age]]*Operations[[#This Row],[Annual Use]]/Operations[[#This Row],[Units per Hour]])^0.5)^2) -> 29560.00511 | Q28: =IF(Operations[[#This Row],[Calc List Price]]=0,0,Operations[[#This Row],[Calc List Price]]*(VLOOKUP(Operations[[#This Row],[Depreciation Category]],ImpDepLookup,2,FALSE)-VLOOKUP(Operations[[#This Row],[Depreciation Category]],ImpDepLookup,3,FALSE)*(Operations[[#This Row],[Age]]+1)^0.5-VLOOKUP(Operations[[#This Row],[Depreciation Category]],ImpDepLookup,4,FALSE)*(Operations[[#This Row],[Age]]*Operations[[#This Row],[Annual Use]]/Operations[[#This Row],[Units per Hour]])^0.5)^2) -> 28452.08349 | R28: =IF(Operations[[#This Row],[Calc List Price]]=0,0,IF(Operations[[#This Row],[Units per Hour]]*Operations[[#This Row],[Annual Use]]=0,0,(Operations[[#This Row],[Calc Beg Yr. Value]]-Operations[[#This Row],[Calc End Yr. Value]])/(Operations[[#This Row],[Annual Use]]))) -> 1.10792162 | S28: =IF(Operations[[#This Row],[Annual Use]]=0,0,Operations[[#This Row],[Calc Beg Yr. Value]]*'General Variables'!$B$9/Operations[[#This Row],[Annual Use]]) -> 0.5912001022 | T28: =IF(Operations[[#This Row],[Annual Use]]=0,0,Operations[[#This Row],[Calc Beg Yr. Value]]*'General Variables'!$B$10/Operations[[#This Row],[Annual Use]]) -> 1.182400204 | U28: =SUM(Operations[[#This Row],[Depreciation per Unit]:[Opportunity Cost per Unit]]) -> 2.881521926 | W28: Roller-packer | X28: TILLAGE&PLANTING | Y28: 0.16 | Z28: 1.3 | AA28: 2000
A29: Harrow | B29: acre | C29: Harrow - Spring tooth | D29: Disks and all other tillage equipment | G29: 5 | H29: 1000 | I29: 18.5915493 | J29: 1.1 | K29: Medium Tractor | L29: 2.045070423 | N29: =IF(Operations[[#This Row],[List Price]]>1,Operations[[#This Row],[List Price]],IF(Operations[[#This Row],[Depreciation Category]]=0,0,Operations[[#This Row],[Begin Yr. Value]]/(VLOOKUP(Operations[[#This Row],[Depreciation Category]],ImpDepLookup,2,FALSE)-VLOOKUP(Operations[[#This Row],[Depreciation Category]],ImpDepLookup,3,FALSE)*Operations[[#This Row],[Age]]^0.5-VLOOKUP(Operations[[#This Row],[Depreciation Category]],ImpDepLookup,4,FALSE)*(Operations[[#This Row],[Age]]*(Operations[[#This Row],[Age]]*Operations[[#This Row],[Annual Use]]/Operations[[#This Row],[Units per Hour]])^0.5))^2)) -> 0 | O29: =IF(Operations[[#This Row],[Repair Category]]="",0,(((Operations[[#This Row],[Age]]+1)*Operations[[#This Row],[Annual Use]]/Operations[[#This Row],[Units per Hour]]/1000)^VLOOKUP(Operations[[#This Row],[Repair Category]],ImpRepairFac[],4,FALSE)-(Operations[[#This Row],[Age]]*Operations[[#This Row],[Annual Use]]/Operations[[#This Row],[Units per Hour]]/1000)^VLOOKUP(Operations[[#This Row],[Repair Category]],ImpRepairFac[],4,FALSE))*Operations[[#This Row],[Calc List Price]]*VLOOKUP(Operations[[#This Row],[Repair Category]],ImpRepairFac[],3,FALSE)/Operations[[#This Row],[Annual Use]]) -> 0 | P29: =IF(Operations[[#This Row],[Calc List Price]]=0,0,Operations[[#This Row],[Calc List Price]]*(VLOOKUP(Operations[[#This Row],[Depreciation Category]],ImpDepLookup,2,FALSE)-VLOOKUP(Operations[[#This Row],[Depreciation Category]],ImpDepLookup,3,FALSE)*Operations[[#This Row],[Age]]^0.5-VLOOKUP(Operations[[#This Row],[Depreciation Category]],ImpDepLookup,4,FALSE)*(Operations[[#This Row],[Age]]*Operations[[#This Row],[Annual Use]]/Operations[[#This Row],[Units per Hour]])^0.5)^2) -> 0 | Q29: =IF(Operations[[#This Row],[Calc List Price]]=0,0,Operations[[#This Row],[Calc List Price]]*(VLOOKUP(Operations[[#This Row],[Depreciation Category]],ImpDepLookup,2,FALSE)-VLOOKUP(Operations[[#This Row],[Depreciation Category]],ImpDepLookup,3,FALSE)*(Operations[[#This Row],[Age]]+1)^0.5-VLOOKUP(Operations[[#This Row],[Depreciation Category]],ImpDepLookup,4,FALSE)*(Operations[[#This Row],[Age]]*Operations[[#This Row],[Annual Use]]/Operations[[#This Row],[Units per Hour]])^0.5)^2) -> 0 | R29: =IF(Operations[[#This Row],[Calc List Price]]=0,0,IF(Operations[[#This Row],[Units per Hour]]*Operations[[#This Row],[Annual Use]]=0,0,(Operations[[#This Row],[Calc Beg Yr. Value]]-Operations[[#This Row],[Calc End Yr. Value]])/(Operations[[#This Row],[Annual Use]]))) -> 0 | S29: =IF(Operations[[#This Row],[Annual Use]]=0,0,Operations[[#This Row],[Calc Beg Yr. Value]]*'General Variables'!$B$9/Operations[[#This Row],[Annual Use]]) -> 0 | T29: =IF(Operations[[#This Row],[Annual Use]]=0,0,Operations[[#This Row],[Calc Beg Yr. Value]]*'General Variables'!$B$10/Operations[[#This Row],[Annual Use]]) -> 0 | U29: =SUM(Operations[[#This Row],[Depreciation per Unit]:[Opportunity Cost per Unit]]) -> 0 | W29: Rotary hoe | X29: TILLAGE&PLANTING | Y29: 0.23 | Z29: 1.4 | AA29: 2000
A30: Hoe | B30: acre | C30: Rotary hoe | D30: Disks and all other tillage equipment | E30: 22000 | F30: 3000 | G30: 5 | H30: 1000 | I30: 14.66666667 | J30: 1.1 | K30: Medium Tractor | L30: 3.666666667 | N30: =IF(Operations[[#This Row],[List Price]]>1,Operations[[#This Row],[List Price]],IF(Operations[[#This Row],[Depreciation Category]]=0,0,Operations[[#This Row],[Begin Yr. Value]]/(VLOOKUP(Operations[[#This Row],[Depreciation Category]],ImpDepLookup,2,FALSE)-VLOOKUP(Operations[[#This Row],[Depreciation Category]],ImpDepLookup,3,FALSE)*Operations[[#This Row],[Age]]^0.5-VLOOKUP(Operations[[#This Row],[Depreciation Category]],ImpDepLookup,4,FALSE)*(Operations[[#This Row],[Age]]*(Operations[[#This Row],[Age]]*Operations[[#This Row],[Annual Use]]/Operations[[#This Row],[Units per Hour]])^0.5))^2)) -> 22000 | O30: =IF(Operations[[#This Row],[Repair Category]]="",0,(((Operations[[#This Row],[Age]]+1)*Operations[[#This Row],[Annual Use]]/Operations[[#This Row],[Units per Hour]]/1000)^VLOOKUP(Operations[[#This Row],[Repair Category]],ImpRepairFac[],4,FALSE)-(Operations[[#This Row],[Age]]*Operations[[#This Row],[Annual Use]]/Operations[[#This Row],[Units per Hour]]/1000)^VLOOKUP(Operations[[#This Row],[Repair Category]],ImpRepairFac[],4,FALSE))*Operations[[#This Row],[Calc List Price]]*VLOOKUP(Operations[[#This Row],[Repair Category]],ImpRepairFac[],3,FALSE)/Operations[[#This Row],[Annual Use]]) -> 0.3261488098 | P30: =IF(Operations[[#This Row],[Calc List Price]]=0,0,Operations[[#This Row],[Calc List Price]]*(VLOOKUP(Operations[[#This Row],[Depreciation Category]],ImpDepLookup,2,FALSE)-VLOOKUP(Operations[[#This Row],[Depreciation Category]],ImpDepLookup,3,FALSE)*Operations[[#This Row],[Age]]^0.5-VLOOKUP(Operations[[#This Row],[Depreciation Category]],ImpDepLookup,4,FALSE)*(Operations[[#This Row],[Age]]*Operations[[#This Row],[Annual Use]]/Operations[[#This Row],[Units per Hour]])^0.5)^2) -> 9153.473011 | Q30: =IF(Operations[[#This Row],[Calc List Price]]=0,0,Operations[[#This Row],[Calc List Price]]*(VLOOKUP(Operations[[#This Row],[Depreciation Category]],ImpDepLookup,2,FALSE)-VLOOKUP(Operations[[#This Row],[Depreciation Category]],ImpDepLookup,3,FALSE)*(Operations[[#This Row],[Age]]+1)^0.5-VLOOKUP(Operations[[#This Row],[Depreciation Category]],ImpDepLookup,4,FALSE)*(Operations[[#This Row],[Age]]*Operations[[#This Row],[Annual Use]]/Operations[[#This Row],[Units per Hour]])^0.5)^2) -> 8499.304454 | R30: =IF(Operations[[#This Row],[Calc List Price]]=0,0,IF(Operations[[#This Row],[Units per Hour]]*Operations[[#This Row],[Annual Use]]=0,0,(Operations[[#This Row],[Calc Beg Yr. Value]]-Operations[[#This Row],[Calc End Yr. Value]])/(Operations[[#This Row],[Annual Use]]))) -> 0.6541685575 | S30: =IF(Operations[[#This Row],[Annual Use]]=0,0,Operations[[#This Row],[Calc Beg Yr. Value]]*'General Variables'!$B$9/Operations[[#This Row],[Annual Use]]) -> 0.1830694602 | T30: =IF(Operations[[#This Row],[Annual Use]]=0,0,Operations[[#This Row],[Calc Beg Yr. Value]]*'General Variables'!$B$10/Operations[[#This Row],[Annual Use]]) -> 0.3661389204 | U30: =SUM(Operations[[#This Row],[Depreciation per Unit]:[Opportunity Cost per Unit]]) -> 1.203376938 | W30: Rotary tiller | X30: TILLAGE&PLANTING | Y30: 0.36 | Z30: 2.0 | AA30: 1500
A31: Lg Rd Bale | B31: ton | C31: Baler - Large round | D31: Balers | E31: 21396 | G31: 5 | H31: 1000 | I31: 10 | J31: 1.1 | K31: Medium Tractor | L31: 2.876146789 | N31: =IF(Operations[[#This Row],[List Price]]>1,Operations[[#This Row],[List Price]],IF(Operations[[#This Row],[Depreciation Category]]=0,0,Operations[[#This Row],[Begin Yr. Value]]/(VLOOKUP(Operations[[#This Row],[Depreciation Category]],ImpDepLookup,2,FALSE)-VLOOKUP(Operations[[#This Row],[Depreciation Category]],ImpDepLookup,3,FALSE)*Operations[[#This Row],[Age]]^0.5-VLOOKUP(Operations[[#This Row],[Depreciation Category]],ImpDepLookup,4,FALSE)*(Operations[[#This Row],[Age]]*(Operations[[#This Row],[Age]]*Operations[[#This Row],[Annual Use]]/Operations[[#This Row],[Units per Hour]])^0.5))^2)) -> 21396 | O31: =IF(Operations[[#This Row],[Repair Category]]="",0,(((Operations[[#This Row],[Age]]+1)*Operations[[#This Row],[Annual Use]]/Operations[[#This Row],[Units per Hour]]/1000)^VLOOKUP(Operations[[#This Row],[Repair Category]],ImpRepairFac[],4,FALSE)-(Operations[[#This Row],[Age]]*Operations[[#This Row],[Annual Use]]/Operations[[#This Row],[Units per Hour]]/1000)^VLOOKUP(Operations[[#This Row],[Repair Category]],ImpRepairFac[],4,FALSE))*Operations[[#This Row],[Calc List Price]]*VLOOKUP(Operations[[#This Row],[Repair Category]],ImpRepairFac[],3,FALSE)/Operations[[#This Row],[Annual Use]]) -> 1.026284746 | P31: =IF(Operations[[#This Row],[Calc List Price]]=0,0,Operations[[#This Row],[Calc List Price]]*(VLOOKUP(Operations[[#This Row],[Depreciation Category]],ImpDepLookup,2,FALSE)-VLOOKUP(Operations[[#This Row],[Depreciation Category]],ImpDepLookup,3,FALSE)*Operations[[#This Row],[Age]]^0.5-VLOOKUP(Operations[[#This Row],[Depreciation Category]],ImpDepLookup,4,FALSE)*(Operations[[#This Row],[Age]]*Operations[[#This Row],[Annual Use]]/Operations[[#This Row],[Units per Hour]])^0.5)^2) -> 8388.788705 | Q31: =IF(Operations[[#This Row],[Calc List Price]]=0,0,Operations[[#This Row],[Calc List Price]]*(VLOOKUP(Operations[[#This Row],[Depreciation Category]],ImpDepLookup,2,FALSE)-VLOOKUP(Operations[[#This Row],[Depreciation Category]],ImpDepLookup,3,FALSE)*(Operations[[#This Row],[Age]]+1)^0.5-VLOOKUP(Operations[[#This Row],[Depreciation Category]],ImpDepLookup,4,FALSE)*(Operations[[#This Row],[Age]]*Operations[[#This Row],[Annual Use]]/Operations[[#This Row],[Units per Hour]])^0.5)^2) -> 7821.158398 | R31: =IF(Operations[[#This Row],[Calc List Price]]=0,0,IF(Operations[[#This Row],[Units per Hour]]*Operations[[#This Row],[Annual Use]]=0,0,(Operations[[#This Row],[Calc Beg Yr. Value]]-Operations[[#This Row],[Calc End Yr. Value]])/(Operations[[#This Row],[Annual Use]]))) -> 0.5676303062 | S31: =IF(Operations[[#This Row],[Annual Use]]=0,0,Operations[[#This Row],[Calc Beg Yr. Value]]*'General Variables'!$B$9/Operations[[#This Row],[Annual Use]]) -> 0.1677757741 | T31: =IF(Operations[[#This Row],[Annual Use]]=0,0,Operations[[#This Row],[Calc Beg Yr. Value]]*'General Variables'!$B$10/Operations[[#This Row],[Annual Use]]) -> 0.3355515482 | U31: =SUM(Operations[[#This Row],[Depreciation per Unit]:[Opportunity Cost per Unit]]) -> 1.070957628 | W31: Sprayer - Air-carrier | X31: MISCELLANEOUS | Y31: 0.20 | Z31: 1.6 | AA31: 2000
A32: Lg Sq Bale | B32: ton | C32: Baler - Large rectangular | D32: Balers | E32: 113735 | G32: 5 | H32: 1000 | I32: 16 | J32: 1.1 | K32: Medium Tractor | L32: 6.18597786 | N32: =IF(Operations[[#This Row],[List Price]]>1,Operations[[#This Row],[List Price]],IF(Operations[[#This Row],[Depreciation Category]]=0,0,Operations[[#This Row],[Begin Yr. Value]]/(VLOOKUP(Operations[[#This Row],[Depreciation Category]],ImpDepLookup,2,FALSE)-VLOOKUP(Operations[[#This Row],[Depreciation Category]],ImpDepLookup,3,FALSE)*Operations[[#This Row],[Age]]^0.5-VLOOKUP(Operations[[#This Row],[Depreciation Category]],ImpDepLookup,4,FALSE)*(Operations[[#This Row],[Age]]*(Operations[[#This Row],[Age]]*Operations[[#This Row],[Annual Use]]/Operations[[#This Row],[Units per Hour]])^0.5))^2)) -> 113735 | O32: =IF(Operations[[#This Row],[Repair Category]]="",0,(((Operations[[#This Row],[Age]]+1)*Operations[[#This Row],[Annual Use]]/Operations[[#This Row],[Units per Hour]]/1000)^VLOOKUP(Operations[[#This Row],[Repair Category]],ImpRepairFac[],4,FALSE)-(Operations[[#This Row],[Age]]*Operations[[#This Row],[Annual Use]]/Operations[[#This Row],[Units per Hour]]/1000)^VLOOKUP(Operations[[#This Row],[Repair Category]],ImpRepairFac[],4,FALSE))*Operations[[#This Row],[Calc List Price]]*VLOOKUP(Operations[[#This Row],[Repair Category]],ImpRepairFac[],3,FALSE)/Operations[[#This Row],[Annual Use]]) -> 0.5444336906 | P32: =IF(Operations[[#This Row],[Calc List Price]]=0,0,Operations[[#This Row],[Calc List Price]]*(VLOOKUP(Operations[[#This Row],[Depreciation Category]],ImpDepLookup,2,FALSE)-VLOOKUP(Operations[[#This Row],[Depreciation Category]],ImpDepLookup,3,FALSE)*Operations[[#This Row],[Age]]^0.5-VLOOKUP(Operations[[#This Row],[Depreciation Category]],ImpDepLookup,4,FALSE)*(Operations[[#This Row],[Age]]*Operations[[#This Row],[Annual Use]]/Operations[[#This Row],[Units per Hour]])^0.5)^2) -> 44592.39499 | Q32: =IF(Operations[[#This Row],[Calc List Price]]=0,0,Operations[[#This Row],[Calc List Price]]*(VLOOKUP(Operations[[#This Row],[Depreciation Category]],ImpDepLookup,2,FALSE)-VLOOKUP(Operations[[#This Row],[Depreciation Category]],ImpDepLookup,3,FALSE)*(Operations[[#This Row],[Age]]+1)^0.5-VLOOKUP(Operations[[#This Row],[Depreciation Category]],ImpDepLookup,4,FALSE)*(Operations[[#This Row],[Age]]*Operations[[#This Row],[Annual Use]]/Operations[[#This Row],[Units per Hour]])^0.5)^2) -> 41575.03507 | R32: =IF(Operations[[#This Row],[Calc List Price]]=0,0,IF(Operations[[#This Row],[Units per Hour]]*Operations[[#This Row],[Annual Use]]=0,0,(Operations[[#This Row],[Calc Beg Yr. Value]]-Operations[[#This Row],[Calc End Yr. Value]])/(Operations[[#This Row],[Annual Use]]))) -> 3.017359921 | S32: =IF(Operations[[#This Row],[Annual Use]]=0,0,Operations[[#This Row],[Calc Beg Yr. Value]]*'General Variables'!$B$9/Operations[[#This Row],[Annual Use]]) -> 0.8918478999 | T32: =IF(Operations[[#This Row],[Annual Use]]=0,0,Operations[[#This Row],[Calc Beg Yr. Value]]*'General Variables'!$B$10/Operations[[#This Row],[Annual Use]]) -> 1.7836958 | U32: =SUM(Operations[[#This Row],[Depreciation per Unit]:[Opportunity Cost per Unit]]) -> 5.692903621 | W32: Sprayer - Boom-type | X32: MISCELLANEOUS | Y32: 0.41 | Z32: 1.3 | AA32: 2500
A33: Lift Beets | B33: acre | C33: Sugar beet harvester | D33: Balers | E33: 110000 | G33: 5 | H33: 1000 | I33: 6 | J33: 1.1 | K33: Large Tractor | L33: 6.190697674 | N33: =IF(Operations[[#This Row],[List Price]]>1,Operations[[#This Row],[List Price]],IF(Operations[[#This Row],[Depreciation Category]]=0,0,Operations[[#This Row],[Begin Yr. Value]]/(VLOOKUP(Operations[[#This Row],[Depreciation Category]],ImpDepLookup,2,FALSE)-VLOOKUP(Operations[[#This Row],[Depreciation Category]],ImpDepLookup,3,FALSE)*Operations[[#This Row],[Age]]^0.5-VLOOKUP(Operations[[#This Row],[Depreciation Category]],ImpDepLookup,4,FALSE)*(Operations[[#This Row],[Age]]*(Operations[[#This Row],[Age]]*Operations[[#This Row],[Annual Use]]/Operations[[#This Row],[Units per Hour]])^0.5))^2)) -> 110000 | O33: =IF(Operations[[#This Row],[Repair Category]]="",0,(((Operations[[#This Row],[Age]]+1)*Operations[[#This Row],[Annual Use]]/Operations[[#This Row],[Units per Hour]]/1000)^VLOOKUP(Operations[[#This Row],[Repair Category]],ImpRepairFac[],4,FALSE)-(Operations[[#This Row],[Age]]*Operations[[#This Row],[Annual Use]]/Operations[[#This Row],[Units per Hour]]/1000)^VLOOKUP(Operations[[#This Row],[Repair Category]],ImpRepairFac[],4,FALSE))*Operations[[#This Row],[Calc List Price]]*VLOOKUP(Operations[[#This Row],[Repair Category]],ImpRepairFac[],3,FALSE)/Operations[[#This Row],[Annual Use]]) -> 13.69538832 | P33: =IF(Operations[[#This Row],[Calc List Price]]=0,0,Operations[[#This Row],[Calc List Price]]*(VLOOKUP(Operations[[#This Row],[Depreciation Category]],ImpDepLookup,2,FALSE)-VLOOKUP(Operations[[#This Row],[Depreciation Category]],ImpDepLookup,3,FALSE)*Operations[[#This Row],[Age]]^0.5-VLOOKUP(Operations[[#This Row],[Depreciation Category]],ImpDepLookup,4,FALSE)*(Operations[[#This Row],[Age]]*Operations[[#This Row],[Annual Use]]/Operations[[#This Row],[Units per Hour]])^0.5)^2) -> 43128.00325 | Q33: =IF(Operations[[#This Row],[Calc List Price]]=0,0,Operations[[#This Row],[Calc List Price]]*(VLOOKUP(Operations[[#This Row],[Depreciation Category]],ImpDepLookup,2,FALSE)-VLOOKUP(Operations[[#This Row],[Depreciation Category]],ImpDepLookup,3,FALSE)*(Operations[[#This Row],[Age]]+1)^0.5-VLOOKUP(Operations[[#This Row],[Depreciation Category]],ImpDepLookup,4,FALSE)*(Operations[[#This Row],[Age]]*Operations[[#This Row],[Annual Use]]/Operations[[#This Row],[Units per Hour]])^0.5)^2) -> 40209.7319 | R33: =IF(Operations[[#This Row],[Calc List Price]]=0,0,IF(Operations[[#This Row],[Units per Hour]]*Operations[[#This Row],[Annual Use]]=0,0,(Operations[[#This Row],[Calc Beg Yr. Value]]-Operations[[#This Row],[Calc End Yr. Value]])/(Operations[[#This Row],[Annual Use]]))) -> 2.918271344 | S33: =IF(Operations[[#This Row],[Annual Use]]=0,0,Operations[[#This Row],[Calc Beg Yr. Value]]*'General Variables'!$B$9/Operations[[#This Row],[Annual Use]]) -> 0.862560065 | T33: =IF(Operations[[#This Row],[Annual Use]]=0,0,Operations[[#This Row],[Calc Beg Yr. Value]]*'General Variables'!$B$10/Operations[[#This Row],[Annual Use]]) -> 1.72512013 | U33: =SUM(Operations[[#This Row],[Depreciation per Unit]:[Opportunity Cost per Unit]]) -> 5.505951539 | W33: Stalk chopper | X33: MISCELLANEOUS | Y33: 0.28 | Z33: 1.4 | AA33: 1200
A34: Load Lg Sq | B34: ton | C34: Wagon - Forage | D34: Swathers and all other harvest equipment | E34: 3971 | G34: 5 | H34: 3000 | I34: 20 | J34: 1.1 | K34: Medium Tractor | L34: 4 | N34: =IF(Operations[[#This Row],[List Price]]>1,Operations[[#This Row],[List Price]],IF(Operations[[#This Row],[Depreciation Category]]=0,0,Operations[[#This Row],[Begin Yr. Value]]/(VLOOKUP(Operations[[#This Row],[Depreciation Category]],ImpDepLookup,2,FALSE)-VLOOKUP(Operations[[#This Row],[Depreciation Category]],ImpDepLookup,3,FALSE)*Operations[[#This Row],[Age]]^0.5-VLOOKUP(Operations[[#This Row],[Depreciation Category]],ImpDepLookup,4,FALSE)*(Operations[[#This Row],[Age]]*(Operations[[#This Row],[Age]]*Operations[[#This Row],[Annual Use]]/Operations[[#This Row],[Units per Hour]])^0.5))^2)) -> 3971 | O34: =IF(Operations[[#This Row],[Repair Category]]="",0,(((Operations[[#This Row],[Age]]+1)*Operations[[#This Row],[Annual Use]]/Operations[[#This Row],[Units per Hour]]/1000)^VLOOKUP(Operations[[#This Row],[Repair Category]],ImpRepairFac[],4,FALSE)-(Operations[[#This Row],[Age]]*Operations[[#This Row],[Annual Use]]/Operations[[#This Row],[Units per Hour]]/1000)^VLOOKUP(Operations[[#This Row],[Repair Category]],ImpRepairFac[],4,FALSE))*Operations[[#This Row],[Calc List Price]]*VLOOKUP(Operations[[#This Row],[Repair Category]],ImpRepairFac[],3,FALSE)/Operations[[#This Row],[Annual Use]]) -> 0.04527291242 | P34: =IF(Operations[[#This Row],[Calc List Price]]=0,0,Operations[[#This Row],[Calc List Price]]*(VLOOKUP(Operations[[#This Row],[Depreciation Category]],ImpDepLookup,2,FALSE)-VLOOKUP(Operations[[#This Row],[Depreciation Category]],ImpDepLookup,3,FALSE)*Operations[[#This Row],[Age]]^0.5-VLOOKUP(Operations[[#This Row],[Depreciation Category]],ImpDepLookup,4,FALSE)*(Operations[[#This Row],[Age]]*Operations[[#This Row],[Annual Use]]/Operations[[#This Row],[Units per Hour]])^0.5)^2) -> 1370.698589 | Q34: =IF(Operations[[#This Row],[Calc List Price]]=0,0,Operations[[#This Row],[Calc List Price]]*(VLOOKUP(Operations[[#This Row],[Depreciation Category]],ImpDepLookup,2,FALSE)-VLOOKUP(Operations[[#This Row],[Depreciation Category]],ImpDepLookup,3,FALSE)*(Operations[[#This Row],[Age]]+1)^0.5-VLOOKUP(Operations[[#This Row],[Depreciation Category]],ImpDepLookup,4,FALSE)*(Operations[[#This Row],[Age]]*Operations[[#This Row],[Annual Use]]/Operations[[#This Row],[Units per Hour]])^0.5)^2) -> 1281.574957 | R34: =IF(Operations[[#This Row],[Calc List Price]]=0,0,IF(Operations[[#This Row],[Units per Hour]]*Operations[[#This Row],[Annual Use]]=0,0,(Operations[[#This Row],[Calc Beg Yr. Value]]-Operations[[#This Row],[Calc End Yr. Value]])/(Operations[[#This Row],[Annual Use]]))) -> 0.0297078772 | S34: =IF(Operations[[#This Row],[Annual Use]]=0,0,Operations[[#This Row],[Calc Beg Yr. Value]]*'General Variables'!$B$9/Operations[[#This Row],[Annual Use]]) -> 0.009137990593 | T34: =IF(Operations[[#This Row],[Annual Use]]=0,0,Operations[[#This Row],[Calc Beg Yr. Value]]*'General Variables'!$B$10/Operations[[#This Row],[Annual Use]]) -> 0.01827598119 | U34: =SUM(Operations[[#This Row],[Depreciation per Unit]:[Opportunity Cost per Unit]]) -> 0.05712184898 | W34: Sugar beet harvester | X34: HARVESTING | Y34: 0.59 | Z34: 1.3 | AA34: 1500
A35: Move Lg Rd | B35: ton | D35: Swathers and all other harvest equipment | E35: 3971 | G35: 5 | H35: 3000 | I35: 20 | J35: 1.1 | K35: Medium Tractor | L35: 4 | N35: =IF(Operations[[#This Row],[List Price]]>1,Operations[[#This Row],[List Price]],IF(Operations[[#This Row],[Depreciation Category]]=0,0,Operations[[#This Row],[Begin Yr. Value]]/(VLOOKUP(Operations[[#This Row],[Depreciation Category]],ImpDepLookup,2,FALSE)-VLOOKUP(Operations[[#This Row],[Depreciation Category]],ImpDepLookup,3,FALSE)*Operations[[#This Row],[Age]]^0.5-VLOOKUP(Operations[[#This Row],[Depreciation Category]],ImpDepLookup,4,FALSE)*(Operations[[#This Row],[Age]]*(Operations[[#This Row],[Age]]*Operations[[#This Row],[Annual Use]]/Operations[[#This Row],[Units per Hour]])^0.5))^2)) -> 3971 | O35: =IF(Operations[[#This Row],[Repair Category]]="",0,(((Operations[[#This Row],[Age]]+1)*Operations[[#This Row],[Annual Use]]/Operations[[#This Row],[Units per Hour]]/1000)^VLOOKUP(Operations[[#This Row],[Repair Category]],ImpRepairFac[],4,FALSE)-(Operations[[#This Row],[Age]]*Operations[[#This Row],[Annual Use]]/Operations[[#This Row],[Units per Hour]]/1000)^VLOOKUP(Operations[[#This Row],[Repair Category]],ImpRepairFac[],4,FALSE))*Operations[[#This Row],[Calc List Price]]*VLOOKUP(Operations[[#This Row],[Repair Category]],ImpRepairFac[],3,FALSE)/Operations[[#This Row],[Annual Use]]) -> 0 | P35: =IF(Operations[[#This Row],[Calc List Price]]=0,0,Operations[[#This Row],[Calc List Price]]*(VLOOKUP(Operations[[#This Row],[Depreciation Category]],ImpDepLookup,2,FALSE)-VLOOKUP(Operations[[#This Row],[Depreciation Category]],ImpDepLookup,3,FALSE)*Operations[[#This Row],[Age]]^0.5-VLOOKUP(Operations[[#This Row],[Depreciation Category]],ImpDepLookup,4,FALSE)*(Operations[[#This Row],[Age]]*Operations[[#This Row],[Annual Use]]/Operations[[#This Row],[Units per Hour]])^0.5)^2) -> 1370.698589 | Q35: =IF(Operations[[#This Row],[Calc List Price]]=0,0,Operations[[#This Row],[Calc List Price]]*(VLOOKUP(Operations[[#This Row],[Depreciation Category]],ImpDepLookup,2,FALSE)-VLOOKUP(Operations[[#This Row],[Depreciation Category]],ImpDepLookup,3,FALSE)*(Operations[[#This Row],[Age]]+1)^0.5-VLOOKUP(Operations[[#This Row],[Depreciation Category]],ImpDepLookup,4,FALSE)*(Operations[[#This Row],[Age]]*Operations[[#This Row],[Annual Use]]/Operations[[#This Row],[Units per Hour]])^0.5)^2) -> 1281.574957 | R35: =IF(Operations[[#This Row],[Calc List Price]]=0,0,IF(Operations[[#This Row],[Units per Hour]]*Operations[[#This Row],[Annual Use]]=0,0,(Operations[[#This Row],[Calc Beg Yr. Value]]-Operations[[#This Row],[Calc End Yr. Value]])/(Operations[[#This Row],[Annual Use]]))) -> 0.0297078772 | S35: =IF(Operations[[#This Row],[Annual Use]]=0,0,Operations[[#This Row],[Calc Beg Yr. Value]]*'General Variables'!$B$9/Operations[[#This Row],[Annual Use]]) -> 0.009137990593 | T35: =IF(Operations[[#This Row],[Annual Use]]=0,0,Operations[[#This Row],[Calc Beg Yr. Value]]*'General Variables'!$B$10/Operations[[#This Row],[Annual Use]]) -> 0.01827598119 | U35: =SUM(Operations[[#This Row],[Depreciation per Unit]:[Opportunity Cost per Unit]]) -> 0.05712184898 | W35: Wagon | X35: MISCELLANEOUS | Y35: 0.19 | Z35: 1.3 | AA35: 3000
A36: No-Till Drill | B36: acre | C36: Drill - Grain | D36: Planters | E36: 125418 | G36: 5 | H36: 1000 | I36: 12 | J36: 1.1 | K36: Medium Tractor | L36: 6.069948187 | N36: =IF(Operations[[#This Row],[List Price]]>1,Operations[[#This Row],[List Price]],IF(Operations[[#This Row],[Depreciation Category]]=0,0,Operations[[#This Row],[Begin Yr. Value]]/(VLOOKUP(Operations[[#This Row],[Depreciation Category]],ImpDepLookup,2,FALSE)-VLOOKUP(Operations[[#This Row],[Depreciation Category]],ImpDepLookup,3,FALSE)*Operations[[#This Row],[Age]]^0.5-VLOOKUP(Operations[[#This Row],[Depreciation Category]],ImpDepLookup,4,FALSE)*(Operations[[#This Row],[Age]]*(Operations[[#This Row],[Age]]*Operations[[#This Row],[Annual Use]]/Operations[[#This Row],[Units per Hour]])^0.5))^2)) -> 125418 | O36: =IF(Operations[[#This Row],[Repair Category]]="",0,(((Operations[[#This Row],[Age]]+1)*Operations[[#This Row],[Annual Use]]/Operations[[#This Row],[Units per Hour]]/1000)^VLOOKUP(Operations[[#This Row],[Repair Category]],ImpRepairFac[],4,FALSE)-(Operations[[#This Row],[Age]]*Operations[[#This Row],[Annual Use]]/Operations[[#This Row],[Units per Hour]]/1000)^VLOOKUP(Operations[[#This Row],[Repair Category]],ImpRepairFac[],4,FALSE))*Operations[[#This Row],[Calc List Price]]*VLOOKUP(Operations[[#This Row],[Repair Category]],ImpRepairFac[],3,FALSE)/Operations[[#This Row],[Annual Use]]) -> 2.977922078 | P36: =IF(Operations[[#This Row],[Calc List Price]]=0,0,Operations[[#This Row],[Calc List Price]]*(VLOOKUP(Operations[[#This Row],[Depreciation Category]],ImpDepLookup,2,FALSE)-VLOOKUP(Operations[[#This Row],[Depreciation Category]],ImpDepLookup,3,FALSE)*Operations[[#This Row],[Age]]^0.5-VLOOKUP(Operations[[#This Row],[Depreciation Category]],ImpDepLookup,4,FALSE)*(Operations[[#This Row],[Age]]*Operations[[#This Row],[Annual Use]]/Operations[[#This Row],[Units per Hour]])^0.5)^2) -> 62971.76428 | Q36: =IF(Operations[[#This Row],[Calc List Price]]=0,0,Operations[[#This Row],[Calc List Price]]*(VLOOKUP(Operations[[#This Row],[Depreciation Category]],ImpDepLookup,2,FALSE)-VLOOKUP(Operations[[#This Row],[Depreciation Category]],ImpDepLookup,3,FALSE)*(Operations[[#This Row],[Age]]+1)^0.5-VLOOKUP(Operations[[#This Row],[Depreciation Category]],ImpDepLookup,4,FALSE)*(Operations[[#This Row],[Age]]*Operations[[#This Row],[Annual Use]]/Operations[[#This Row],[Units per Hour]])^0.5)^2) -> 60047.71619 | R36: =IF(Operations[[#This Row],[Calc List Price]]=0,0,IF(Operations[[#This Row],[Units per Hour]]*Operations[[#This Row],[Annual Use]]=0,0,(Operations[[#This Row],[Calc Beg Yr. Value]]-Operations[[#This Row],[Calc End Yr. Value]])/(Operations[[#This Row],[Annual Use]]))) -> 2.924048094 | S36: =IF(Operations[[#This Row],[Annual Use]]=0,0,Operations[[#This Row],[Calc Beg Yr. Value]]*'General Variables'!$B$9/Operations[[#This Row],[Annual Use]]) -> 1.259435286 | T36: =IF(Operations[[#This Row],[Annual Use]]=0,0,Operations[[#This Row],[Calc Beg Yr. Value]]*'General Variables'!$B$10/Operations[[#This Row],[Annual Use]]) -> 2.518870571 | U36: =SUM(Operations[[#This Row],[Depreciation per Unit]:[Opportunity Cost per Unit]]) -> 6.702353951 | W36: Wagon - Forage | X36: MISCELLANEOUS | Y36: 0.16 | Z36: 1.6 | AA36: 2000
A37: Pickett Windrowers | B37: acre | C37: Bean puller-windrower | D37: Swathers and all other harvest equipment | E37: 32000 | G37: 5 | H37: 1000 | I37: 10 | J37: 1.1 | K37: Medium Tractor | L37: 6.073404255 | N37: =IF(Operations[[#This Row],[List Price]]>1,Operations[[#This Row],[List Price]],IF(Operations[[#This Row],[Depreciation Category]]=0,0,Operations[[#This Row],[Begin Yr. Value]]/(VLOOKUP(Operations[[#This Row],[Depreciation Category]],ImpDepLookup,2,FALSE)-VLOOKUP(Operations[[#This Row],[Depreciation Category]],ImpDepLookup,3,FALSE)*Operations[[#This Row],[Age]]^0.5-VLOOKUP(Operations[[#This Row],[Depreciation Category]],ImpDepLookup,4,FALSE)*(Operations[[#This Row],[Age]]*(Operations[[#This Row],[Age]]*Operations[[#This Row],[Annual Use]]/Operations[[#This Row],[Units per Hour]])^0.5))^2)) -> 32000 | O37: =IF(Operations[[#This Row],[Repair Category]]="",0,(((Operations[[#This Row],[Age]]+1)*Operations[[#This Row],[Annual Use]]/Operations[[#This Row],[Units per Hour]]/1000)^VLOOKUP(Operations[[#This Row],[Repair Category]],ImpRepairFac[],4,FALSE)-(Operations[[#This Row],[Age]]*Operations[[#This Row],[Annual Use]]/Operations[[#This Row],[Units per Hour]]/1000)^VLOOKUP(Operations[[#This Row],[Repair Category]],ImpRepairFac[],4,FALSE))*Operations[[#This Row],[Calc List Price]]*VLOOKUP(Operations[[#This Row],[Repair Category]],ImpRepairFac[],3,FALSE)/Operations[[#This Row],[Annual Use]]) -> 0.7151115264 | P37: =IF(Operations[[#This Row],[Calc List Price]]=0,0,Operations[[#This Row],[Calc List Price]]*(VLOOKUP(Operations[[#This Row],[Depreciation Category]],ImpDepLookup,2,FALSE)-VLOOKUP(Operations[[#This Row],[Depreciation Category]],ImpDepLookup,3,FALSE)*Operations[[#This Row],[Age]]^0.5-VLOOKUP(Operations[[#This Row],[Depreciation Category]],ImpDepLookup,4,FALSE)*(Operations[[#This Row],[Age]]*Operations[[#This Row],[Annual Use]]/Operations[[#This Row],[Units per Hour]])^0.5)^2) -> 11045.66982 | Q37: =IF(Operations[[#This Row],[Calc List Price]]=0,0,Operations[[#This Row],[Calc List Price]]*(VLOOKUP(Operations[[#This Row],[Depreciation Category]],ImpDepLookup,2,FALSE)-VLOOKUP(Operations[[#This Row],[Depreciation Category]],ImpDepLookup,3,FALSE)*(Operations[[#This Row],[Age]]+1)^0.5-VLOOKUP(Operations[[#This Row],[Depreciation Category]],ImpDepLookup,4,FALSE)*(Operations[[#This Row],[Age]]*Operations[[#This Row],[Annual Use]]/Operations[[#This Row],[Units per Hour]])^0.5)^2) -> 10327.47384 | R37: =IF(Operations[[#This Row],[Calc List Price]]=0,0,IF(Operations[[#This Row],[Units per Hour]]*Operations[[#This Row],[Annual Use]]=0,0,(Operations[[#This Row],[Calc Beg Yr. Value]]-Operations[[#This Row],[Calc End Yr. Value]])/(Operations[[#This Row],[Annual Use]]))) -> 0.7181959736 | S37: =IF(Operations[[#This Row],[Annual Use]]=0,0,Operations[[#This Row],[Calc Beg Yr. Value]]*'General Variables'!$B$9/Operations[[#This Row],[Annual Use]]) -> 0.2209133964 | T37: =IF(Operations[[#This Row],[Annual Use]]=0,0,Operations[[#This Row],[Calc Beg Yr. Value]]*'General Variables'!$B$10/Operations[[#This Row],[Annual Use]]) -> 0.4418267927 | U37: =SUM(Operations[[#This Row],[Depreciation per Unit]:[Opportunity Cost per Unit]]) -> 1.380936163 | W37: Hand move lateral | X37: See Table 5-5* | Y37: 0.02 | Z37: 1
A38: Pipe D125’ Lift | B38: acre-inch | C38: Hand move lateral | D38: Manure spreaders and all other miscellaneous equipment | F38: 7500 | G38: 10 | H38: 2600 | I38: 2.25 | J38: =5/24 -> 0.2083333333 | K38: Diesel Pump for Pipe | L38: 3.03 | N38: =IF(Operations[[#This Row],[List Price]]>1,Operations[[#This Row],[List Price]],IF(Operations[[#This Row],[Depreciation Category]]=0,0,Operations[[#This Row],[Begin Yr. Value]]/(VLOOKUP(Operations[[#This Row],[Depreciation Category]],ImpDepLookup,2,FALSE)-VLOOKUP(Operations[[#This Row],[Depreciation Category]],ImpDepLookup,3,FALSE)*Operations[[#This Row],[Age]]^0.5-VLOOKUP(Operations[[#This Row],[Depreciation Category]],ImpDepLookup,4,FALSE)*(Operations[[#This Row],[Age]]*(Operations[[#This Row],[Age]]*Operations[[#This Row],[Annual Use]]/Operations[[#This Row],[Units per Hour]])^0.5))^2)) -> 21401.12779 | O38: =IF(Operations[[#This Row],[Repair Category]]="",0,(((Operations[[#This Row],[Age]]+1)*Operations[[#This Row],[Annual Use]]/Operations[[#This Row],[Units per Hour]]/1000)^VLOOKUP(Operations[[#This Row],[Repair Category]],ImpRepairFac[],4,FALSE)-(Operations[[#This Row],[Age]]*Operations[[#This Row],[Annual Use]]/Operations[[#This Row],[Units per Hour]]/1000)^VLOOKUP(Operations[[#This Row],[Repair Category]],ImpRepairFac[],4,FALSE))*Operations[[#This Row],[Calc List Price]]*VLOOKUP(Operations[[#This Row],[Repair Category]],ImpRepairFac[],3,FALSE)/Operations[[#This Row],[Annual Use]]) -> 0.190232247 | P38: =IF(Operations[[#This Row],[Calc List Price]]=0,0,Operations[[#This Row],[Calc List Price]]*(VLOOKUP(Operations[[#This Row],[Depreciation Category]],ImpDepLookup,2,FALSE)-VLOOKUP(Operations[[#This Row],[Depreciation Category]],ImpDepLookup,3,FALSE)*Operations[[#This Row],[Age]]^0.5-VLOOKUP(Operations[[#This Row],[Depreciation Category]],ImpDepLookup,4,FALSE)*(Operations[[#This Row],[Age]]*Operations[[#This Row],[Annual Use]]/Operations[[#This Row],[Units per Hour]])^0.5)^2) -> 7500 | Q38: =IF(Operations[[#This Row],[Calc List Price]]=0,0,Operations[[#This Row],[Calc List Price]]*(VLOOKUP(Operations[[#This Row],[Depreciation Category]],ImpDepLookup,2,FALSE)-VLOOKUP(Operations[[#This Row],[Depreciation Category]],ImpDepLookup,3,FALSE)*(Operations[[#This Row],[Age]]+1)^0.5-VLOOKUP(Operations[[#This Row],[Depreciation Category]],ImpDepLookup,4,FALSE)*(Operations[[#This Row],[Age]]*Operations[[#This Row],[Annual Use]]/Operations[[#This Row],[Units per Hour]])^0.5)^2) -> 7072.171032 | R38: =IF(Operations[[#This Row],[Calc List Price]]=0,0,IF(Operations[[#This Row],[Units per Hour]]*Operations[[#This Row],[Annual Use]]=0,0,(Operations[[#This Row],[Calc Beg Yr. Value]]-Operations[[#This Row],[Calc End Yr. Value]])/(Operations[[#This Row],[Annual Use]]))) -> 0.164549603 | S38: =IF(Operations[[#This Row],[Annual Use]]=0,0,Operations[[#This Row],[Calc Beg Yr. Value]]*'General Variables'!$B$9/Operations[[#This Row],[Annual Use]]) -> 0.05769230769 | T38: =IF(Operations[[#This Row],[Annual Use]]=0,0,Operations[[#This Row],[Calc Beg Yr. Value]]*'General Variables'!$B$10/Operations[[#This Row],[Annual Use]]) -> 0.1153846154 | U38: =SUM(Operations[[#This Row],[Depreciation per Unit]:[Opportunity Cost per Unit]]) -> 0.3376265261 | W38: End tow lateral | X38: See Table 5-5* | Y38: 0.03 | Z38: 1
A39: PivotD 125’Lift | B39: acre-inch | C39: Center Pivot | D39: Pivots | E39: 65000 | G39: 10 | H39: =130*20 -> 2600 | I39: 1.8 | J39: =1.5/24 -> 0.0625 | K39: Diesel Pump | L39: 3.34 | N39: =IF(Operations[[#This Row],[List Price]]>1,Operations[[#This Row],[List Price]],IF(Operations[[#This Row],[Depreciation Category]]=0,0,Operations[[#This Row],[Begin Yr. Value]]/(VLOOKUP(Operations[[#This Row],[Depreciation Category]],ImpDepLookup,2,FALSE)-VLOOKUP(Operations[[#This Row],[Depreciation Category]],ImpDepLookup,3,FALSE)*Operations[[#This Row],[Age]]^0.5-VLOOKUP(Operations[[#This Row],[Depreciation Category]],ImpDepLookup,4,FALSE)*(Operations[[#This Row],[Age]]*(Operations[[#This Row],[Age]]*Operations[[#This Row],[Annual Use]]/Operations[[#This Row],[Units per Hour]])^0.5))^2)) -> 65000 | O39: =IF(Operations[[#This Row],[Repair Category]]="",0,(((Operations[[#This Row],[Age]]+1)*Operations[[#This Row],[Annual Use]]/Operations[[#This Row],[Units per Hour]]/1000)^VLOOKUP(Operations[[#This Row],[Repair Category]],ImpRepairFac[],4,FALSE)-(Operations[[#This Row],[Age]]*Operations[[#This Row],[Annual Use]]/Operations[[#This Row],[Units per Hour]]/1000)^VLOOKUP(Operations[[#This Row],[Repair Category]],ImpRepairFac[],4,FALSE))*Operations[[#This Row],[Calc List Price]]*VLOOKUP(Operations[[#This Row],[Repair Category]],ImpRepairFac[],3,FALSE)/Operations[[#This Row],[Annual Use]]) -> 1.498611111 | P39: =IF(Operations[[#This Row],[Calc List Price]]=0,0,Operations[[#This Row],[Calc List Price]]*(VLOOKUP(Operations[[#This Row],[Depreciation Category]],ImpDepLookup,2,FALSE)-VLOOKUP(Operations[[#This Row],[Depreciation Category]],ImpDepLookup,3,FALSE)*Operations[[#This Row],[Age]]^0.5-VLOOKUP(Operations[[#This Row],[Depreciation Category]],ImpDepLookup,4,FALSE)*(Operations[[#This Row],[Age]]*Operations[[#This Row],[Annual Use]]/Operations[[#This Row],[Units per Hour]])^0.5)^2) -> 19175.73665 | Q39: =IF(Operations[[#This Row],[Calc List Price]]=0,0,Operations[[#This Row],[Calc List Price]]*(VLOOKUP(Operations[[#This Row],[Depreciation Category]],ImpDepLookup,2,FALSE)-VLOOKUP(Operations[[#This Row],[Depreciation Category]],ImpDepLookup,3,FALSE)*(Operations[[#This Row],[Age]]+1)^0.5-VLOOKUP(Operations[[#This Row],[Depreciation Category]],ImpDepLookup,4,FALSE)*(Operations[[#This Row],[Age]]*Operations[[#This Row],[Annual Use]]/Operations[[#This Row],[Units per Hour]])^0.5)^2) -> 17995.65356 | R39: =IF(Operations[[#This Row],[Calc List Price]]=0,0,IF(Operations[[#This Row],[Units per Hour]]*Operations[[#This Row],[Annual Use]]=0,0,(Operations[[#This Row],[Calc Beg Yr. Value]]-Operations[[#This Row],[Calc End Yr. Value]])/(Operations[[#This Row],[Annual Use]]))) -> 0.4538781115 | S39: =IF(Operations[[#This Row],[Annual Use]]=0,0,Operations[[#This Row],[Calc Beg Yr. Value]]*'General Variables'!$B$9/Operations[[#This Row],[Annual Use]]) -> 0.1475056665 | T39: =IF(Operations[[#This Row],[Annual Use]]=0,0,Operations[[#This Row],[Calc Beg Yr. Value]]*'General Variables'!$B$10/Operations[[#This Row],[Annual Use]]) -> 0.2950113331 | U39: =SUM(Operations[[#This Row],[Depreciation per Unit]:[Opportunity Cost per Unit]]) -> 0.8963951111 | W39: Side roll lateral | X39: See Table 5-5* | Y39: 0.02 | Z39: 1
A40: PivotD 125’Lift w/fertigation | B40: acre-inch | C40: Center Pivot | D40: Pivots | E40: 70000 | G40: 10 | H40: =130*20 -> 2600 | I40: 1.8 | J40: =2/24 -> 0.08333333333 | K40: Diesel Pump | L40: 3.34 | N40: =IF(Operations[[#This Row],[List Price]]>1,Operations[[#This Row],[List Price]],IF(Operations[[#This Row],[Depreciation Category]]=0,0,Operations[[#This Row],[Begin Yr. Value]]/(VLOOKUP(Operations[[#This Row],[Depreciation Category]],ImpDepLookup,2,FALSE)-VLOOKUP(Operations[[#This Row],[Depreciation Category]],ImpDepLookup,3,FALSE)*Operations[[#This Row],[Age]]^0.5-VLOOKUP(Operations[[#This Row],[Depreciation Category]],ImpDepLookup,4,FALSE)*(Operations[[#This Row],[Age]]*(Operations[[#This Row],[Age]]*Operations[[#This Row],[Annual Use]]/Operations[[#This Row],[Units per Hour]])^0.5))^2)) -> 70000 | O40: =IF(Operations[[#This Row],[Repair Category]]="",0,(((Operations[[#This Row],[Age]]+1)*Operations[[#This Row],[Annual Use]]/Operations[[#This Row],[Units per Hour]]/1000)^VLOOKUP(Operations[[#This Row],[Repair Category]],ImpRepairFac[],4,FALSE)-(Operations[[#This Row],[Age]]*Operations[[#This Row],[Annual Use]]/Operations[[#This Row],[Units per Hour]]/1000)^VLOOKUP(Operations[[#This Row],[Repair Category]],ImpRepairFac[],4,FALSE))*Operations[[#This Row],[Calc List Price]]*VLOOKUP(Operations[[#This Row],[Repair Category]],ImpRepairFac[],3,FALSE)/Operations[[#This Row],[Annual Use]]) -> 1.613888889 | P40: =IF(Operations[[#This Row],[Calc List Price]]=0,0,Operations[[#This Row],[Calc List Price]]*(VLOOKUP(Operations[[#This Row],[Depreciation Category]],ImpDepLookup,2,FALSE)-VLOOKUP(Operations[[#This Row],[Depreciation Category]],ImpDepLookup,3,FALSE)*Operations[[#This Row],[Age]]^0.5-VLOOKUP(Operations[[#This Row],[Depreciation Category]],ImpDepLookup,4,FALSE)*(Operations[[#This Row],[Age]]*Operations[[#This Row],[Annual Use]]/Operations[[#This Row],[Units per Hour]])^0.5)^2) -> 20650.79331 | Q40: =IF(Operations[[#This Row],[Calc List Price]]=0,0,Operations[[#This Row],[Calc List Price]]*(VLOOKUP(Operations[[#This Row],[Depreciation Category]],ImpDepLookup,2,FALSE)-VLOOKUP(Operations[[#This Row],[Depreciation Category]],ImpDepLookup,3,FALSE)*(Operations[[#This Row],[Age]]+1)^0.5-VLOOKUP(Operations[[#This Row],[Depreciation Category]],ImpDepLookup,4,FALSE)*(Operations[[#This Row],[Age]]*Operations[[#This Row],[Annual Use]]/Operations[[#This Row],[Units per Hour]])^0.5)^2) -> 19379.9346 | R40: =IF(Operations[[#This Row],[Calc List Price]]=0,0,IF(Operations[[#This Row],[Units per Hour]]*Operations[[#This Row],[Annual Use]]=0,0,(Operations[[#This Row],[Calc Beg Yr. Value]]-Operations[[#This Row],[Calc End Yr. Value]])/(Operations[[#This Row],[Annual Use]]))) -> 0.4887918124 | S40: =IF(Operations[[#This Row],[Annual Use]]=0,0,Operations[[#This Row],[Calc Beg Yr. Value]]*'General Variables'!$B$9/Operations[[#This Row],[Annual Use]]) -> 0.1588522563 | T40: =IF(Operations[[#This Row],[Annual Use]]=0,0,Operations[[#This Row],[Calc Beg Yr. Value]]*'General Variables'!$B$10/Operations[[#This Row],[Annual Use]]) -> 0.3177045125 | U40: =SUM(Operations[[#This Row],[Depreciation per Unit]:[Opportunity Cost per Unit]]) -> 0.9653485811 | W40: Lateral | X40: See Table 5-5* | Y40: 0.06 | Z40: 1
A41: PivotE 125’Lift | B41: acre-inch | C41: Center Pivot | D41: Pivots | E41: 65000 | G41: 10 | H41: =130*20 -> 2600 | I41: 1.8 | J41: =1.5/24 -> 0.0625 | K41: Electric Pump | M41: 47.78 | N41: =IF(Operations[[#This Row],[List Price]]>1,Operations[[#This Row],[List Price]],IF(Operations[[#This Row],[Depreciation Category]]=0,0,Operations[[#This Row],[Begin Yr. Value]]/(VLOOKUP(Operations[[#This Row],[Depreciation Category]],ImpDepLookup,2,FALSE)-VLOOKUP(Operations[[#This Row],[Depreciation Category]],ImpDepLookup,3,FALSE)*Operations[[#This Row],[Age]]^0.5-VLOOKUP(Operations[[#This Row],[Depreciation Category]],ImpDepLookup,4,FALSE)*(Operations[[#This Row],[Age]]*(Operations[[#This Row],[Age]]*Operations[[#This Row],[Annual Use]]/Operations[[#This Row],[Units per Hour]])^0.5))^2)) -> 65000 | O41: =IF(Operations[[#This Row],[Repair Category]]="",0,(((Operations[[#This Row],[Age]]+1)*Operations[[#This Row],[Annual Use]]/Operations[[#This Row],[Units per Hour]]/1000)^VLOOKUP(Operations[[#This Row],[Repair Category]],ImpRepairFac[],4,FALSE)-(Operations[[#This Row],[Age]]*Operations[[#This Row],[Annual Use]]/Operations[[#This Row],[Units per Hour]]/1000)^VLOOKUP(Operations[[#This Row],[Repair Category]],ImpRepairFac[],4,FALSE))*Operations[[#This Row],[Calc List Price]]*VLOOKUP(Operations[[#This Row],[Repair Category]],ImpRepairFac[],3,FALSE)/Operations[[#This Row],[Annual Use]]) -> 1.498611111 | P41: =IF(Operations[[#This Row],[Calc List Price]]=0,0,Operations[[#This Row],[Calc List Price]]*(VLOOKUP(Operations[[#This Row],[Depreciation Category]],ImpDepLookup,2,FALSE)-VLOOKUP(Operations[[#This Row],[Depreciation Category]],ImpDepLookup,3,FALSE)*Operations[[#This Row],[Age]]^0.5-VLOOKUP(Operations[[#This Row],[Depreciation Category]],ImpDepLookup,4,FALSE)*(Operations[[#This Row],[Age]]*Operations[[#This Row],[Annual Use]]/Operations[[#This Row],[Units per Hour]])^0.5)^2) -> 19175.73665 | Q41: =IF(Operations[[#This Row],[Calc List Price]]=0,0,Operations[[#This Row],[Calc List Price]]*(VLOOKUP(Operations[[#This Row],[Depreciation Category]],ImpDepLookup,2,FALSE)-VLOOKUP(Operations[[#This Row],[Depreciation Category]],ImpDepLookup,3,FALSE)*(Operations[[#This Row],[Age]]+1)^0.5-VLOOKUP(Operations[[#This Row],[Depreciation Category]],ImpDepLookup,4,FALSE)*(Operations[[#This Row],[Age]]*Operations[[#This Row],[Annual Use]]/Operations[[#This Row],[Units per Hour]])^0.5)^2) -> 17995.65356 | R41: =IF(Operations[[#This Row],[Calc List Price]]=0,0,IF(Operations[[#This Row],[Units per Hour]]*Operations[[#This Row],[Annual Use]]=0,0,(Operations[[#This Row],[Calc Beg Yr. Value]]-Operations[[#This Row],[Calc End Yr. Value]])/(Operations[[#This Row],[Annual Use]]))) -> 0.4538781115 | S41: =IF(Operations[[#This Row],[Annual Use]]=0,0,Operations[[#This Row],[Calc Beg Yr. Value]]*'General Variables'!$B$9/Operations[[#This Row],[Annual Use]]) -> 0.1475056665 | T41: =IF(Operations[[#This Row],[Annual Use]]=0,0,Operations[[#This Row],[Calc Beg Yr. Value]]*'General Variables'!$B$10/Operations[[#This Row],[Annual Use]]) -> 0.2950113331 | U41: =SUM(Operations[[#This Row],[Depreciation per Unit]:[Opportunity Cost per Unit]]) -> 0.8963951111 | W41: Traveling gun | X41: See Table 5-5* | Y41: 0.06 | Z41: 1
A42: PivotE 125’Lift w/fertigation | B42: acre-inch | C42: Center Pivot | D42: Pivots | E42: 70000 | G42: 10 | H42: =130*20 -> 2600 | I42: 1.8 | J42: =2/24 -> 0.08333333333 | K42: Electric Pump | M42: 47.78 | N42: =IF(Operations[[#This Row],[List Price]]>1,Operations[[#This Row],[List Price]],IF(Operations[[#This Row],[Depreciation Category]]=0,0,Operations[[#This Row],[Begin Yr. Value]]/(VLOOKUP(Operations[[#This Row],[Depreciation Category]],ImpDepLookup,2,FALSE)-VLOOKUP(Operations[[#This Row],[Depreciation Category]],ImpDepLookup,3,FALSE)*Operations[[#This Row],[Age]]^0.5-VLOOKUP(Operations[[#This Row],[Depreciation Category]],ImpDepLookup,4,FALSE)*(Operations[[#This Row],[Age]]*(Operations[[#This Row],[Age]]*Operations[[#This Row],[Annual Use]]/Operations[[#This Row],[Units per Hour]])^0.5))^2)) -> 70000 | O42: =IF(Operations[[#This Row],[Repair Category]]="",0,(((Operations[[#This Row],[Age]]+1)*Operations[[#This Row],[Annual Use]]/Operations[[#This Row],[Units per Hour]]/1000)^VLOOKUP(Operations[[#This Row],[Repair Category]],ImpRepairFac[],4,FALSE)-(Operations[[#This Row],[Age]]*Operations[[#This Row],[Annual Use]]/Operations[[#This Row],[Units per Hour]]/1000)^VLOOKUP(Operations[[#This Row],[Repair Category]],ImpRepairFac[],4,FALSE))*Operations[[#This Row],[Calc List Price]]*VLOOKUP(Operations[[#This Row],[Repair Category]],ImpRepairFac[],3,FALSE)/Operations[[#This Row],[Annual Use]]) -> 1.613888889 | P42: =IF(Operations[[#This Row],[Calc List Price]]=0,0,Operations[[#This Row],[Calc List Price]]*(VLOOKUP(Operations[[#This Row],[Depreciation Category]],ImpDepLookup,2,FALSE)-VLOOKUP(Operations[[#This Row],[Depreciation Category]],ImpDepLookup,3,FALSE)*Operations[[#This Row],[Age]]^0.5-VLOOKUP(Operations[[#This Row],[Depreciation Category]],ImpDepLookup,4,FALSE)*(Operations[[#This Row],[Age]]*Operations[[#This Row],[Annual Use]]/Operations[[#This Row],[Units per Hour]])^0.5)^2) -> 20650.79331 | Q42: =IF(Operations[[#This Row],[Calc List Price]]=0,0,Operations[[#This Row],[Calc List Price]]*(VLOOKUP(Operations[[#This Row],[Depreciation Category]],ImpDepLookup,2,FALSE)-VLOOKUP(Operations[[#This Row],[Depreciation Category]],ImpDepLookup,3,FALSE)*(Operations[[#This Row],[Age]]+1)^0.5-VLOOKUP(Operations[[#This Row],[Depreciation Category]],ImpDepLookup,4,FALSE)*(Operations[[#This Row],[Age]]*Operations[[#This Row],[Annual Use]]/Operations[[#This Row],[Units per Hour]])^0.5)^2) -> 19379.9346 | R42: =IF(Operations[[#This Row],[Calc List Price]]=0,0,IF(Operations[[#This Row],[Units per Hour]]*Operations[[#This Row],[Annual Use]]=0,0,(Operations[[#This Row],[Calc Beg Yr. Value]]-Operations[[#This Row],[Calc End Yr. Value]])/(Operations[[#This Row],[Annual Use]]))) -> 0.4887918124 | S42: =IF(Operations[[#This Row],[Annual Use]]=0,0,Operations[[#This Row],[Calc Beg Yr. Value]]*'General Variables'!$B$9/Operations[[#This Row],[Annual Use]]) -> 0.1588522563 | T42: =IF(Operations[[#This Row],[Annual Use]]=0,0,Operations[[#This Row],[Calc Beg Yr. Value]]*'General Variables'!$B$10/Operations[[#This Row],[Annual Use]]) -> 0.3177045125 | U42: =SUM(Operations[[#This Row],[Depreciation per Unit]:[Opportunity Cost per Unit]]) -> 0.9653485811 | W42: Center Pivot | X42: See Table 5-5* | Y42: 0.0415 | Z42: 1
A43: Plant | B43: acre | C43: Planter - Row crop | D43: Planters | E43: 71400 | G43: 5 | H43: 1000 | I43: 10 | J43: 1.2 | K43: Medium Tractor | L43: 2.73 | N43: =IF(Operations[[#This Row],[List Price]]>1,Operations[[#This Row],[List Price]],IF(Operations[[#This Row],[Depreciation Category]]=0,0,Operations[[#This Row],[Begin Yr. Value]]/(VLOOKUP(Operations[[#This Row],[Depreciation Category]],ImpDepLookup,2,FALSE)-VLOOKUP(Operations[[#This Row],[Depreciation Category]],ImpDepLookup,3,FALSE)*Operations[[#This Row],[Age]]^0.5-VLOOKUP(Operations[[#This Row],[Depreciation Category]],ImpDepLookup,4,FALSE)*(Operations[[#This Row],[Age]]*(Operations[[#This Row],[Age]]*Operations[[#This Row],[Annual Use]]/Operations[[#This Row],[Units per Hour]])^0.5))^2)) -> 71400 | O43: =IF(Operations[[#This Row],[Repair Category]]="",0,(((Operations[[#This Row],[Age]]+1)*Operations[[#This Row],[Annual Use]]/Operations[[#This Row],[Units per Hour]]/1000)^VLOOKUP(Operations[[#This Row],[Repair Category]],ImpRepairFac[],4,FALSE)-(Operations[[#This Row],[Age]]*Operations[[#This Row],[Annual Use]]/Operations[[#This Row],[Units per Hour]]/1000)^VLOOKUP(Operations[[#This Row],[Repair Category]],ImpRepairFac[],4,FALSE))*Operations[[#This Row],[Calc List Price]]*VLOOKUP(Operations[[#This Row],[Repair Category]],ImpRepairFac[],3,FALSE)/Operations[[#This Row],[Annual Use]]) -> 2.486178389 | P43: =IF(Operations[[#This Row],[Calc List Price]]=0,0,Operations[[#This Row],[Calc List Price]]*(VLOOKUP(Operations[[#This Row],[Depreciation Category]],ImpDepLookup,2,FALSE)-VLOOKUP(Operations[[#This Row],[Depreciation Category]],ImpDepLookup,3,FALSE)*Operations[[#This Row],[Age]]^0.5-VLOOKUP(Operations[[#This Row],[Depreciation Category]],ImpDepLookup,4,FALSE)*(Operations[[#This Row],[Age]]*Operations[[#This Row],[Annual Use]]/Operations[[#This Row],[Units per Hour]])^0.5)^2) -> 35849.59073 | Q43: =IF(Operations[[#This Row],[Calc List Price]]=0,0,Operations[[#This Row],[Calc List Price]]*(VLOOKUP(Operations[[#This Row],[Depreciation Category]],ImpDepLookup,2,FALSE)-VLOOKUP(Operations[[#This Row],[Depreciation Category]],ImpDepLookup,3,FALSE)*(Operations[[#This Row],[Age]]+1)^0.5-VLOOKUP(Operations[[#This Row],[Depreciation Category]],ImpDepLookup,4,FALSE)*(Operations[[#This Row],[Age]]*Operations[[#This Row],[Annual Use]]/Operations[[#This Row],[Units per Hour]])^0.5)^2) -> 34184.94105 | R43: =IF(Operations[[#This Row],[Calc List Price]]=0,0,IF(Operations[[#This Row],[Units per Hour]]*Operations[[#This Row],[Annual Use]]=0,0,(Operations[[#This Row],[Calc Beg Yr. Value]]-Operations[[#This Row],[Calc End Yr. Value]])/(Operations[[#This Row],[Annual Use]]))) -> 1.664649683 | S43: =IF(Operations[[#This Row],[Annual Use]]=0,0,Operations[[#This Row],[Calc Beg Yr. Value]]*'General Variables'!$B$9/Operations[[#This Row],[Annual Use]]) -> 0.7169918146 | T43: =IF(Operations[[#This Row],[Annual Use]]=0,0,Operations[[#This Row],[Calc Beg Yr. Value]]*'General Variables'!$B$10/Operations[[#This Row],[Annual Use]]) -> 1.433983629 | U43: =SUM(Operations[[#This Row],[Depreciation per Unit]:[Opportunity Cost per Unit]]) -> 3.815625126 | W43: Center Pivot w/corner | X43: See Table 5-5* | Y43: 0.06 | Z43: 1
A44: Plant Narrow Row | B44: acre | C44: Planter - Row crop | D44: Planters | E44: 71400 | G44: 5 | H44: 1000 | I44: 10 | J44: 1.2 | K44: Medium Tractor | L44: 2.580373832 | N44: =IF(Operations[[#This Row],[List Price]]>1,Operations[[#This Row],[List Price]],IF(Operations[[#This Row],[Depreciation Category]]=0,0,Operations[[#This Row],[Begin Yr. Value]]/(VLOOKUP(Operations[[#This Row],[Depreciation Category]],ImpDepLookup,2,FALSE)-VLOOKUP(Operations[[#This Row],[Depreciation Category]],ImpDepLookup,3,FALSE)*Operations[[#This Row],[Age]]^0.5-VLOOKUP(Operations[[#This Row],[Depreciation Category]],ImpDepLookup,4,FALSE)*(Operations[[#This Row],[Age]]*(Operations[[#This Row],[Age]]*Operations[[#This Row],[Annual Use]]/Operations[[#This Row],[Units per Hour]])^0.5))^2)) -> 71400 | O44: =IF(Operations[[#This Row],[Repair Category]]="",0,(((Operations[[#This Row],[Age]]+1)*Operations[[#This Row],[Annual Use]]/Operations[[#This Row],[Units per Hour]]/1000)^VLOOKUP(Operations[[#This Row],[Repair Category]],ImpRepairFac[],4,FALSE)-(Operations[[#This Row],[Age]]*Operations[[#This Row],[Annual Use]]/Operations[[#This Row],[Units per Hour]]/1000)^VLOOKUP(Operations[[#This Row],[Repair Category]],ImpRepairFac[],4,FALSE))*Operations[[#This Row],[Calc List Price]]*VLOOKUP(Operations[[#This Row],[Repair Category]],ImpRepairFac[],3,FALSE)/Operations[[#This Row],[Annual Use]]) -> 2.486178389 | P44: =IF(Operations[[#This Row],[Calc List Price]]=0,0,Operations[[#This Row],[Calc List Price]]*(VLOOKUP(Operations[[#This Row],[Depreciation Category]],ImpDepLookup,2,FALSE)-VLOOKUP(Operations[[#This Row],[Depreciation Category]],ImpDepLookup,3,FALSE)*Operations[[#This Row],[Age]]^0.5-VLOOKUP(Operations[[#This Row],[Depreciation Category]],ImpDepLookup,4,FALSE)*(Operations[[#This Row],[Age]]*Operations[[#This Row],[Annual Use]]/Operations[[#This Row],[Units per Hour]])^0.5)^2) -> 35849.59073 | Q44: =IF(Operations[[#This Row],[Calc List Price]]=0,0,Operations[[#This Row],[Calc List Price]]*(VLOOKUP(Operations[[#This Row],[Depreciation Category]],ImpDepLookup,2,FALSE)-VLOOKUP(Operations[[#This Row],[Depreciation Category]],ImpDepLookup,3,FALSE)*(Operations[[#This Row],[Age]]+1)^0.5-VLOOKUP(Operations[[#This Row],[Depreciation Category]],ImpDepLookup,4,FALSE)*(Operations[[#This Row],[Age]]*Operations[[#This Row],[Annual Use]]/Operations[[#This Row],[Units per Hour]])^0.5)^2) -> 34184.94105 | R44: =IF(Operations[[#This Row],[Calc List Price]]=0,0,IF(Operations[[#This Row],[Units per Hour]]*Operations[[#This Row],[Annual Use]]=0,0,(Operations[[#This Row],[Calc Beg Yr. Value]]-Operations[[#This Row],[Calc End Yr. Value]])/(Operations[[#This Row],[Annual Use]]))) -> 1.664649683 | S44: =IF(Operations[[#This Row],[Annual Use]]=0,0,Operations[[#This Row],[Calc Beg Yr. Value]]*'General Variables'!$B$9/Operations[[#This Row],[Annual Use]]) -> 0.7169918146 | T44: =IF(Operations[[#This Row],[Annual Use]]=0,0,Operations[[#This Row],[Calc Beg Yr. Value]]*'General Variables'!$B$10/Operations[[#This Row],[Annual Use]]) -> 1.433983629 | U44: =SUM(Operations[[#This Row],[Depreciation per Unit]:[Opportunity Cost per Unit]]) -> 3.815625126 | W44: Linear move with ditch | X44: See Table 5-5* | Y44: 0.06 | Z44: 1
A45: Plant No-Till | B45: acre | C45: Planter - Row crop | D45: Planters | E45: 125418 | G45: 5 | H45: 1000 | I45: 10 | J45: 1.2 | K45: Medium Tractor | L45: 3.38 | N45: =IF(Operations[[#This Row],[List Price]]>1,Operations[[#This Row],[List Price]],IF(Operations[[#This Row],[Depreciation Category]]=0,0,Operations[[#This Row],[Begin Yr. Value]]/(VLOOKUP(Operations[[#This Row],[Depreciation Category]],ImpDepLookup,2,FALSE)-VLOOKUP(Operations[[#This Row],[Depreciation Category]],ImpDepLookup,3,FALSE)*Operations[[#This Row],[Age]]^0.5-VLOOKUP(Operations[[#This Row],[Depreciation Category]],ImpDepLookup,4,FALSE)*(Operations[[#This Row],[Age]]*(Operations[[#This Row],[Age]]*Operations[[#This Row],[Annual Use]]/Operations[[#This Row],[Units per Hour]])^0.5))^2)) -> 125418 | O45: =IF(Operations[[#This Row],[Repair Category]]="",0,(((Operations[[#This Row],[Age]]+1)*Operations[[#This Row],[Annual Use]]/Operations[[#This Row],[Units per Hour]]/1000)^VLOOKUP(Operations[[#This Row],[Repair Category]],ImpRepairFac[],4,FALSE)-(Operations[[#This Row],[Age]]*Operations[[#This Row],[Annual Use]]/Operations[[#This Row],[Units per Hour]]/1000)^VLOOKUP(Operations[[#This Row],[Repair Category]],ImpRepairFac[],4,FALSE))*Operations[[#This Row],[Calc List Price]]*VLOOKUP(Operations[[#This Row],[Repair Category]],ImpRepairFac[],3,FALSE)/Operations[[#This Row],[Annual Use]]) -> 4.36710814 | P45: =IF(Operations[[#This Row],[Calc List Price]]=0,0,Operations[[#This Row],[Calc List Price]]*(VLOOKUP(Operations[[#This Row],[Depreciation Category]],ImpDepLookup,2,FALSE)-VLOOKUP(Operations[[#This Row],[Depreciation Category]],ImpDepLookup,3,FALSE)*Operations[[#This Row],[Age]]^0.5-VLOOKUP(Operations[[#This Row],[Depreciation Category]],ImpDepLookup,4,FALSE)*(Operations[[#This Row],[Age]]*Operations[[#This Row],[Annual Use]]/Operations[[#This Row],[Units per Hour]])^0.5)^2) -> 62971.76428 | Q45: =IF(Operations[[#This Row],[Calc List Price]]=0,0,Operations[[#This Row],[Calc List Price]]*(VLOOKUP(Operations[[#This Row],[Depreciation Category]],ImpDepLookup,2,FALSE)-VLOOKUP(Operations[[#This Row],[Depreciation Category]],ImpDepLookup,3,FALSE)*(Operations[[#This Row],[Age]]+1)^0.5-VLOOKUP(Operations[[#This Row],[Depreciation Category]],ImpDepLookup,4,FALSE)*(Operations[[#This Row],[Age]]*Operations[[#This Row],[Annual Use]]/Operations[[#This Row],[Units per Hour]])^0.5)^2) -> 60047.71619 | R45: =IF(Operations[[#This Row],[Calc List Price]]=0,0,IF(Operations[[#This Row],[Units per Hour]]*Operations[[#This Row],[Annual Use]]=0,0,(Operations[[#This Row],[Calc Beg Yr. Value]]-Operations[[#This Row],[Calc End Yr. Value]])/(Operations[[#This Row],[Annual Use]]))) -> 2.924048094 | S45: =IF(Operations[[#This Row],[Annual Use]]=0,0,Operations[[#This Row],[Calc Beg Yr. Value]]*'General Variables'!$B$9/Operations[[#This Row],[Annual Use]]) -> 1.259435286 | T45: =IF(Operations[[#This Row],[Annual Use]]=0,0,Operations[[#This Row],[Calc Beg Yr. Value]]*'General Variables'!$B$10/Operations[[#This Row],[Annual Use]]) -> 2.518870571 | U45: =SUM(Operations[[#This Row],[Depreciation per Unit]:[Opportunity Cost per Unit]]) -> 6.702353951 | W45: Linear move with pipe | X45: See Table 5-5* | Y45: 0.06 | Z45: 1
A46: Plow | B46: acre | C46: Plow - Moldboard | D46: Plows | E46: 14781 | G46: 5 | H46: 1000 | I46: 7.5 | J46: 1.1 | K46: Large Tractor | L46: 6 | N46: =IF(Operations[[#This Row],[List Price]]>1,Operations[[#This Row],[List Price]],IF(Operations[[#This Row],[Depreciation Category]]=0,0,Operations[[#This Row],[Begin Yr. Value]]/(VLOOKUP(Operations[[#This Row],[Depreciation Category]],ImpDepLookup,2,FALSE)-VLOOKUP(Operations[[#This Row],[Depreciation Category]],ImpDepLookup,3,FALSE)*Operations[[#This Row],[Age]]^0.5-VLOOKUP(Operations[[#This Row],[Depreciation Category]],ImpDepLookup,4,FALSE)*(Operations[[#This Row],[Age]]*(Operations[[#This Row],[Age]]*Operations[[#This Row],[Annual Use]]/Operations[[#This Row],[Units per Hour]])^0.5))^2)) -> 14781 | O46: =IF(Operations[[#This Row],[Repair Category]]="",0,(((Operations[[#This Row],[Age]]+1)*Operations[[#This Row],[Annual Use]]/Operations[[#This Row],[Units per Hour]]/1000)^VLOOKUP(Operations[[#This Row],[Repair Category]],ImpRepairFac[],4,FALSE)-(Operations[[#This Row],[Age]]*Operations[[#This Row],[Annual Use]]/Operations[[#This Row],[Units per Hour]]/1000)^VLOOKUP(Operations[[#This Row],[Repair Category]],ImpRepairFac[],4,FALSE))*Operations[[#This Row],[Calc List Price]]*VLOOKUP(Operations[[#This Row],[Repair Category]],ImpRepairFac[],3,FALSE)/Operations[[#This Row],[Annual Use]]) -> 0.8025246298 | P46: =IF(Operations[[#This Row],[Calc List Price]]=0,0,Operations[[#This Row],[Calc List Price]]*(VLOOKUP(Operations[[#This Row],[Depreciation Category]],ImpDepLookup,2,FALSE)-VLOOKUP(Operations[[#This Row],[Depreciation Category]],ImpDepLookup,3,FALSE)*Operations[[#This Row],[Age]]^0.5-VLOOKUP(Operations[[#This Row],[Depreciation Category]],ImpDepLookup,4,FALSE)*(Operations[[#This Row],[Age]]*Operations[[#This Row],[Annual Use]]/Operations[[#This Row],[Units per Hour]])^0.5)^2) -> 5754.638646 | Q46: =IF(Operations[[#This Row],[Calc List Price]]=0,0,Operations[[#This Row],[Calc List Price]]*(VLOOKUP(Operations[[#This Row],[Depreciation Category]],ImpDepLookup,2,FALSE)-VLOOKUP(Operations[[#This Row],[Depreciation Category]],ImpDepLookup,3,FALSE)*(Operations[[#This Row],[Age]]+1)^0.5-VLOOKUP(Operations[[#This Row],[Depreciation Category]],ImpDepLookup,4,FALSE)*(Operations[[#This Row],[Age]]*Operations[[#This Row],[Annual Use]]/Operations[[#This Row],[Units per Hour]])^0.5)^2) -> 5555.619328 | R46: =IF(Operations[[#This Row],[Calc List Price]]=0,0,IF(Operations[[#This Row],[Units per Hour]]*Operations[[#This Row],[Annual Use]]=0,0,(Operations[[#This Row],[Calc Beg Yr. Value]]-Operations[[#This Row],[Calc End Yr. Value]])/(Operations[[#This Row],[Annual Use]]))) -> 0.1990193185 | S46: =IF(Operations[[#This Row],[Annual Use]]=0,0,Operations[[#This Row],[Calc Beg Yr. Value]]*'General Variables'!$B$9/Operations[[#This Row],[Annual Use]]) -> 0.1150927729 | T46: =IF(Operations[[#This Row],[Annual Use]]=0,0,Operations[[#This Row],[Calc Beg Yr. Value]]*'General Variables'!$B$10/Operations[[#This Row],[Annual Use]]) -> 0.2301855459 | U46: =SUM(Operations[[#This Row],[Depreciation per Unit]:[Opportunity Cost per Unit]]) -> 0.5442976373 | W46: Portable solid set | X46: See Table 5-5* | Y46: 0.02 | Z46: 1
A47: Ridge Cultivate/Ditch | B47: acre | C47: Cultivator - Row crop | D47: Disks and all other tillage equipment | E47: 29000 | F47: 4500 | G47: 5 | H47: 1000 | I47: 12 | J47: 1.1 | K47: Medium Tractor | L47: 5.332019704 | N47: =IF(Operations[[#This Row],[List Price]]>1,Operations[[#This Row],[List Price]],IF(Operations[[#This Row],[Depreciation Category]]=0,0,Operations[[#This Row],[Begin Yr. Value]]/(VLOOKUP(Operations[[#This Row],[Depreciation Category]],ImpDepLookup,2,FALSE)-VLOOKUP(Operations[[#This Row],[Depreciation Category]],ImpDepLookup,3,FALSE)*Operations[[#This Row],[Age]]^0.5-VLOOKUP(Operations[[#This Row],[Depreciation Category]],ImpDepLookup,4,FALSE)*(Operations[[#This Row],[Age]]*(Operations[[#This Row],[Age]]*Operations[[#This Row],[Annual Use]]/Operations[[#This Row],[Units per Hour]])^0.5))^2)) -> 29000 | O47: =IF(Operations[[#This Row],[Repair Category]]="",0,(((Operations[[#This Row],[Age]]+1)*Operations[[#This Row],[Annual Use]]/Operations[[#This Row],[Units per Hour]]/1000)^VLOOKUP(Operations[[#This Row],[Repair Category]],ImpRepairFac[],4,FALSE)-(Operations[[#This Row],[Age]]*Operations[[#This Row],[Annual Use]]/Operations[[#This Row],[Units per Hour]]/1000)^VLOOKUP(Operations[[#This Row],[Repair Category]],ImpRepairFac[],4,FALSE))*Operations[[#This Row],[Calc List Price]]*VLOOKUP(Operations[[#This Row],[Repair Category]],ImpRepairFac[],3,FALSE)/Operations[[#This Row],[Annual Use]]) -> 0.3545273272 | P47: =IF(Operations[[#This Row],[Calc List Price]]=0,0,Operations[[#This Row],[Calc List Price]]*(VLOOKUP(Operations[[#This Row],[Depreciation Category]],ImpDepLookup,2,FALSE)-VLOOKUP(Operations[[#This Row],[Depreciation Category]],ImpDepLookup,3,FALSE)*Operations[[#This Row],[Age]]^0.5-VLOOKUP(Operations[[#This Row],[Depreciation Category]],ImpDepLookup,4,FALSE)*(Operations[[#This Row],[Age]]*Operations[[#This Row],[Annual Use]]/Operations[[#This Row],[Units per Hour]])^0.5)^2) -> 12065.9417 | Q47: =IF(Operations[[#This Row],[Calc List Price]]=0,0,Operations[[#This Row],[Calc List Price]]*(VLOOKUP(Operations[[#This Row],[Depreciation Category]],ImpDepLookup,2,FALSE)-VLOOKUP(Operations[[#This Row],[Depreciation Category]],ImpDepLookup,3,FALSE)*(Operations[[#This Row],[Age]]+1)^0.5-VLOOKUP(Operations[[#This Row],[Depreciation Category]],ImpDepLookup,4,FALSE)*(Operations[[#This Row],[Age]]*Operations[[#This Row],[Annual Use]]/Operations[[#This Row],[Units per Hour]])^0.5)^2) -> 11203.6286 | R47: =IF(Operations[[#This Row],[Calc List Price]]=0,0,IF(Operations[[#This Row],[Units per Hour]]*Operations[[#This Row],[Annual Use]]=0,0,(Operations[[#This Row],[Calc Beg Yr. Value]]-Operations[[#This Row],[Calc End Yr. Value]])/(Operations[[#This Row],[Annual Use]]))) -> 0.8623130985 | S47: =IF(Operations[[#This Row],[Annual Use]]=0,0,Operations[[#This Row],[Calc Beg Yr. Value]]*'General Variables'!$B$9/Operations[[#This Row],[Annual Use]]) -> 0.2413188339 | T47: =IF(Operations[[#This Row],[Annual Use]]=0,0,Operations[[#This Row],[Calc Beg Yr. Value]]*'General Variables'!$B$10/Operations[[#This Row],[Annual Use]]) -> 0.4826376679 | U47: =SUM(Operations[[#This Row],[Depreciation per Unit]:[Opportunity Cost per Unit]]) -> 1.5862696 | W47: Permanent solid set | X47: See Table 5-5* | Y47: 0.01 | Z47: 1
A48: Ridge Cultivation | B48: acre | C48: Cultivator - Row crop | D48: Disks and all other tillage equipment | E48: 29000 | G48: 5 | H48: 1500 | I48: 10 | J48: 1 | K48: Medium Tractor | L48: 5.332019704 | N48: =IF(Operations[[#This Row],[List Price]]>1,Operations[[#This Row],[List Price]],IF(Operations[[#This Row],[Depreciation Category]]=0,0,Operations[[#This Row],[Begin Yr. Value]]/(VLOOKUP(Operations[[#This Row],[Depreciation Category]],ImpDepLookup,2,FALSE)-VLOOKUP(Operations[[#This Row],[Depreciation Category]],ImpDepLookup,3,FALSE)*Operations[[#This Row],[Age]]^0.5-VLOOKUP(Operations[[#This Row],[Depreciation Category]],ImpDepLookup,4,FALSE)*(Operations[[#This Row],[Age]]*(Operations[[#This Row],[Age]]*Operations[[#This Row],[Annual Use]]/Operations[[#This Row],[Units per Hour]])^0.5))^2)) -> 29000 | O48: =IF(Operations[[#This Row],[Repair Category]]="",0,(((Operations[[#This Row],[Age]]+1)*Operations[[#This Row],[Annual Use]]/Operations[[#This Row],[Units per Hour]]/1000)^VLOOKUP(Operations[[#This Row],[Repair Category]],ImpRepairFac[],4,FALSE)-(Operations[[#This Row],[Age]]*Operations[[#This Row],[Annual Use]]/Operations[[#This Row],[Units per Hour]]/1000)^VLOOKUP(Operations[[#This Row],[Repair Category]],ImpRepairFac[],4,FALSE))*Operations[[#This Row],[Calc List Price]]*VLOOKUP(Operations[[#This Row],[Repair Category]],ImpRepairFac[],3,FALSE)/Operations[[#This Row],[Annual Use]]) -> 0.8613069838 | P48: =IF(Operations[[#This Row],[Calc List Price]]=0,0,Operations[[#This Row],[Calc List Price]]*(VLOOKUP(Operations[[#This Row],[Depreciation Category]],ImpDepLookup,2,FALSE)-VLOOKUP(Operations[[#This Row],[Depreciation Category]],ImpDepLookup,3,FALSE)*Operations[[#This Row],[Age]]^0.5-VLOOKUP(Operations[[#This Row],[Depreciation Category]],ImpDepLookup,4,FALSE)*(Operations[[#This Row],[Age]]*Operations[[#This Row],[Annual Use]]/Operations[[#This Row],[Units per Hour]])^0.5)^2) -> 12065.9417 | Q48: =IF(Operations[[#This Row],[Calc List Price]]=0,0,Operations[[#This Row],[Calc List Price]]*(VLOOKUP(Operations[[#This Row],[Depreciation Category]],ImpDepLookup,2,FALSE)-VLOOKUP(Operations[[#This Row],[Depreciation Category]],ImpDepLookup,3,FALSE)*(Operations[[#This Row],[Age]]+1)^0.5-VLOOKUP(Operations[[#This Row],[Depreciation Category]],ImpDepLookup,4,FALSE)*(Operations[[#This Row],[Age]]*Operations[[#This Row],[Annual Use]]/Operations[[#This Row],[Units per Hour]])^0.5)^2) -> 11203.6286 | R48: =IF(Operations[[#This Row],[Calc List Price]]=0,0,IF(Operations[[#This Row],[Units per Hour]]*Operations[[#This Row],[Annual Use]]=0,0,(Operations[[#This Row],[Calc Beg Yr. Value]]-Operations[[#This Row],[Calc End Yr. Value]])/(Operations[[#This Row],[Annual Use]]))) -> 0.574875399 | S48: =IF(Operations[[#This Row],[Annual Use]]=0,0,Operations[[#This Row],[Calc Beg Yr. Value]]*'General Variables'!$B$9/Operations[[#This Row],[Annual Use]]) -> 0.1608792226 | T48: =IF(Operations[[#This Row],[Annual Use]]=0,0,Operations[[#This Row],[Calc Beg Yr. Value]]*'General Variables'!$B$10/Operations[[#This Row],[Annual Use]]) -> 0.3217584452 | U48: =SUM(Operations[[#This Row],[Depreciation per Unit]:[Opportunity Cost per Unit]]) -> 1.057513067 | W48: Orchard hose-pull | X48: See Table 5-5* | Y48: 0.03 | Z48: 1
A49: Ridge Plant | B49: acre | C49: Planter - Row crop | D49: Disks and all other tillage equipment | E49: 125418 | G49: 5 | H49: 1500 | I49: 10 | J49: 1.2 | K49: Medium Tractor | L49: 3.407317073 | N49: =IF(Operations[[#This Row],[List Price]]>1,Operations[[#This Row],[List Price]],IF(Operations[[#This Row],[Depreciation Category]]=0,0,Operations[[#This Row],[Begin Yr. Value]]/(VLOOKUP(Operations[[#This Row],[Depreciation Category]],ImpDepLookup,2,FALSE)-VLOOKUP(Operations[[#This Row],[Depreciation Category]],ImpDepLookup,3,FALSE)*Operations[[#This Row],[Age]]^0.5-VLOOKUP(Operations[[#This Row],[Depreciation Category]],ImpDepLookup,4,FALSE)*(Operations[[#This Row],[Age]]*(Operations[[#This Row],[Age]]*Operations[[#This Row],[Annual Use]]/Operations[[#This Row],[Units per Hour]])^0.5))^2)) -> 125418 | O49: =IF(Operations[[#This Row],[Repair Category]]="",0,(((Operations[[#This Row],[Age]]+1)*Operations[[#This Row],[Annual Use]]/Operations[[#This Row],[Units per Hour]]/1000)^VLOOKUP(Operations[[#This Row],[Repair Category]],ImpRepairFac[],4,FALSE)-(Operations[[#This Row],[Age]]*Operations[[#This Row],[Annual Use]]/Operations[[#This Row],[Units per Hour]]/1000)^VLOOKUP(Operations[[#This Row],[Repair Category]],ImpRepairFac[],4,FALSE))*Operations[[#This Row],[Calc List Price]]*VLOOKUP(Operations[[#This Row],[Repair Category]],ImpRepairFac[],3,FALSE)/Operations[[#This Row],[Annual Use]]) -> 6.821726936 | P49: =IF(Operations[[#This Row],[Calc List Price]]=0,0,Operations[[#This Row],[Calc List Price]]*(VLOOKUP(Operations[[#This Row],[Depreciation Category]],ImpDepLookup,2,FALSE)-VLOOKUP(Operations[[#This Row],[Depreciation Category]],ImpDepLookup,3,FALSE)*Operations[[#This Row],[Age]]^0.5-VLOOKUP(Operations[[#This Row],[Depreciation Category]],ImpDepLookup,4,FALSE)*(Operations[[#This Row],[Age]]*Operations[[#This Row],[Annual Use]]/Operations[[#This Row],[Units per Hour]])^0.5)^2) -> 52182.28537 | Q49: =IF(Operations[[#This Row],[Calc List Price]]=0,0,Operations[[#This Row],[Calc List Price]]*(VLOOKUP(Operations[[#This Row],[Depreciation Category]],ImpDepLookup,2,FALSE)-VLOOKUP(Operations[[#This Row],[Depreciation Category]],ImpDepLookup,3,FALSE)*(Operations[[#This Row],[Age]]+1)^0.5-VLOOKUP(Operations[[#This Row],[Depreciation Category]],ImpDepLookup,4,FALSE)*(Operations[[#This Row],[Age]]*Operations[[#This Row],[Annual Use]]/Operations[[#This Row],[Units per Hour]])^0.5)^2) -> 48452.98936 | R49: =IF(Operations[[#This Row],[Calc List Price]]=0,0,IF(Operations[[#This Row],[Units per Hour]]*Operations[[#This Row],[Annual Use]]=0,0,(Operations[[#This Row],[Calc Beg Yr. Value]]-Operations[[#This Row],[Calc End Yr. Value]])/(Operations[[#This Row],[Annual Use]]))) -> 2.486197338 | S49: =IF(Operations[[#This Row],[Annual Use]]=0,0,Operations[[#This Row],[Calc Beg Yr. Value]]*'General Variables'!$B$9/Operations[[#This Row],[Annual Use]]) -> 0.6957638049 | T49: =IF(Operations[[#This Row],[Annual Use]]=0,0,Operations[[#This Row],[Calc Beg Yr. Value]]*'General Variables'!$B$10/Operations[[#This Row],[Annual Use]]) -> 1.39152761 | U49: =SUM(Operations[[#This Row],[Depreciation per Unit]:[Opportunity Cost per Unit]]) -> 4.573488752
A50: Ridge plant and band herb. | B50: acre | C50: Planter - Row crop | D50: Disks and all other tillage equipment | E50: 128418 | G50: 5 | H50: 1500 | I50: 10 | J50: 1.2 | K50: Medium Tractor | L50: 3.41 | N50: =IF(Operations[[#This Row],[List Price]]>1,Operations[[#This Row],[List Price]],IF(Operations[[#This Row],[Depreciation Category]]=0,0,Operations[[#This Row],[Begin Yr. Value]]/(VLOOKUP(Operations[[#This Row],[Depreciation Category]],ImpDepLookup,2,FALSE)-VLOOKUP(Operations[[#This Row],[Depreciation Category]],ImpDepLookup,3,FALSE)*Operations[[#This Row],[Age]]^0.5-VLOOKUP(Operations[[#This Row],[Depreciation Category]],ImpDepLookup,4,FALSE)*(Operations[[#This Row],[Age]]*(Operations[[#This Row],[Age]]*Operations[[#This Row],[Annual Use]]/Operations[[#This Row],[Units per Hour]])^0.5))^2)) -> 128418 | O50: =IF(Operations[[#This Row],[Repair Category]]="",0,(((Operations[[#This Row],[Age]]+1)*Operations[[#This Row],[Annual Use]]/Operations[[#This Row],[Units per Hour]]/1000)^VLOOKUP(Operations[[#This Row],[Repair Category]],ImpRepairFac[],4,FALSE)-(Operations[[#This Row],[Age]]*Operations[[#This Row],[Annual Use]]/Operations[[#This Row],[Units per Hour]]/1000)^VLOOKUP(Operations[[#This Row],[Repair Category]],ImpRepairFac[],4,FALSE))*Operations[[#This Row],[Calc List Price]]*VLOOKUP(Operations[[#This Row],[Repair Category]],ImpRepairFac[],3,FALSE)/Operations[[#This Row],[Annual Use]]) -> 6.984902722 | P50: =IF(Operations[[#This Row],[Calc List Price]]=0,0,Operations[[#This Row],[Calc List Price]]*(VLOOKUP(Operations[[#This Row],[Depreciation Category]],ImpDepLookup,2,FALSE)-VLOOKUP(Operations[[#This Row],[Depreciation Category]],ImpDepLookup,3,FALSE)*Operations[[#This Row],[Age]]^0.5-VLOOKUP(Operations[[#This Row],[Depreciation Category]],ImpDepLookup,4,FALSE)*(Operations[[#This Row],[Age]]*Operations[[#This Row],[Annual Use]]/Operations[[#This Row],[Units per Hour]])^0.5)^2) -> 53430.48623 | Q50: =IF(Operations[[#This Row],[Calc List Price]]=0,0,Operations[[#This Row],[Calc List Price]]*(VLOOKUP(Operations[[#This Row],[Depreciation Category]],ImpDepLookup,2,FALSE)-VLOOKUP(Operations[[#This Row],[Depreciation Category]],ImpDepLookup,3,FALSE)*(Operations[[#This Row],[Age]]+1)^0.5-VLOOKUP(Operations[[#This Row],[Depreciation Category]],ImpDepLookup,4,FALSE)*(Operations[[#This Row],[Age]]*Operations[[#This Row],[Annual Use]]/Operations[[#This Row],[Units per Hour]])^0.5)^2) -> 49611.98542 | R50: =IF(Operations[[#This Row],[Calc List Price]]=0,0,IF(Operations[[#This Row],[Units per Hour]]*Operations[[#This Row],[Annual Use]]=0,0,(Operations[[#This Row],[Calc Beg Yr. Value]]-Operations[[#This Row],[Calc End Yr. Value]])/(Operations[[#This Row],[Annual Use]]))) -> 2.545667206 | S50: =IF(Operations[[#This Row],[Annual Use]]=0,0,Operations[[#This Row],[Calc Beg Yr. Value]]*'General Variables'!$B$9/Operations[[#This Row],[Annual Use]]) -> 0.7124064831 | T50: =IF(Operations[[#This Row],[Annual Use]]=0,0,Operations[[#This Row],[Calc Beg Yr. Value]]*'General Variables'!$B$10/Operations[[#This Row],[Annual Use]]) -> 1.424812966 | U50: =SUM(Operations[[#This Row],[Depreciation per Unit]:[Opportunity Cost per Unit]]) -> 4.682886656
A51: Rod Weeder | B51: acre | C51: Diskharrow - Tandem | D51: Disks and all other tillage equipment | F51: 7500 | G51: 5 | H51: 1000 | I51: 13.2 | J51: 1 | K51: Medium Tractor | L51: 5.346 | N51: =IF(Operations[[#This Row],[List Price]]>1,Operations[[#This Row],[List Price]],IF(Operations[[#This Row],[Depreciation Category]]=0,0,Operations[[#This Row],[Begin Yr. Value]]/(VLOOKUP(Operations[[#This Row],[Depreciation Category]],ImpDepLookup,2,FALSE)-VLOOKUP(Operations[[#This Row],[Depreciation Category]],ImpDepLookup,3,FALSE)*Operations[[#This Row],[Age]]^0.5-VLOOKUP(Operations[[#This Row],[Depreciation Category]],ImpDepLookup,4,FALSE)*(Operations[[#This Row],[Age]]*(Operations[[#This Row],[Age]]*Operations[[#This Row],[Annual Use]]/Operations[[#This Row],[Units per Hour]])^0.5))^2)) -> 18025.94488 | O51: =IF(Operations[[#This Row],[Repair Category]]="",0,(((Operations[[#This Row],[Age]]+1)*Operations[[#This Row],[Annual Use]]/Operations[[#This Row],[Units per Hour]]/1000)^VLOOKUP(Operations[[#This Row],[Repair Category]],ImpRepairFac[],4,FALSE)-(Operations[[#This Row],[Age]]*Operations[[#This Row],[Annual Use]]/Operations[[#This Row],[Units per Hour]]/1000)^VLOOKUP(Operations[[#This Row],[Repair Category]],ImpRepairFac[],4,FALSE))*Operations[[#This Row],[Calc List Price]]*VLOOKUP(Operations[[#This Row],[Repair Category]],ImpRepairFac[],3,FALSE)/Operations[[#This Row],[Annual Use]]) -> 0.2263455021 | P51: =IF(Operations[[#This Row],[Calc List Price]]=0,0,Operations[[#This Row],[Calc List Price]]*(VLOOKUP(Operations[[#This Row],[Depreciation Category]],ImpDepLookup,2,FALSE)-VLOOKUP(Operations[[#This Row],[Depreciation Category]],ImpDepLookup,3,FALSE)*Operations[[#This Row],[Age]]^0.5-VLOOKUP(Operations[[#This Row],[Depreciation Category]],ImpDepLookup,4,FALSE)*(Operations[[#This Row],[Age]]*Operations[[#This Row],[Annual Use]]/Operations[[#This Row],[Units per Hour]])^0.5)^2) -> 7500 | Q51: =IF(Operations[[#This Row],[Calc List Price]]=0,0,Operations[[#This Row],[Calc List Price]]*(VLOOKUP(Operations[[#This Row],[Depreciation Category]],ImpDepLookup,2,FALSE)-VLOOKUP(Operations[[#This Row],[Depreciation Category]],ImpDepLookup,3,FALSE)*(Operations[[#This Row],[Age]]+1)^0.5-VLOOKUP(Operations[[#This Row],[Depreciation Category]],ImpDepLookup,4,FALSE)*(Operations[[#This Row],[Age]]*Operations[[#This Row],[Annual Use]]/Operations[[#This Row],[Units per Hour]])^0.5)^2) -> 6963.999711 | R51: =IF(Operations[[#This Row],[Calc List Price]]=0,0,IF(Operations[[#This Row],[Units per Hour]]*Operations[[#This Row],[Annual Use]]=0,0,(Operations[[#This Row],[Calc Beg Yr. Value]]-Operations[[#This Row],[Calc End Yr. Value]])/(Operations[[#This Row],[Annual Use]]))) -> 0.5360002892 | S51: =IF(Operations[[#This Row],[Annual Use]]=0,0,Operations[[#This Row],[Calc Beg Yr. Value]]*'General Variables'!$B$9/Operations[[#This Row],[Annual Use]]) -> 0.15 | T51: =IF(Operations[[#This Row],[Annual Use]]=0,0,Operations[[#This Row],[Calc Beg Yr. Value]]*'General Variables'!$B$10/Operations[[#This Row],[Annual Use]]) -> 0.3 | U51: =SUM(Operations[[#This Row],[Depreciation per Unit]:[Opportunity Cost per Unit]]) -> 0.9860002892
A52: Rod Weeder & Fertilizer | B52: acre | C52: Diskharrow - Tandem | D52: Disks and all other tillage equipment | F52: 7500 | G52: 5 | H52: 1000 | I52: 13.2 | J52: 1.2 | K52: Medium Tractor | L52: 5.346 | N52: =IF(Operations[[#This Row],[List Price]]>1,Operations[[#This Row],[List Price]],IF(Operations[[#This Row],[Depreciation Category]]=0,0,Operations[[#This Row],[Begin Yr. Value]]/(VLOOKUP(Operations[[#This Row],[Depreciation Category]],ImpDepLookup,2,FALSE)-VLOOKUP(Operations[[#This Row],[Depreciation Category]],ImpDepLookup,3,FALSE)*Operations[[#This Row],[Age]]^0.5-VLOOKUP(Operations[[#This Row],[Depreciation Category]],ImpDepLookup,4,FALSE)*(Operations[[#This Row],[Age]]*(Operations[[#This Row],[Age]]*Operations[[#This Row],[Annual Use]]/Operations[[#This Row],[Units per Hour]])^0.5))^2)) -> 18025.94488 | O52: =IF(Operations[[#This Row],[Repair Category]]="",0,(((Operations[[#This Row],[Age]]+1)*Operations[[#This Row],[Annual Use]]/Operations[[#This Row],[Units per Hour]]/1000)^VLOOKUP(Operations[[#This Row],[Repair Category]],ImpRepairFac[],4,FALSE)-(Operations[[#This Row],[Age]]*Operations[[#This Row],[Annual Use]]/Operations[[#This Row],[Units per Hour]]/1000)^VLOOKUP(Operations[[#This Row],[Repair Category]],ImpRepairFac[],4,FALSE))*Operations[[#This Row],[Calc List Price]]*VLOOKUP(Operations[[#This Row],[Repair Category]],ImpRepairFac[],3,FALSE)/Operations[[#This Row],[Annual Use]]) -> 0.2263455021 | P52: =IF(Operations[[#This Row],[Calc List Price]]=0,0,Operations[[#This Row],[Calc List Price]]*(VLOOKUP(Operations[[#This Row],[Depreciation Category]],ImpDepLookup,2,FALSE)-VLOOKUP(Operations[[#This Row],[Depreciation Category]],ImpDepLookup,3,FALSE)*Operations[[#This Row],[Age]]^0.5-VLOOKUP(Operations[[#This Row],[Depreciation Category]],ImpDepLookup,4,FALSE)*(Operations[[#This Row],[Age]]*Operations[[#This Row],[Annual Use]]/Operations[[#This Row],[Units per Hour]])^0.5)^2) -> 7500 | Q52: =IF(Operations[[#This Row],[Calc List Price]]=0,0,Operations[[#This Row],[Calc List Price]]*(VLOOKUP(Operations[[#This Row],[Depreciation Category]],ImpDepLookup,2,FALSE)-VLOOKUP(Operations[[#This Row],[Depreciation Category]],ImpDepLookup,3,FALSE)*(Operations[[#This Row],[Age]]+1)^0.5-VLOOKUP(Operations[[#This Row],[Depreciation Category]],ImpDepLookup,4,FALSE)*(Operations[[#This Row],[Age]]*Operations[[#This Row],[Annual Use]]/Operations[[#This Row],[Units per Hour]])^0.5)^2) -> 6963.999711 | R52: =IF(Operations[[#This Row],[Calc List Price]]=0,0,IF(Operations[[#This Row],[Units per Hour]]*Operations[[#This Row],[Annual Use]]=0,0,(Operations[[#This Row],[Calc Beg Yr. Value]]-Operations[[#This Row],[Calc End Yr. Value]])/(Operations[[#This Row],[Annual Use]]))) -> 0.5360002892 | S52: =IF(Operations[[#This Row],[Annual Use]]=0,0,Operations[[#This Row],[Calc Beg Yr. Value]]*'General Variables'!$B$9/Operations[[#This Row],[Annual Use]]) -> 0.15 | T52: =IF(Operations[[#This Row],[Annual Use]]=0,0,Operations[[#This Row],[Calc Beg Yr. Value]]*'General Variables'!$B$10/Operations[[#This Row],[Annual Use]]) -> 0.3 | U52: =SUM(Operations[[#This Row],[Depreciation per Unit]:[Opportunity Cost per Unit]]) -> 0.9860002892
A53: Roll | B53: acre | C53: Mulcher-packer | D53: Disks and all other tillage equipment | G53: 5 | H53: 300 | I53: 9 | J53: 1 | K53: Medium Tractor | L53: 5.458646617 | N53: =IF(Operations[[#This Row],[List Price]]>1,Operations[[#This Row],[List Price]],IF(Operations[[#This Row],[Depreciation Category]]=0,0,Operations[[#This Row],[Begin Yr. Value]]/(VLOOKUP(Operations[[#This Row],[Depreciation Category]],ImpDepLookup,2,FALSE)-VLOOKUP(Operations[[#This Row],[Depreciation Category]],ImpDepLookup,3,FALSE)*Operations[[#This Row],[Age]]^0.5-VLOOKUP(Operations[[#This Row],[Depreciation Category]],ImpDepLookup,4,FALSE)*(Operations[[#This Row],[Age]]*(Operations[[#This Row],[Age]]*Operations[[#This Row],[Annual Use]]/Operations[[#This Row],[Units per Hour]])^0.5))^2)) -> 0 | O53: =IF(Operations[[#This Row],[Repair Category]]="",0,(((Operations[[#This Row],[Age]]+1)*Operations[[#This Row],[Annual Use]]/Operations[[#This Row],[Units per Hour]]/1000)^VLOOKUP(Operations[[#This Row],[Repair Category]],ImpRepairFac[],4,FALSE)-(Operations[[#This Row],[Age]]*Operations[[#This Row],[Annual Use]]/Operations[[#This Row],[Units per Hour]]/1000)^VLOOKUP(Operations[[#This Row],[Repair Category]],ImpRepairFac[],4,FALSE))*Operations[[#This Row],[Calc List Price]]*VLOOKUP(Operations[[#This Row],[Repair Category]],ImpRepairFac[],3,FALSE)/Operations[[#This Row],[Annual Use]]) -> 0 | P53: =IF(Operations[[#This Row],[Calc List Price]]=0,0,Operations[[#This Row],[Calc List Price]]*(VLOOKUP(Operations[[#This Row],[Depreciation Category]],ImpDepLookup,2,FALSE)-VLOOKUP(Operations[[#This Row],[Depreciation Category]],ImpDepLookup,3,FALSE)*Operations[[#This Row],[Age]]^0.5-VLOOKUP(Operations[[#This Row],[Depreciation Category]],ImpDepLookup,4,FALSE)*(Operations[[#This Row],[Age]]*Operations[[#This Row],[Annual Use]]/Operations[[#This Row],[Units per Hour]])^0.5)^2) -> 0 | Q53: =IF(Operations[[#This Row],[Calc List Price]]=0,0,Operations[[#This Row],[Calc List Price]]*(VLOOKUP(Operations[[#This Row],[Depreciation Category]],ImpDepLookup,2,FALSE)-VLOOKUP(Operations[[#This Row],[Depreciation Category]],ImpDepLookup,3,FALSE)*(Operations[[#This Row],[Age]]+1)^0.5-VLOOKUP(Operations[[#This Row],[Depreciation Category]],ImpDepLookup,4,FALSE)*(Operations[[#This Row],[Age]]*Operations[[#This Row],[Annual Use]]/Operations[[#This Row],[Units per Hour]])^0.5)^2) -> 0 | R53: =IF(Operations[[#This Row],[Calc List Price]]=0,0,IF(Operations[[#This Row],[Units per Hour]]*Operations[[#This Row],[Annual Use]]=0,0,(Operations[[#This Row],[Calc Beg Yr. Value]]-Operations[[#This Row],[Calc End Yr. Value]])/(Operations[[#This Row],[Annual Use]]))) -> 0 | S53: =IF(Operations[[#This Row],[Annual Use]]=0,0,Operations[[#This Row],[Calc Beg Yr. Value]]*'General Variables'!$B$9/Operations[[#This Row],[Annual Use]]) -> 0 | T53: =IF(Operations[[#This Row],[Annual Use]]=0,0,Operations[[#This Row],[Calc Beg Yr. Value]]*'General Variables'!$B$10/Operations[[#This Row],[Annual Use]]) -> 0 | U53: =SUM(Operations[[#This Row],[Depreciation per Unit]:[Opportunity Cost per Unit]]) -> 0
A54: Roller Harrow | B54: acre | C54: Mulcher-packer | D54: Disks and all other tillage equipment | E54: 56958 | G54: 5 | H54: 1000 | I54: 10 | J54: 1 | K54: Medium Tractor | L54: 5 | N54: =IF(Operations[[#This Row],[List Price]]>1,Operations[[#This Row],[List Price]],IF(Operations[[#This Row],[Depreciation Category]]=0,0,Operations[[#This Row],[Begin Yr. Value]]/(VLOOKUP(Operations[[#This Row],[Depreciation Category]],ImpDepLookup,2,FALSE)-VLOOKUP(Operations[[#This Row],[Depreciation Category]],ImpDepLookup,3,FALSE)*Operations[[#This Row],[Age]]^0.5-VLOOKUP(Operations[[#This Row],[Depreciation Category]],ImpDepLookup,4,FALSE)*(Operations[[#This Row],[Age]]*(Operations[[#This Row],[Age]]*Operations[[#This Row],[Annual Use]]/Operations[[#This Row],[Units per Hour]])^0.5))^2)) -> 56958 | O54: =IF(Operations[[#This Row],[Repair Category]]="",0,(((Operations[[#This Row],[Age]]+1)*Operations[[#This Row],[Annual Use]]/Operations[[#This Row],[Units per Hour]]/1000)^VLOOKUP(Operations[[#This Row],[Repair Category]],ImpRepairFac[],4,FALSE)-(Operations[[#This Row],[Age]]*Operations[[#This Row],[Annual Use]]/Operations[[#This Row],[Units per Hour]]/1000)^VLOOKUP(Operations[[#This Row],[Repair Category]],ImpRepairFac[],4,FALSE))*Operations[[#This Row],[Calc List Price]]*VLOOKUP(Operations[[#This Row],[Repair Category]],ImpRepairFac[],3,FALSE)/Operations[[#This Row],[Annual Use]]) -> 0.9899220393 | P54: =IF(Operations[[#This Row],[Calc List Price]]=0,0,Operations[[#This Row],[Calc List Price]]*(VLOOKUP(Operations[[#This Row],[Depreciation Category]],ImpDepLookup,2,FALSE)-VLOOKUP(Operations[[#This Row],[Depreciation Category]],ImpDepLookup,3,FALSE)*Operations[[#This Row],[Age]]^0.5-VLOOKUP(Operations[[#This Row],[Depreciation Category]],ImpDepLookup,4,FALSE)*(Operations[[#This Row],[Age]]*Operations[[#This Row],[Annual Use]]/Operations[[#This Row],[Units per Hour]])^0.5)^2) -> 23698.34163 | Q54: =IF(Operations[[#This Row],[Calc List Price]]=0,0,Operations[[#This Row],[Calc List Price]]*(VLOOKUP(Operations[[#This Row],[Depreciation Category]],ImpDepLookup,2,FALSE)-VLOOKUP(Operations[[#This Row],[Depreciation Category]],ImpDepLookup,3,FALSE)*(Operations[[#This Row],[Age]]+1)^0.5-VLOOKUP(Operations[[#This Row],[Depreciation Category]],ImpDepLookup,4,FALSE)*(Operations[[#This Row],[Age]]*Operations[[#This Row],[Annual Use]]/Operations[[#This Row],[Units per Hour]])^0.5)^2) -> 22004.69923 | R54: =IF(Operations[[#This Row],[Calc List Price]]=0,0,IF(Operations[[#This Row],[Units per Hour]]*Operations[[#This Row],[Annual Use]]=0,0,(Operations[[#This Row],[Calc Beg Yr. Value]]-Operations[[#This Row],[Calc End Yr. Value]])/(Operations[[#This Row],[Annual Use]]))) -> 1.693642395 | S54: =IF(Operations[[#This Row],[Annual Use]]=0,0,Operations[[#This Row],[Calc Beg Yr. Value]]*'General Variables'!$B$9/Operations[[#This Row],[Annual Use]]) -> 0.4739668325 | T54: =IF(Operations[[#This Row],[Annual Use]]=0,0,Operations[[#This Row],[Calc Beg Yr. Value]]*'General Variables'!$B$10/Operations[[#This Row],[Annual Use]]) -> 0.947933665 | U54: =SUM(Operations[[#This Row],[Depreciation per Unit]:[Opportunity Cost per Unit]]) -> 3.115542893
A55: Row Crop Cultivation | B55: acre | C55: Cultivator - Row crop | D55: Disks and all other tillage equipment | E55: 29000 | G55: 5 | H55: 1000 | I55: 11 | J55: 1.1 | K55: Medium Tractor | L55: 3.5 | N55: =IF(Operations[[#This Row],[List Price]]>1,Operations[[#This Row],[List Price]],IF(Operations[[#This Row],[Depreciation Category]]=0,0,Operations[[#This Row],[Begin Yr. Value]]/(VLOOKUP(Operations[[#This Row],[Depreciation Category]],ImpDepLookup,2,FALSE)-VLOOKUP(Operations[[#This Row],[Depreciation Category]],ImpDepLookup,3,FALSE)*Operations[[#This Row],[Age]]^0.5-VLOOKUP(Operations[[#This Row],[Depreciation Category]],ImpDepLookup,4,FALSE)*(Operations[[#This Row],[Age]]*(Operations[[#This Row],[Age]]*Operations[[#This Row],[Annual Use]]/Operations[[#This Row],[Units per Hour]])^0.5))^2)) -> 29000 | O55: =IF(Operations[[#This Row],[Repair Category]]="",0,(((Operations[[#This Row],[Age]]+1)*Operations[[#This Row],[Annual Use]]/Operations[[#This Row],[Units per Hour]]/1000)^VLOOKUP(Operations[[#This Row],[Repair Category]],ImpRepairFac[],4,FALSE)-(Operations[[#This Row],[Age]]*Operations[[#This Row],[Annual Use]]/Operations[[#This Row],[Units per Hour]]/1000)^VLOOKUP(Operations[[#This Row],[Repair Category]],ImpRepairFac[],4,FALSE))*Operations[[#This Row],[Calc List Price]]*VLOOKUP(Operations[[#This Row],[Repair Category]],ImpRepairFac[],3,FALSE)/Operations[[#This Row],[Annual Use]]) -> 0.4293233905 | P55: =IF(Operations[[#This Row],[Calc List Price]]=0,0,Operations[[#This Row],[Calc List Price]]*(VLOOKUP(Operations[[#This Row],[Depreciation Category]],ImpDepLookup,2,FALSE)-VLOOKUP(Operations[[#This Row],[Depreciation Category]],ImpDepLookup,3,FALSE)*Operations[[#This Row],[Age]]^0.5-VLOOKUP(Operations[[#This Row],[Depreciation Category]],ImpDepLookup,4,FALSE)*(Operations[[#This Row],[Age]]*Operations[[#This Row],[Annual Use]]/Operations[[#This Row],[Units per Hour]])^0.5)^2) -> 12065.9417 | Q55: =IF(Operations[[#This Row],[Calc List Price]]=0,0,Operations[[#This Row],[Calc List Price]]*(VLOOKUP(Operations[[#This Row],[Depreciation Category]],ImpDepLookup,2,FALSE)-VLOOKUP(Operations[[#This Row],[Depreciation Category]],ImpDepLookup,3,FALSE)*(Operations[[#This Row],[Age]]+1)^0.5-VLOOKUP(Operations[[#This Row],[Depreciation Category]],ImpDepLookup,4,FALSE)*(Operations[[#This Row],[Age]]*Operations[[#This Row],[Annual Use]]/Operations[[#This Row],[Units per Hour]])^0.5)^2) -> 11203.6286 | R55: =IF(Operations[[#This Row],[Calc List Price]]=0,0,IF(Operations[[#This Row],[Units per Hour]]*Operations[[#This Row],[Annual Use]]=0,0,(Operations[[#This Row],[Calc Beg Yr. Value]]-Operations[[#This Row],[Calc End Yr. Value]])/(Operations[[#This Row],[Annual Use]]))) -> 0.8623130985 | S55: =IF(Operations[[#This Row],[Annual Use]]=0,0,Operations[[#This Row],[Calc Beg Yr. Value]]*'General Variables'!$B$9/Operations[[#This Row],[Annual Use]]) -> 0.2413188339 | T55: =IF(Operations[[#This Row],[Annual Use]]=0,0,Operations[[#This Row],[Calc Beg Yr. Value]]*'General Variables'!$B$10/Operations[[#This Row],[Annual Use]]) -> 0.4826376679 | U55: =SUM(Operations[[#This Row],[Depreciation per Unit]:[Opportunity Cost per Unit]]) -> 1.5862696
A56: Seeder/Packer | B56: acre | C56: Drill - Grain | D56: Planters | E56: 62545 | G56: 5 | H56: 1000 | I56: 8 | J56: 1.2 | K56: Medium Tractor | L56: 4.293680297 | N56: =IF(Operations[[#This Row],[List Price]]>1,Operations[[#This Row],[List Price]],IF(Operations[[#This Row],[Depreciation Category]]=0,0,Operations[[#This Row],[Begin Yr. Value]]/(VLOOKUP(Operations[[#This Row],[Depreciation Category]],ImpDepLookup,2,FALSE)-VLOOKUP(Operations[[#This Row],[Depreciation Category]],ImpDepLookup,3,FALSE)*Operations[[#This Row],[Age]]^0.5-VLOOKUP(Operations[[#This Row],[Depreciation Category]],ImpDepLookup,4,FALSE)*(Operations[[#This Row],[Age]]*(Operations[[#This Row],[Age]]*Operations[[#This Row],[Annual Use]]/Operations[[#This Row],[Units per Hour]])^0.5))^2)) -> 62545 | O56: =IF(Operations[[#This Row],[Repair Category]]="",0,(((Operations[[#This Row],[Age]]+1)*Operations[[#This Row],[Annual Use]]/Operations[[#This Row],[Units per Hour]]/1000)^VLOOKUP(Operations[[#This Row],[Repair Category]],ImpRepairFac[],4,FALSE)-(Operations[[#This Row],[Age]]*Operations[[#This Row],[Annual Use]]/Operations[[#This Row],[Units per Hour]]/1000)^VLOOKUP(Operations[[#This Row],[Repair Category]],ImpRepairFac[],4,FALSE))*Operations[[#This Row],[Calc List Price]]*VLOOKUP(Operations[[#This Row],[Repair Category]],ImpRepairFac[],3,FALSE)/Operations[[#This Row],[Annual Use]]) -> 3.47966712 | P56: =IF(Operations[[#This Row],[Calc List Price]]=0,0,Operations[[#This Row],[Calc List Price]]*(VLOOKUP(Operations[[#This Row],[Depreciation Category]],ImpDepLookup,2,FALSE)-VLOOKUP(Operations[[#This Row],[Depreciation Category]],ImpDepLookup,3,FALSE)*Operations[[#This Row],[Age]]^0.5-VLOOKUP(Operations[[#This Row],[Depreciation Category]],ImpDepLookup,4,FALSE)*(Operations[[#This Row],[Age]]*Operations[[#This Row],[Annual Use]]/Operations[[#This Row],[Units per Hour]])^0.5)^2) -> 31403.53854 | Q56: =IF(Operations[[#This Row],[Calc List Price]]=0,0,Operations[[#This Row],[Calc List Price]]*(VLOOKUP(Operations[[#This Row],[Depreciation Category]],ImpDepLookup,2,FALSE)-VLOOKUP(Operations[[#This Row],[Depreciation Category]],ImpDepLookup,3,FALSE)*(Operations[[#This Row],[Age]]+1)^0.5-VLOOKUP(Operations[[#This Row],[Depreciation Category]],ImpDepLookup,4,FALSE)*(Operations[[#This Row],[Age]]*Operations[[#This Row],[Annual Use]]/Operations[[#This Row],[Units per Hour]])^0.5)^2) -> 29945.33806 | R56: =IF(Operations[[#This Row],[Calc List Price]]=0,0,IF(Operations[[#This Row],[Units per Hour]]*Operations[[#This Row],[Annual Use]]=0,0,(Operations[[#This Row],[Calc Beg Yr. Value]]-Operations[[#This Row],[Calc End Yr. Value]])/(Operations[[#This Row],[Annual Use]]))) -> 1.458200482 | S56: =IF(Operations[[#This Row],[Annual Use]]=0,0,Operations[[#This Row],[Calc Beg Yr. Value]]*'General Variables'!$B$9/Operations[[#This Row],[Annual Use]]) -> 0.6280707709 | T56: =IF(Operations[[#This Row],[Annual Use]]=0,0,Operations[[#This Row],[Calc Beg Yr. Value]]*'General Variables'!$B$10/Operations[[#This Row],[Annual Use]]) -> 1.256141542 | U56: =SUM(Operations[[#This Row],[Depreciation per Unit]:[Opportunity Cost per Unit]]) -> 3.342412794
A57: Spray | B57: acre | C57: Sprayer - Boom-type | D57: Manure spreaders and all other miscellaneous equipment | E57: 35000 | G57: 5 | H57: 2500 | I57: 25 | J57: 1.25 | K57: Medium Tractor | L57: 2.64 | N57: =IF(Operations[[#This Row],[List Price]]>1,Operations[[#This Row],[List Price]],IF(Operations[[#This Row],[Depreciation Category]]=0,0,Operations[[#This Row],[Begin Yr. Value]]/(VLOOKUP(Operations[[#This Row],[Depreciation Category]],ImpDepLookup,2,FALSE)-VLOOKUP(Operations[[#This Row],[Depreciation Category]],ImpDepLookup,3,FALSE)*Operations[[#This Row],[Age]]^0.5-VLOOKUP(Operations[[#This Row],[Depreciation Category]],ImpDepLookup,4,FALSE)*(Operations[[#This Row],[Age]]*(Operations[[#This Row],[Age]]*Operations[[#This Row],[Annual Use]]/Operations[[#This Row],[Units per Hour]])^0.5))^2)) -> 35000 | O57: =IF(Operations[[#This Row],[Repair Category]]="",0,(((Operations[[#This Row],[Age]]+1)*Operations[[#This Row],[Annual Use]]/Operations[[#This Row],[Units per Hour]]/1000)^VLOOKUP(Operations[[#This Row],[Repair Category]],ImpRepairFac[],4,FALSE)-(Operations[[#This Row],[Age]]*Operations[[#This Row],[Annual Use]]/Operations[[#This Row],[Units per Hour]]/1000)^VLOOKUP(Operations[[#This Row],[Repair Category]],ImpRepairFac[],4,FALSE))*Operations[[#This Row],[Calc List Price]]*VLOOKUP(Operations[[#This Row],[Repair Category]],ImpRepairFac[],3,FALSE)/Operations[[#This Row],[Annual Use]]) -> 0.6235024608 | P57: =IF(Operations[[#This Row],[Calc List Price]]=0,0,Operations[[#This Row],[Calc List Price]]*(VLOOKUP(Operations[[#This Row],[Depreciation Category]],ImpDepLookup,2,FALSE)-VLOOKUP(Operations[[#This Row],[Depreciation Category]],ImpDepLookup,3,FALSE)*Operations[[#This Row],[Age]]^0.5-VLOOKUP(Operations[[#This Row],[Depreciation Category]],ImpDepLookup,4,FALSE)*(Operations[[#This Row],[Age]]*Operations[[#This Row],[Annual Use]]/Operations[[#This Row],[Units per Hour]])^0.5)^2) -> 16895.97396 | Q57: =IF(Operations[[#This Row],[Calc List Price]]=0,0,Operations[[#This Row],[Calc List Price]]*(VLOOKUP(Operations[[#This Row],[Depreciation Category]],ImpDepLookup,2,FALSE)-VLOOKUP(Operations[[#This Row],[Depreciation Category]],ImpDepLookup,3,FALSE)*(Operations[[#This Row],[Age]]+1)^0.5-VLOOKUP(Operations[[#This Row],[Depreciation Category]],ImpDepLookup,4,FALSE)*(Operations[[#This Row],[Age]]*Operations[[#This Row],[Annual Use]]/Operations[[#This Row],[Units per Hour]])^0.5)^2) -> 15763.44421 | R57: =IF(Operations[[#This Row],[Calc List Price]]=0,0,IF(Operations[[#This Row],[Units per Hour]]*Operations[[#This Row],[Annual Use]]=0,0,(Operations[[#This Row],[Calc Beg Yr. Value]]-Operations[[#This Row],[Calc End Yr. Value]])/(Operations[[#This Row],[Annual Use]]))) -> 0.4530119003 | S57: =IF(Operations[[#This Row],[Annual Use]]=0,0,Operations[[#This Row],[Calc Beg Yr. Value]]*'General Variables'!$B$9/Operations[[#This Row],[Annual Use]]) -> 0.1351677917 | T57: =IF(Operations[[#This Row],[Annual Use]]=0,0,Operations[[#This Row],[Calc Beg Yr. Value]]*'General Variables'!$B$10/Operations[[#This Row],[Annual Use]]) -> 0.2703355834 | U57: =SUM(Operations[[#This Row],[Depreciation per Unit]:[Opportunity Cost per Unit]]) -> 0.8585152753
A58: Spray (on Disk) | B58: acre | C58: Disk - Heavy-duty | D58: Disks and all other tillage equipment | E58: 41688 | G58: 5 | H58: 2000 | I58: 11 | J58: 1.3 | K58: Medium Tractor | L58: 8.29 | N58: =IF(Operations[[#This Row],[List Price]]>1,Operations[[#This Row],[List Price]],IF(Operations[[#This Row],[Depreciation Category]]=0,0,Operations[[#This Row],[Begin Yr. Value]]/(VLOOKUP(Operations[[#This Row],[Depreciation Category]],ImpDepLookup,2,FALSE)-VLOOKUP(Operations[[#This Row],[Depreciation Category]],ImpDepLookup,3,FALSE)*Operations[[#This Row],[Age]]^0.5-VLOOKUP(Operations[[#This Row],[Depreciation Category]],ImpDepLookup,4,FALSE)*(Operations[[#This Row],[Age]]*(Operations[[#This Row],[Age]]*Operations[[#This Row],[Annual Use]]/Operations[[#This Row],[Units per Hour]])^0.5))^2)) -> 41688 | O58: =IF(Operations[[#This Row],[Repair Category]]="",0,(((Operations[[#This Row],[Age]]+1)*Operations[[#This Row],[Annual Use]]/Operations[[#This Row],[Units per Hour]]/1000)^VLOOKUP(Operations[[#This Row],[Repair Category]],ImpRepairFac[],4,FALSE)-(Operations[[#This Row],[Age]]*Operations[[#This Row],[Annual Use]]/Operations[[#This Row],[Units per Hour]]/1000)^VLOOKUP(Operations[[#This Row],[Repair Category]],ImpRepairFac[],4,FALSE))*Operations[[#This Row],[Calc List Price]]*VLOOKUP(Operations[[#This Row],[Repair Category]],ImpRepairFac[],3,FALSE)/Operations[[#This Row],[Annual Use]]) -> 1.159348502 | P58: =IF(Operations[[#This Row],[Calc List Price]]=0,0,Operations[[#This Row],[Calc List Price]]*(VLOOKUP(Operations[[#This Row],[Depreciation Category]],ImpDepLookup,2,FALSE)-VLOOKUP(Operations[[#This Row],[Depreciation Category]],ImpDepLookup,3,FALSE)*Operations[[#This Row],[Age]]^0.5-VLOOKUP(Operations[[#This Row],[Depreciation Category]],ImpDepLookup,4,FALSE)*(Operations[[#This Row],[Age]]*Operations[[#This Row],[Annual Use]]/Operations[[#This Row],[Units per Hour]])^0.5)^2) -> 17344.99922 | Q58: =IF(Operations[[#This Row],[Calc List Price]]=0,0,Operations[[#This Row],[Calc List Price]]*(VLOOKUP(Operations[[#This Row],[Depreciation Category]],ImpDepLookup,2,FALSE)-VLOOKUP(Operations[[#This Row],[Depreciation Category]],ImpDepLookup,3,FALSE)*(Operations[[#This Row],[Age]]+1)^0.5-VLOOKUP(Operations[[#This Row],[Depreciation Category]],ImpDepLookup,4,FALSE)*(Operations[[#This Row],[Age]]*Operations[[#This Row],[Annual Use]]/Operations[[#This Row],[Units per Hour]])^0.5)^2) -> 16105.40928 | R58: =IF(Operations[[#This Row],[Calc List Price]]=0,0,IF(Operations[[#This Row],[Units per Hour]]*Operations[[#This Row],[Annual Use]]=0,0,(Operations[[#This Row],[Calc Beg Yr. Value]]-Operations[[#This Row],[Calc End Yr. Value]])/(Operations[[#This Row],[Annual Use]]))) -> 0.6197949733 | S58: =IF(Operations[[#This Row],[Annual Use]]=0,0,Operations[[#This Row],[Calc Beg Yr. Value]]*'General Variables'!$B$9/Operations[[#This Row],[Annual Use]]) -> 0.1734499922 | T58: =IF(Operations[[#This Row],[Annual Use]]=0,0,Operations[[#This Row],[Calc Beg Yr. Value]]*'General Variables'!$B$10/Operations[[#This Row],[Annual Use]]) -> 0.3468999844 | U58: =SUM(Operations[[#This Row],[Depreciation per Unit]:[Opportunity Cost per Unit]]) -> 1.14014495
A59: Spray (on Field Cultivator) | B59: acre | C59: Cultivator - Field | D59: Disks and all other tillage equipment | E59: 58958 | G59: 5 | H59: 2000 | I59: 15 | J59: 1.3 | K59: Medium Tractor | L59: 8.2 | N59: =IF(Operations[[#This Row],[List Price]]>1,Operations[[#This Row],[List Price]],IF(Operations[[#This Row],[Depreciation Category]]=0,0,Operations[[#This Row],[Begin Yr. Value]]/(VLOOKUP(Operations[[#This Row],[Depreciation Category]],ImpDepLookup,2,FALSE)-VLOOKUP(Operations[[#This Row],[Depreciation Category]],ImpDepLookup,3,FALSE)*Operations[[#This Row],[Age]]^0.5-VLOOKUP(Operations[[#This Row],[Depreciation Category]],ImpDepLookup,4,FALSE)*(Operations[[#This Row],[Age]]*(Operations[[#This Row],[Age]]*Operations[[#This Row],[Annual Use]]/Operations[[#This Row],[Units per Hour]])^0.5))^2)) -> 58958 | O59: =IF(Operations[[#This Row],[Repair Category]]="",0,(((Operations[[#This Row],[Age]]+1)*Operations[[#This Row],[Annual Use]]/Operations[[#This Row],[Units per Hour]]/1000)^VLOOKUP(Operations[[#This Row],[Repair Category]],ImpRepairFac[],4,FALSE)-(Operations[[#This Row],[Age]]*Operations[[#This Row],[Annual Use]]/Operations[[#This Row],[Units per Hour]]/1000)^VLOOKUP(Operations[[#This Row],[Repair Category]],ImpRepairFac[],4,FALSE))*Operations[[#This Row],[Calc List Price]]*VLOOKUP(Operations[[#This Row],[Repair Category]],ImpRepairFac[],3,FALSE)/Operations[[#This Row],[Annual Use]]) -> 1.311958248 | P59: =IF(Operations[[#This Row],[Calc List Price]]=0,0,Operations[[#This Row],[Calc List Price]]*(VLOOKUP(Operations[[#This Row],[Depreciation Category]],ImpDepLookup,2,FALSE)-VLOOKUP(Operations[[#This Row],[Depreciation Category]],ImpDepLookup,3,FALSE)*Operations[[#This Row],[Age]]^0.5-VLOOKUP(Operations[[#This Row],[Depreciation Category]],ImpDepLookup,4,FALSE)*(Operations[[#This Row],[Age]]*Operations[[#This Row],[Annual Use]]/Operations[[#This Row],[Units per Hour]])^0.5)^2) -> 24530.47554 | Q59: =IF(Operations[[#This Row],[Calc List Price]]=0,0,Operations[[#This Row],[Calc List Price]]*(VLOOKUP(Operations[[#This Row],[Depreciation Category]],ImpDepLookup,2,FALSE)-VLOOKUP(Operations[[#This Row],[Depreciation Category]],ImpDepLookup,3,FALSE)*(Operations[[#This Row],[Age]]+1)^0.5-VLOOKUP(Operations[[#This Row],[Depreciation Category]],ImpDepLookup,4,FALSE)*(Operations[[#This Row],[Age]]*Operations[[#This Row],[Annual Use]]/Operations[[#This Row],[Units per Hour]])^0.5)^2) -> 22777.36327 | R59: =IF(Operations[[#This Row],[Calc List Price]]=0,0,IF(Operations[[#This Row],[Units per Hour]]*Operations[[#This Row],[Annual Use]]=0,0,(Operations[[#This Row],[Calc Beg Yr. Value]]-Operations[[#This Row],[Calc End Yr. Value]])/(Operations[[#This Row],[Annual Use]]))) -> 0.8765561321 | S59: =IF(Operations[[#This Row],[Annual Use]]=0,0,Operations[[#This Row],[Calc Beg Yr. Value]]*'General Variables'!$B$9/Operations[[#This Row],[Annual Use]]) -> 0.2453047554 | T59: =IF(Operations[[#This Row],[Annual Use]]=0,0,Operations[[#This Row],[Calc Beg Yr. Value]]*'General Variables'!$B$10/Operations[[#This Row],[Annual Use]]) -> 0.4906095107 | U59: =SUM(Operations[[#This Row],[Depreciation per Unit]:[Opportunity Cost per Unit]]) -> 1.612470398
A60: Spray (Prior Year Stubble) | B60: acre | C60: Sprayer - Boom-type | D60: Manure spreaders and all other miscellaneous equipment | E60: 35000 | G60: 5 | H60: 2500 | I60: 25 | J60: 1.25 | K60: Medium Tractor | L60: 2.64 | N60: =IF(Operations[[#This Row],[List Price]]>1,Operations[[#This Row],[List Price]],IF(Operations[[#This Row],[Depreciation Category]]=0,0,Operations[[#This Row],[Begin Yr. Value]]/(VLOOKUP(Operations[[#This Row],[Depreciation Category]],ImpDepLookup,2,FALSE)-VLOOKUP(Operations[[#This Row],[Depreciation Category]],ImpDepLookup,3,FALSE)*Operations[[#This Row],[Age]]^0.5-VLOOKUP(Operations[[#This Row],[Depreciation Category]],ImpDepLookup,4,FALSE)*(Operations[[#This Row],[Age]]*(Operations[[#This Row],[Age]]*Operations[[#This Row],[Annual Use]]/Operations[[#This Row],[Units per Hour]])^0.5))^2)) -> 35000 | O60: =IF(Operations[[#This Row],[Repair Category]]="",0,(((Operations[[#This Row],[Age]]+1)*Operations[[#This Row],[Annual Use]]/Operations[[#This Row],[Units per Hour]]/1000)^VLOOKUP(Operations[[#This Row],[Repair Category]],ImpRepairFac[],4,FALSE)-(Operations[[#This Row],[Age]]*Operations[[#This Row],[Annual Use]]/Operations[[#This Row],[Units per Hour]]/1000)^VLOOKUP(Operations[[#This Row],[Repair Category]],ImpRepairFac[],4,FALSE))*Operations[[#This Row],[Calc List Price]]*VLOOKUP(Operations[[#This Row],[Repair Category]],ImpRepairFac[],3,FALSE)/Operations[[#This Row],[Annual Use]]) -> 0.6235024608 | P60: =IF(Operations[[#This Row],[Calc List Price]]=0,0,Operations[[#This Row],[Calc List Price]]*(VLOOKUP(Operations[[#This Row],[Depreciation Category]],ImpDepLookup,2,FALSE)-VLOOKUP(Operations[[#This Row],[Depreciation Category]],ImpDepLookup,3,FALSE)*Operations[[#This Row],[Age]]^0.5-VLOOKUP(Operations[[#This Row],[Depreciation Category]],ImpDepLookup,4,FALSE)*(Operations[[#This Row],[Age]]*Operations[[#This Row],[Annual Use]]/Operations[[#This Row],[Units per Hour]])^0.5)^2) -> 16895.97396 | Q60: =IF(Operations[[#This Row],[Calc List Price]]=0,0,Operations[[#This Row],[Calc List Price]]*(VLOOKUP(Operations[[#This Row],[Depreciation Category]],ImpDepLookup,2,FALSE)-VLOOKUP(Operations[[#This Row],[Depreciation Category]],ImpDepLookup,3,FALSE)*(Operations[[#This Row],[Age]]+1)^0.5-VLOOKUP(Operations[[#This Row],[Depreciation Category]],ImpDepLookup,4,FALSE)*(Operations[[#This Row],[Age]]*Operations[[#This Row],[Annual Use]]/Operations[[#This Row],[Units per Hour]])^0.5)^2) -> 15763.44421 | R60: =IF(Operations[[#This Row],[Calc List Price]]=0,0,IF(Operations[[#This Row],[Units per Hour]]*Operations[[#This Row],[Annual Use]]=0,0,(Operations[[#This Row],[Calc Beg Yr. Value]]-Operations[[#This Row],[Calc End Yr. Value]])/(Operations[[#This Row],[Annual Use]]))) -> 0.4530119003 | S60: =IF(Operations[[#This Row],[Annual Use]]=0,0,Operations[[#This Row],[Calc Beg Yr. Value]]*'General Variables'!$B$9/Operations[[#This Row],[Annual Use]]) -> 0.1351677917 | T60: =IF(Operations[[#This Row],[Annual Use]]=0,0,Operations[[#This Row],[Calc Beg Yr. Value]]*'General Variables'!$B$10/Operations[[#This Row],[Annual Use]]) -> 0.2703355834 | U60: =SUM(Operations[[#This Row],[Depreciation per Unit]:[Opportunity Cost per Unit]]) -> 0.8585152753
A61: Spray Fertilizer | B61: acre | C61: Sprayer - Air-carrier | D61: Manure spreaders and all other miscellaneous equipment | E61: 35000 | G61: 5 | H61: 1000 | I61: 25 | J61: 1.25 | K61: Medium Tractor | L61: 2.64 | N61: =IF(Operations[[#This Row],[List Price]]>1,Operations[[#This Row],[List Price]],IF(Operations[[#This Row],[Depreciation Category]]=0,0,Operations[[#This Row],[Begin Yr. Value]]/(VLOOKUP(Operations[[#This Row],[Depreciation Category]],ImpDepLookup,2,FALSE)-VLOOKUP(Operations[[#This Row],[Depreciation Category]],ImpDepLookup,3,FALSE)*Operations[[#This Row],[Age]]^0.5-VLOOKUP(Operations[[#This Row],[Depreciation Category]],ImpDepLookup,4,FALSE)*(Operations[[#This Row],[Age]]*(Operations[[#This Row],[Age]]*Operations[[#This Row],[Annual Use]]/Operations[[#This Row],[Units per Hour]])^0.5))^2)) -> 35000 | O61: =IF(Operations[[#This Row],[Repair Category]]="",0,(((Operations[[#This Row],[Age]]+1)*Operations[[#This Row],[Annual Use]]/Operations[[#This Row],[Units per Hour]]/1000)^VLOOKUP(Operations[[#This Row],[Repair Category]],ImpRepairFac[],4,FALSE)-(Operations[[#This Row],[Age]]*Operations[[#This Row],[Annual Use]]/Operations[[#This Row],[Units per Hour]]/1000)^VLOOKUP(Operations[[#This Row],[Repair Category]],ImpRepairFac[],4,FALSE))*Operations[[#This Row],[Calc List Price]]*VLOOKUP(Operations[[#This Row],[Repair Category]],ImpRepairFac[],3,FALSE)/Operations[[#This Row],[Annual Use]]) -> 0.1805459831 | P61: =IF(Operations[[#This Row],[Calc List Price]]=0,0,Operations[[#This Row],[Calc List Price]]*(VLOOKUP(Operations[[#This Row],[Depreciation Category]],ImpDepLookup,2,FALSE)-VLOOKUP(Operations[[#This Row],[Depreciation Category]],ImpDepLookup,3,FALSE)*Operations[[#This Row],[Age]]^0.5-VLOOKUP(Operations[[#This Row],[Depreciation Category]],ImpDepLookup,4,FALSE)*(Operations[[#This Row],[Age]]*Operations[[#This Row],[Annual Use]]/Operations[[#This Row],[Units per Hour]])^0.5)^2) -> 16895.97396 | Q61: =IF(Operations[[#This Row],[Calc List Price]]=0,0,Operations[[#This Row],[Calc List Price]]*(VLOOKUP(Operations[[#This Row],[Depreciation Category]],ImpDepLookup,2,FALSE)-VLOOKUP(Operations[[#This Row],[Depreciation Category]],ImpDepLookup,3,FALSE)*(Operations[[#This Row],[Age]]+1)^0.5-VLOOKUP(Operations[[#This Row],[Depreciation Category]],ImpDepLookup,4,FALSE)*(Operations[[#This Row],[Age]]*Operations[[#This Row],[Annual Use]]/Operations[[#This Row],[Units per Hour]])^0.5)^2) -> 15763.44421 | R61: =IF(Operations[[#This Row],[Calc List Price]]=0,0,IF(Operations[[#This Row],[Units per Hour]]*Operations[[#This Row],[Annual Use]]=0,0,(Operations[[#This Row],[Calc Beg Yr. Value]]-Operations[[#This Row],[Calc End Yr. Value]])/(Operations[[#This Row],[Annual Use]]))) -> 1.132529751 | S61: =IF(Operations[[#This Row],[Annual Use]]=0,0,Operations[[#This Row],[Calc Beg Yr. Value]]*'General Variables'!$B$9/Operations[[#This Row],[Annual Use]]) -> 0.3379194792 | T61: =IF(Operations[[#This Row],[Annual Use]]=0,0,Operations[[#This Row],[Calc Beg Yr. Value]]*'General Variables'!$B$10/Operations[[#This Row],[Annual Use]]) -> 0.6758389585 | U61: =SUM(Operations[[#This Row],[Depreciation per Unit]:[Opportunity Cost per Unit]]) -> 2.146288188
A62: Spray fertilizer and herbicide | B62: acre | C62: Sprayer - Air-carrier | D62: Manure spreaders and all other miscellaneous equipment | E62: 35000 | G62: 5 | H62: 1000 | I62: 25 | J62: 1.25 | K62: Medium Tractor | L62: 2.64 | N62: =IF(Operations[[#This Row],[List Price]]>1,Operations[[#This Row],[List Price]],IF(Operations[[#This Row],[Depreciation Category]]=0,0,Operations[[#This Row],[Begin Yr. Value]]/(VLOOKUP(Operations[[#This Row],[Depreciation Category]],ImpDepLookup,2,FALSE)-VLOOKUP(Operations[[#This Row],[Depreciation Category]],ImpDepLookup,3,FALSE)*Operations[[#This Row],[Age]]^0.5-VLOOKUP(Operations[[#This Row],[Depreciation Category]],ImpDepLookup,4,FALSE)*(Operations[[#This Row],[Age]]*(Operations[[#This Row],[Age]]*Operations[[#This Row],[Annual Use]]/Operations[[#This Row],[Units per Hour]])^0.5))^2)) -> 35000 | O62: =IF(Operations[[#This Row],[Repair Category]]="",0,(((Operations[[#This Row],[Age]]+1)*Operations[[#This Row],[Annual Use]]/Operations[[#This Row],[Units per Hour]]/1000)^VLOOKUP(Operations[[#This Row],[Repair Category]],ImpRepairFac[],4,FALSE)-(Operations[[#This Row],[Age]]*Operations[[#This Row],[Annual Use]]/Operations[[#This Row],[Units per Hour]]/1000)^VLOOKUP(Operations[[#This Row],[Repair Category]],ImpRepairFac[],4,FALSE))*Operations[[#This Row],[Calc List Price]]*VLOOKUP(Operations[[#This Row],[Repair Category]],ImpRepairFac[],3,FALSE)/Operations[[#This Row],[Annual Use]]) -> 0.1805459831 | P62: =IF(Operations[[#This Row],[Calc List Price]]=0,0,Operations[[#This Row],[Calc List Price]]*(VLOOKUP(Operations[[#This Row],[Depreciation Category]],ImpDepLookup,2,FALSE)-VLOOKUP(Operations[[#This Row],[Depreciation Category]],ImpDepLookup,3,FALSE)*Operations[[#This Row],[Age]]^0.5-VLOOKUP(Operations[[#This Row],[Depreciation Category]],ImpDepLookup,4,FALSE)*(Operations[[#This Row],[Age]]*Operations[[#This Row],[Annual Use]]/Operations[[#This Row],[Units per Hour]])^0.5)^2) -> 16895.97396 | Q62: =IF(Operations[[#This Row],[Calc List Price]]=0,0,Operations[[#This Row],[Calc List Price]]*(VLOOKUP(Operations[[#This Row],[Depreciation Category]],ImpDepLookup,2,FALSE)-VLOOKUP(Operations[[#This Row],[Depreciation Category]],ImpDepLookup,3,FALSE)*(Operations[[#This Row],[Age]]+1)^0.5-VLOOKUP(Operations[[#This Row],[Depreciation Category]],ImpDepLookup,4,FALSE)*(Operations[[#This Row],[Age]]*Operations[[#This Row],[Annual Use]]/Operations[[#This Row],[Units per Hour]])^0.5)^2) -> 15763.44421 | R62: =IF(Operations[[#This Row],[Calc List Price]]=0,0,IF(Operations[[#This Row],[Units per Hour]]*Operations[[#This Row],[Annual Use]]=0,0,(Operations[[#This Row],[Calc Beg Yr. Value]]-Operations[[#This Row],[Calc End Yr. Value]])/(Operations[[#This Row],[Annual Use]]))) -> 1.132529751 | S62: =IF(Operations[[#This Row],[Annual Use]]=0,0,Operations[[#This Row],[Calc Beg Yr. Value]]*'General Variables'!$B$9/Operations[[#This Row],[Annual Use]]) -> 0.3379194792 | T62: =IF(Operations[[#This Row],[Annual Use]]=0,0,Operations[[#This Row],[Calc Beg Yr. Value]]*'General Variables'!$B$10/Operations[[#This Row],[Annual Use]]) -> 0.6758389585 | U62: =SUM(Operations[[#This Row],[Depreciation per Unit]:[Opportunity Cost per Unit]]) -> 2.146288188
A63: Spread manure | B63: Custom | N63: =IF(Operations[[#This Row],[List Price]]>1,Operations[[#This Row],[List Price]],IF(Operations[[#This Row],[Depreciation Category]]=0,0,Operations[[#This Row],[Begin Yr. Value]]/(VLOOKUP(Operations[[#This Row],[Depreciation Category]],ImpDepLookup,2,FALSE)-VLOOKUP(Operations[[#This Row],[Depreciation Category]],ImpDepLookup,3,FALSE)*Operations[[#This Row],[Age]]^0.5-VLOOKUP(Operations[[#This Row],[Depreciation Category]],ImpDepLookup,4,FALSE)*(Operations[[#This Row],[Age]]*(Operations[[#This Row],[Age]]*Operations[[#This Row],[Annual Use]]/Operations[[#This Row],[Units per Hour]])^0.5))^2)) -> 0 | O63: =IF(Operations[[#This Row],[Repair Category]]="",0,(((Operations[[#This Row],[Age]]+1)*Operations[[#This Row],[Annual Use]]/Operations[[#This Row],[Units per Hour]]/1000)^VLOOKUP(Operations[[#This Row],[Repair Category]],ImpRepairFac[],4,FALSE)-(Operations[[#This Row],[Age]]*Operations[[#This Row],[Annual Use]]/Operations[[#This Row],[Units per Hour]]/1000)^VLOOKUP(Operations[[#This Row],[Repair Category]],ImpRepairFac[],4,FALSE))*Operations[[#This Row],[Calc List Price]]*VLOOKUP(Operations[[#This Row],[Repair Category]],ImpRepairFac[],3,FALSE)/Operations[[#This Row],[Annual Use]]) -> 0 | P63: =IF(Operations[[#This Row],[Calc List Price]]=0,0,Operations[[#This Row],[Calc List Price]]*(VLOOKUP(Operations[[#This Row],[Depreciation Category]],ImpDepLookup,2,FALSE)-VLOOKUP(Operations[[#This Row],[Depreciation Category]],ImpDepLookup,3,FALSE)*Operations[[#This Row],[Age]]^0.5-VLOOKUP(Operations[[#This Row],[Depreciation Category]],ImpDepLookup,4,FALSE)*(Operations[[#This Row],[Age]]*Operations[[#This Row],[Annual Use]]/Operations[[#This Row],[Units per Hour]])^0.5)^2) -> 0 | Q63: =IF(Operations[[#This Row],[Calc List Price]]=0,0,Operations[[#This Row],[Calc List Price]]*(VLOOKUP(Operations[[#This Row],[Depreciation Category]],ImpDepLookup,2,FALSE)-VLOOKUP(Operations[[#This Row],[Depreciation Category]],ImpDepLookup,3,FALSE)*(Operations[[#This Row],[Age]]+1)^0.5-VLOOKUP(Operations[[#This Row],[Depreciation Category]],ImpDepLookup,4,FALSE)*(Operations[[#This Row],[Age]]*Operations[[#This Row],[Annual Use]]/Operations[[#This Row],[Units per Hour]])^0.5)^2) -> 0 | R63: =IF(Operations[[#This Row],[Calc List Price]]=0,0,IF(Operations[[#This Row],[Units per Hour]]*Operations[[#This Row],[Annual Use]]=0,0,(Operations[[#This Row],[Calc Beg Yr. Value]]-Operations[[#This Row],[Calc End Yr. Value]])/(Operations[[#This Row],[Annual Use]]))) -> 0 | S63: =IF(Operations[[#This Row],[Annual Use]]=0,0,Operations[[#This Row],[Calc Beg Yr. Value]]*'General Variables'!$B$9/Operations[[#This Row],[Annual Use]]) -> 0 | T63: =IF(Operations[[#This Row],[Annual Use]]=0,0,Operations[[#This Row],[Calc Beg Yr. Value]]*'General Variables'!$B$10/Operations[[#This Row],[Annual Use]]) -> 0 | U63: =SUM(Operations[[#This Row],[Depreciation per Unit]:[Opportunity Cost per Unit]]) -> 0
A64: Spread, Fertilizer | B64: acre | G64: 5 | H64: 1000 | I64: 12.7 | J64: 1 | K64: Medium Tractor | L64: 3.861702128 | N64: =IF(Operations[[#This Row],[List Price]]>1,Operations[[#This Row],[List Price]],IF(Operations[[#This Row],[Depreciation Category]]=0,0,Operations[[#This Row],[Begin Yr. Value]]/(VLOOKUP(Operations[[#This Row],[Depreciation Category]],ImpDepLookup,2,FALSE)-VLOOKUP(Operations[[#This Row],[Depreciation Category]],ImpDepLookup,3,FALSE)*Operations[[#This Row],[Age]]^0.5-VLOOKUP(Operations[[#This Row],[Depreciation Category]],ImpDepLookup,4,FALSE)*(Operations[[#This Row],[Age]]*(Operations[[#This Row],[Age]]*Operations[[#This Row],[Annual Use]]/Operations[[#This Row],[Units per Hour]])^0.5))^2)) -> 0 | O64: =IF(Operations[[#This Row],[Repair Category]]="",0,(((Operations[[#This Row],[Age]]+1)*Operations[[#This Row],[Annual Use]]/Operations[[#This Row],[Units per Hour]]/1000)^VLOOKUP(Operations[[#This Row],[Repair Category]],ImpRepairFac[],4,FALSE)-(Operations[[#This Row],[Age]]*Operations[[#This Row],[Annual Use]]/Operations[[#This Row],[Units per Hour]]/1000)^VLOOKUP(Operations[[#This Row],[Repair Category]],ImpRepairFac[],4,FALSE))*Operations[[#This Row],[Calc List Price]]*VLOOKUP(Operations[[#This Row],[Repair Category]],ImpRepairFac[],3,FALSE)/Operations[[#This Row],[Annual Use]]) -> 0 | P64: =IF(Operations[[#This Row],[Calc List Price]]=0,0,Operations[[#This Row],[Calc List Price]]*(VLOOKUP(Operations[[#This Row],[Depreciation Category]],ImpDepLookup,2,FALSE)-VLOOKUP(Operations[[#This Row],[Depreciation Category]],ImpDepLookup,3,FALSE)*Operations[[#This Row],[Age]]^0.5-VLOOKUP(Operations[[#This Row],[Depreciation Category]],ImpDepLookup,4,FALSE)*(Operations[[#This Row],[Age]]*Operations[[#This Row],[Annual Use]]/Operations[[#This Row],[Units per Hour]])^0.5)^2) -> 0 | Q64: =IF(Operations[[#This Row],[Calc List Price]]=0,0,Operations[[#This Row],[Calc List Price]]*(VLOOKUP(Operations[[#This Row],[Depreciation Category]],ImpDepLookup,2,FALSE)-VLOOKUP(Operations[[#This Row],[Depreciation Category]],ImpDepLookup,3,FALSE)*(Operations[[#This Row],[Age]]+1)^0.5-VLOOKUP(Operations[[#This Row],[Depreciation Category]],ImpDepLookup,4,FALSE)*(Operations[[#This Row],[Age]]*Operations[[#This Row],[Annual Use]]/Operations[[#This Row],[Units per Hour]])^0.5)^2) -> 0 | R64: =IF(Operations[[#This Row],[Calc List Price]]=0,0,IF(Operations[[#This Row],[Units per Hour]]*Operations[[#This Row],[Annual Use]]=0,0,(Operations[[#This Row],[Calc Beg Yr. Value]]-Operations[[#This Row],[Calc End Yr. Value]])/(Operations[[#This Row],[Annual Use]]))) -> 0 | S64: =IF(Operations[[#This Row],[Annual Use]]=0,0,Operations[[#This Row],[Calc Beg Yr. Value]]*'General Variables'!$B$9/Operations[[#This Row],[Annual Use]]) -> 0 | T64: =IF(Operations[[#This Row],[Annual Use]]=0,0,Operations[[#This Row],[Calc Beg Yr. Value]]*'General Variables'!$B$10/Operations[[#This Row],[Annual Use]]) -> 0 | U64: =SUM(Operations[[#This Row],[Depreciation per Unit]:[Opportunity Cost per Unit]]) -> 0
A65: Sm Sq Bale | B65: Ton | C65: Baler - Rectangular | D65: Balers | E65: 23371 | G65: 5 | H65: 1250 | I65: 4 | J65: 1.1 | K65: Medium Tractor | L65: 3.5 | N65: =IF(Operations[[#This Row],[List Price]]>1,Operations[[#This Row],[List Price]],IF(Operations[[#This Row],[Depreciation Category]]=0,0,Operations[[#This Row],[Begin Yr. Value]]/(VLOOKUP(Operations[[#This Row],[Depreciation Category]],ImpDepLookup,2,FALSE)-VLOOKUP(Operations[[#This Row],[Depreciation Category]],ImpDepLookup,3,FALSE)*Operations[[#This Row],[Age]]^0.5-VLOOKUP(Operations[[#This Row],[Depreciation Category]],ImpDepLookup,4,FALSE)*(Operations[[#This Row],[Age]]*(Operations[[#This Row],[Age]]*Operations[[#This Row],[Annual Use]]/Operations[[#This Row],[Units per Hour]])^0.5))^2)) -> 23371 | O65: =IF(Operations[[#This Row],[Repair Category]]="",0,(((Operations[[#This Row],[Age]]+1)*Operations[[#This Row],[Annual Use]]/Operations[[#This Row],[Units per Hour]]/1000)^VLOOKUP(Operations[[#This Row],[Repair Category]],ImpRepairFac[],4,FALSE)-(Operations[[#This Row],[Age]]*Operations[[#This Row],[Annual Use]]/Operations[[#This Row],[Units per Hour]]/1000)^VLOOKUP(Operations[[#This Row],[Repair Category]],ImpRepairFac[],4,FALSE))*Operations[[#This Row],[Calc List Price]]*VLOOKUP(Operations[[#This Row],[Repair Category]],ImpRepairFac[],3,FALSE)/Operations[[#This Row],[Annual Use]]) -> 3.729855325 | P65: =IF(Operations[[#This Row],[Calc List Price]]=0,0,Operations[[#This Row],[Calc List Price]]*(VLOOKUP(Operations[[#This Row],[Depreciation Category]],ImpDepLookup,2,FALSE)-VLOOKUP(Operations[[#This Row],[Depreciation Category]],ImpDepLookup,3,FALSE)*Operations[[#This Row],[Age]]^0.5-VLOOKUP(Operations[[#This Row],[Depreciation Category]],ImpDepLookup,4,FALSE)*(Operations[[#This Row],[Age]]*Operations[[#This Row],[Annual Use]]/Operations[[#This Row],[Units per Hour]])^0.5)^2) -> 9163.132399 | Q65: =IF(Operations[[#This Row],[Calc List Price]]=0,0,Operations[[#This Row],[Calc List Price]]*(VLOOKUP(Operations[[#This Row],[Depreciation Category]],ImpDepLookup,2,FALSE)-VLOOKUP(Operations[[#This Row],[Depreciation Category]],ImpDepLookup,3,FALSE)*(Operations[[#This Row],[Age]]+1)^0.5-VLOOKUP(Operations[[#This Row],[Depreciation Category]],ImpDepLookup,4,FALSE)*(Operations[[#This Row],[Age]]*Operations[[#This Row],[Annual Use]]/Operations[[#This Row],[Units per Hour]])^0.5)^2) -> 8543.105858 | R65: =IF(Operations[[#This Row],[Calc List Price]]=0,0,IF(Operations[[#This Row],[Units per Hour]]*Operations[[#This Row],[Annual Use]]=0,0,(Operations[[#This Row],[Calc Beg Yr. Value]]-Operations[[#This Row],[Calc End Yr. Value]])/(Operations[[#This Row],[Annual Use]]))) -> 0.4960212333 | S65: =IF(Operations[[#This Row],[Annual Use]]=0,0,Operations[[#This Row],[Calc Beg Yr. Value]]*'General Variables'!$B$9/Operations[[#This Row],[Annual Use]]) -> 0.1466101184 | T65: =IF(Operations[[#This Row],[Annual Use]]=0,0,Operations[[#This Row],[Calc Beg Yr. Value]]*'General Variables'!$B$10/Operations[[#This Row],[Annual Use]]) -> 0.2932202368 | U65: =SUM(Operations[[#This Row],[Depreciation per Unit]:[Opportunity Cost per Unit]]) -> 0.9358515885
A66: Stack Sm Sq | B66: ton | C66: Wagon | D66: Swathers and all other harvest equipment | E66: 13000 | G66: 5 | H66: 1250 | I66: 10 | J66: 1 | K66: Medium Tractor | L66: 2 | N66: =IF(Operations[[#This Row],[List Price]]>1,Operations[[#This Row],[List Price]],IF(Operations[[#This Row],[Depreciation Category]]=0,0,Operations[[#This Row],[Begin Yr. Value]]/(VLOOKUP(Operations[[#This Row],[Depreciation Category]],ImpDepLookup,2,FALSE)-VLOOKUP(Operations[[#This Row],[Depreciation Category]],ImpDepLookup,3,FALSE)*Operations[[#This Row],[Age]]^0.5-VLOOKUP(Operations[[#This Row],[Depreciation Category]],ImpDepLookup,4,FALSE)*(Operations[[#This Row],[Age]]*(Operations[[#This Row],[Age]]*Operations[[#This Row],[Annual Use]]/Operations[[#This Row],[Units per Hour]])^0.5))^2)) -> 13000 | O66: =IF(Operations[[#This Row],[Repair Category]]="",0,(((Operations[[#This Row],[Age]]+1)*Operations[[#This Row],[Annual Use]]/Operations[[#This Row],[Units per Hour]]/1000)^VLOOKUP(Operations[[#This Row],[Repair Category]],ImpRepairFac[],4,FALSE)-(Operations[[#This Row],[Age]]*Operations[[#This Row],[Annual Use]]/Operations[[#This Row],[Units per Hour]]/1000)^VLOOKUP(Operations[[#This Row],[Repair Category]],ImpRepairFac[],4,FALSE))*Operations[[#This Row],[Calc List Price]]*VLOOKUP(Operations[[#This Row],[Repair Category]],ImpRepairFac[],3,FALSE)/Operations[[#This Row],[Annual Use]]) -> 0.2868773342 | P66: =IF(Operations[[#This Row],[Calc List Price]]=0,0,Operations[[#This Row],[Calc List Price]]*(VLOOKUP(Operations[[#This Row],[Depreciation Category]],ImpDepLookup,2,FALSE)-VLOOKUP(Operations[[#This Row],[Depreciation Category]],ImpDepLookup,3,FALSE)*Operations[[#This Row],[Age]]^0.5-VLOOKUP(Operations[[#This Row],[Depreciation Category]],ImpDepLookup,4,FALSE)*(Operations[[#This Row],[Age]]*Operations[[#This Row],[Annual Use]]/Operations[[#This Row],[Units per Hour]])^0.5)^2) -> 4487.303364 | Q66: =IF(Operations[[#This Row],[Calc List Price]]=0,0,Operations[[#This Row],[Calc List Price]]*(VLOOKUP(Operations[[#This Row],[Depreciation Category]],ImpDepLookup,2,FALSE)-VLOOKUP(Operations[[#This Row],[Depreciation Category]],ImpDepLookup,3,FALSE)*(Operations[[#This Row],[Age]]+1)^0.5-VLOOKUP(Operations[[#This Row],[Depreciation Category]],ImpDepLookup,4,FALSE)*(Operations[[#This Row],[Age]]*Operations[[#This Row],[Annual Use]]/Operations[[#This Row],[Units per Hour]])^0.5)^2) -> 4195.536249 | R66: =IF(Operations[[#This Row],[Calc List Price]]=0,0,IF(Operations[[#This Row],[Units per Hour]]*Operations[[#This Row],[Annual Use]]=0,0,(Operations[[#This Row],[Calc Beg Yr. Value]]-Operations[[#This Row],[Calc End Yr. Value]])/(Operations[[#This Row],[Annual Use]]))) -> 0.2334136914 | S66: =IF(Operations[[#This Row],[Annual Use]]=0,0,Operations[[#This Row],[Calc Beg Yr. Value]]*'General Variables'!$B$9/Operations[[#This Row],[Annual Use]]) -> 0.07179685382 | T66: =IF(Operations[[#This Row],[Annual Use]]=0,0,Operations[[#This Row],[Calc Beg Yr. Value]]*'General Variables'!$B$10/Operations[[#This Row],[Annual Use]]) -> 0.1435937076 | U66: =SUM(Operations[[#This Row],[Depreciation per Unit]:[Opportunity Cost per Unit]]) -> 0.4488042529
A67: Subsoil | B67: acre | C67: Chisel plow (Coulter) | D67: Disks and all other tillage equipment | E67: 12000 | G67: 5 | H67: 500 | I67: 9 | J67: 1 | K67: Large Tractor | L67: 8.25 | N67: =IF(Operations[[#This Row],[List Price]]>1,Operations[[#This Row],[List Price]],IF(Operations[[#This Row],[Depreciation Category]]=0,0,Operations[[#This Row],[Begin Yr. Value]]/(VLOOKUP(Operations[[#This Row],[Depreciation Category]],ImpDepLookup,2,FALSE)-VLOOKUP(Operations[[#This Row],[Depreciation Category]],ImpDepLookup,3,FALSE)*Operations[[#This Row],[Age]]^0.5-VLOOKUP(Operations[[#This Row],[Depreciation Category]],ImpDepLookup,4,FALSE)*(Operations[[#This Row],[Age]]*(Operations[[#This Row],[Age]]*Operations[[#This Row],[Annual Use]]/Operations[[#This Row],[Units per Hour]])^0.5))^2)) -> 12000 | O67: =IF(Operations[[#This Row],[Repair Category]]="",0,(((Operations[[#This Row],[Age]]+1)*Operations[[#This Row],[Annual Use]]/Operations[[#This Row],[Units per Hour]]/1000)^VLOOKUP(Operations[[#This Row],[Repair Category]],ImpRepairFac[],4,FALSE)-(Operations[[#This Row],[Age]]*Operations[[#This Row],[Annual Use]]/Operations[[#This Row],[Units per Hour]]/1000)^VLOOKUP(Operations[[#This Row],[Repair Category]],ImpRepairFac[],4,FALSE))*Operations[[#This Row],[Calc List Price]]*VLOOKUP(Operations[[#This Row],[Repair Category]],ImpRepairFac[],3,FALSE)/Operations[[#This Row],[Annual Use]]) -> 0.3251749166 | P67: =IF(Operations[[#This Row],[Calc List Price]]=0,0,Operations[[#This Row],[Calc List Price]]*(VLOOKUP(Operations[[#This Row],[Depreciation Category]],ImpDepLookup,2,FALSE)-VLOOKUP(Operations[[#This Row],[Depreciation Category]],ImpDepLookup,3,FALSE)*Operations[[#This Row],[Age]]^0.5-VLOOKUP(Operations[[#This Row],[Depreciation Category]],ImpDepLookup,4,FALSE)*(Operations[[#This Row],[Age]]*Operations[[#This Row],[Annual Use]]/Operations[[#This Row],[Units per Hour]])^0.5)^2) -> 4992.803461 | Q67: =IF(Operations[[#This Row],[Calc List Price]]=0,0,Operations[[#This Row],[Calc List Price]]*(VLOOKUP(Operations[[#This Row],[Depreciation Category]],ImpDepLookup,2,FALSE)-VLOOKUP(Operations[[#This Row],[Depreciation Category]],ImpDepLookup,3,FALSE)*(Operations[[#This Row],[Age]]+1)^0.5-VLOOKUP(Operations[[#This Row],[Depreciation Category]],ImpDepLookup,4,FALSE)*(Operations[[#This Row],[Age]]*Operations[[#This Row],[Annual Use]]/Operations[[#This Row],[Units per Hour]])^0.5)^2) -> 4635.984247 | R67: =IF(Operations[[#This Row],[Calc List Price]]=0,0,IF(Operations[[#This Row],[Units per Hour]]*Operations[[#This Row],[Annual Use]]=0,0,(Operations[[#This Row],[Calc Beg Yr. Value]]-Operations[[#This Row],[Calc End Yr. Value]])/(Operations[[#This Row],[Annual Use]]))) -> 0.7136384263 | S67: =IF(Operations[[#This Row],[Annual Use]]=0,0,Operations[[#This Row],[Calc Beg Yr. Value]]*'General Variables'!$B$9/Operations[[#This Row],[Annual Use]]) -> 0.1997121384 | T67: =IF(Operations[[#This Row],[Annual Use]]=0,0,Operations[[#This Row],[Calc Beg Yr. Value]]*'General Variables'!$B$10/Operations[[#This Row],[Annual Use]]) -> 0.3994242768 | U67: =SUM(Operations[[#This Row],[Depreciation per Unit]:[Opportunity Cost per Unit]]) -> 1.312774842
A68: Till Plant Beets | B68: acre | C68: Planter - Row crop | D68: Planters | E68: 45000 | G68: 5 | H68: 1000 | I68: 6 | J68: 1.1 | K68: Large Tractor | L68: 8.25 | N68: =IF(Operations[[#This Row],[List Price]]>1,Operations[[#This Row],[List Price]],IF(Operations[[#This Row],[Depreciation Category]]=0,0,Operations[[#This Row],[Begin Yr. Value]]/(VLOOKUP(Operations[[#This Row],[Depreciation Category]],ImpDepLookup,2,FALSE)-VLOOKUP(Operations[[#This Row],[Depreciation Category]],ImpDepLookup,3,FALSE)*Operations[[#This Row],[Age]]^0.5-VLOOKUP(Operations[[#This Row],[Depreciation Category]],ImpDepLookup,4,FALSE)*(Operations[[#This Row],[Age]]*(Operations[[#This Row],[Age]]*Operations[[#This Row],[Annual Use]]/Operations[[#This Row],[Units per Hour]])^0.5))^2)) -> 45000 | O68: =IF(Operations[[#This Row],[Repair Category]]="",0,(((Operations[[#This Row],[Age]]+1)*Operations[[#This Row],[Annual Use]]/Operations[[#This Row],[Units per Hour]]/1000)^VLOOKUP(Operations[[#This Row],[Repair Category]],ImpRepairFac[],4,FALSE)-(Operations[[#This Row],[Age]]*Operations[[#This Row],[Annual Use]]/Operations[[#This Row],[Units per Hour]]/1000)^VLOOKUP(Operations[[#This Row],[Repair Category]],ImpRepairFac[],4,FALSE))*Operations[[#This Row],[Calc List Price]]*VLOOKUP(Operations[[#This Row],[Repair Category]],ImpRepairFac[],3,FALSE)/Operations[[#This Row],[Annual Use]]) -> 4.580669554 | P68: =IF(Operations[[#This Row],[Calc List Price]]=0,0,Operations[[#This Row],[Calc List Price]]*(VLOOKUP(Operations[[#This Row],[Depreciation Category]],ImpDepLookup,2,FALSE)-VLOOKUP(Operations[[#This Row],[Depreciation Category]],ImpDepLookup,3,FALSE)*Operations[[#This Row],[Age]]^0.5-VLOOKUP(Operations[[#This Row],[Depreciation Category]],ImpDepLookup,4,FALSE)*(Operations[[#This Row],[Age]]*Operations[[#This Row],[Annual Use]]/Operations[[#This Row],[Units per Hour]])^0.5)^2) -> 22594.27987 | Q68: =IF(Operations[[#This Row],[Calc List Price]]=0,0,Operations[[#This Row],[Calc List Price]]*(VLOOKUP(Operations[[#This Row],[Depreciation Category]],ImpDepLookup,2,FALSE)-VLOOKUP(Operations[[#This Row],[Depreciation Category]],ImpDepLookup,3,FALSE)*(Operations[[#This Row],[Age]]+1)^0.5-VLOOKUP(Operations[[#This Row],[Depreciation Category]],ImpDepLookup,4,FALSE)*(Operations[[#This Row],[Age]]*Operations[[#This Row],[Annual Use]]/Operations[[#This Row],[Units per Hour]])^0.5)^2) -> 21545.13091 | R68: =IF(Operations[[#This Row],[Calc List Price]]=0,0,IF(Operations[[#This Row],[Units per Hour]]*Operations[[#This Row],[Annual Use]]=0,0,(Operations[[#This Row],[Calc Beg Yr. Value]]-Operations[[#This Row],[Calc End Yr. Value]])/(Operations[[#This Row],[Annual Use]]))) -> 1.04914896 | S68: =IF(Operations[[#This Row],[Annual Use]]=0,0,Operations[[#This Row],[Calc Beg Yr. Value]]*'General Variables'!$B$9/Operations[[#This Row],[Annual Use]]) -> 0.4518855974 | T68: =IF(Operations[[#This Row],[Annual Use]]=0,0,Operations[[#This Row],[Calc Beg Yr. Value]]*'General Variables'!$B$10/Operations[[#This Row],[Annual Use]]) -> 0.9037711948 | U68: =SUM(Operations[[#This Row],[Depreciation per Unit]:[Opportunity Cost per Unit]]) -> 2.404805752
A69: Top Beets | B69: acre | C69: Beet topper | D69: Swathers and all other harvest equipment | E69: 50000 | G69: 5 | H69: 1000 | I69: 5.789473684 | J69: 1 | K69: Medium Tractor | L69: 3.5 | N69: =IF(Operations[[#This Row],[List Price]]>1,Operations[[#This Row],[List Price]],IF(Operations[[#This Row],[Depreciation Category]]=0,0,Operations[[#This Row],[Begin Yr. Value]]/(VLOOKUP(Operations[[#This Row],[Depreciation Category]],ImpDepLookup,2,FALSE)-VLOOKUP(Operations[[#This Row],[Depreciation Category]],ImpDepLookup,3,FALSE)*Operations[[#This Row],[Age]]^0.5-VLOOKUP(Operations[[#This Row],[Depreciation Category]],ImpDepLookup,4,FALSE)*(Operations[[#This Row],[Age]]*(Operations[[#This Row],[Age]]*Operations[[#This Row],[Annual Use]]/Operations[[#This Row],[Units per Hour]])^0.5))^2)) -> 50000 | O69: =IF(Operations[[#This Row],[Repair Category]]="",0,(((Operations[[#This Row],[Age]]+1)*Operations[[#This Row],[Annual Use]]/Operations[[#This Row],[Units per Hour]]/1000)^VLOOKUP(Operations[[#This Row],[Repair Category]],ImpRepairFac[],4,FALSE)-(Operations[[#This Row],[Age]]*Operations[[#This Row],[Annual Use]]/Operations[[#This Row],[Units per Hour]]/1000)^VLOOKUP(Operations[[#This Row],[Repair Category]],ImpRepairFac[],4,FALSE))*Operations[[#This Row],[Calc List Price]]*VLOOKUP(Operations[[#This Row],[Repair Category]],ImpRepairFac[],3,FALSE)/Operations[[#This Row],[Annual Use]]) -> 3.3156035 | P69: =IF(Operations[[#This Row],[Calc List Price]]=0,0,Operations[[#This Row],[Calc List Price]]*(VLOOKUP(Operations[[#This Row],[Depreciation Category]],ImpDepLookup,2,FALSE)-VLOOKUP(Operations[[#This Row],[Depreciation Category]],ImpDepLookup,3,FALSE)*Operations[[#This Row],[Age]]^0.5-VLOOKUP(Operations[[#This Row],[Depreciation Category]],ImpDepLookup,4,FALSE)*(Operations[[#This Row],[Age]]*Operations[[#This Row],[Annual Use]]/Operations[[#This Row],[Units per Hour]])^0.5)^2) -> 17258.85909 | Q69: =IF(Operations[[#This Row],[Calc List Price]]=0,0,Operations[[#This Row],[Calc List Price]]*(VLOOKUP(Operations[[#This Row],[Depreciation Category]],ImpDepLookup,2,FALSE)-VLOOKUP(Operations[[#This Row],[Depreciation Category]],ImpDepLookup,3,FALSE)*(Operations[[#This Row],[Age]]+1)^0.5-VLOOKUP(Operations[[#This Row],[Depreciation Category]],ImpDepLookup,4,FALSE)*(Operations[[#This Row],[Age]]*Operations[[#This Row],[Annual Use]]/Operations[[#This Row],[Units per Hour]])^0.5)^2) -> 16136.67788 | R69: =IF(Operations[[#This Row],[Calc List Price]]=0,0,IF(Operations[[#This Row],[Units per Hour]]*Operations[[#This Row],[Annual Use]]=0,0,(Operations[[#This Row],[Calc Beg Yr. Value]]-Operations[[#This Row],[Calc End Yr. Value]])/(Operations[[#This Row],[Annual Use]]))) -> 1.122181209 | S69: =IF(Operations[[#This Row],[Annual Use]]=0,0,Operations[[#This Row],[Calc Beg Yr. Value]]*'General Variables'!$B$9/Operations[[#This Row],[Annual Use]]) -> 0.3451771818 | T69: =IF(Operations[[#This Row],[Annual Use]]=0,0,Operations[[#This Row],[Calc Beg Yr. Value]]*'General Variables'!$B$10/Operations[[#This Row],[Annual Use]]) -> 0.6903543636 | U69: =SUM(Operations[[#This Row],[Depreciation per Unit]:[Opportunity Cost per Unit]]) -> 2.157712754
A70: Truck | B70: Custom | G70: 5 | K70: Large Tractor | N70: =IF(Operations[[#This Row],[List Price]]>1,Operations[[#This Row],[List Price]],IF(Operations[[#This Row],[Depreciation Category]]=0,0,Operations[[#This Row],[Begin Yr. Value]]/(VLOOKUP(Operations[[#This Row],[Depreciation Category]],ImpDepLookup,2,FALSE)-VLOOKUP(Operations[[#This Row],[Depreciation Category]],ImpDepLookup,3,FALSE)*Operations[[#This Row],[Age]]^0.5-VLOOKUP(Operations[[#This Row],[Depreciation Category]],ImpDepLookup,4,FALSE)*(Operations[[#This Row],[Age]]*(Operations[[#This Row],[Age]]*Operations[[#This Row],[Annual Use]]/Operations[[#This Row],[Units per Hour]])^0.5))^2)) -> 0 | O70: =IF(Operations[[#This Row],[Repair Category]]="",0,(((Operations[[#This Row],[Age]]+1)*Operations[[#This Row],[Annual Use]]/Operations[[#This Row],[Units per Hour]]/1000)^VLOOKUP(Operations[[#This Row],[Repair Category]],ImpRepairFac[],4,FALSE)-(Operations[[#This Row],[Age]]*Operations[[#This Row],[Annual Use]]/Operations[[#This Row],[Units per Hour]]/1000)^VLOOKUP(Operations[[#This Row],[Repair Category]],ImpRepairFac[],4,FALSE))*Operations[[#This Row],[Calc List Price]]*VLOOKUP(Operations[[#This Row],[Repair Category]],ImpRepairFac[],3,FALSE)/Operations[[#This Row],[Annual Use]]) -> 0 | P70: =IF(Operations[[#This Row],[Calc List Price]]=0,0,Operations[[#This Row],[Calc List Price]]*(VLOOKUP(Operations[[#This Row],[Depreciation Category]],ImpDepLookup,2,FALSE)-VLOOKUP(Operations[[#This Row],[Depreciation Category]],ImpDepLookup,3,FALSE)*Operations[[#This Row],[Age]]^0.5-VLOOKUP(Operations[[#This Row],[Depreciation Category]],ImpDepLookup,4,FALSE)*(Operations[[#This Row],[Age]]*Operations[[#This Row],[Annual Use]]/Operations[[#This Row],[Units per Hour]])^0.5)^2) -> 0 | Q70: =IF(Operations[[#This Row],[Calc List Price]]=0,0,Operations[[#This Row],[Calc List Price]]*(VLOOKUP(Operations[[#This Row],[Depreciation Category]],ImpDepLookup,2,FALSE)-VLOOKUP(Operations[[#This Row],[Depreciation Category]],ImpDepLookup,3,FALSE)*(Operations[[#This Row],[Age]]+1)^0.5-VLOOKUP(Operations[[#This Row],[Depreciation Category]],ImpDepLookup,4,FALSE)*(Operations[[#This Row],[Age]]*Operations[[#This Row],[Annual Use]]/Operations[[#This Row],[Units per Hour]])^0.5)^2) -> 0 | R70: =IF(Operations[[#This Row],[Calc List Price]]=0,0,IF(Operations[[#This Row],[Units per Hour]]*Operations[[#This Row],[Annual Use]]=0,0,(Operations[[#This Row],[Calc Beg Yr. Value]]-Operations[[#This Row],[Calc End Yr. Value]])/(Operations[[#This Row],[Annual Use]]))) -> 0 | S70: =IF(Operations[[#This Row],[Annual Use]]=0,0,Operations[[#This Row],[Calc Beg Yr. Value]]*'General Variables'!$B$9/Operations[[#This Row],[Annual Use]]) -> 0 | T70: =IF(Operations[[#This Row],[Annual Use]]=0,0,Operations[[#This Row],[Calc Beg Yr. Value]]*'General Variables'!$B$10/Operations[[#This Row],[Annual Use]]) -> 0 | U70: =SUM(Operations[[#This Row],[Depreciation per Unit]:[Opportunity Cost per Unit]]) -> 0
A71: Turn Windrows | B71: acre | C71: Rake - Side delivery | D71: Swathers and all other harvest equipment | E71: 7187 | G71: 5 | H71: 1000 | I71: 12 | J71: 1 | K71: Medium Tractor | L71: 2.097196262 | N71: =IF(Operations[[#This Row],[List Price]]>1,Operations[[#This Row],[List Price]],IF(Operations[[#This Row],[Depreciation Category]]=0,0,Operations[[#This Row],[Begin Yr. Value]]/(VLOOKUP(Operations[[#This Row],[Depreciation Category]],ImpDepLookup,2,FALSE)-VLOOKUP(Operations[[#This Row],[Depreciation Category]],ImpDepLookup,3,FALSE)*Operations[[#This Row],[Age]]^0.5-VLOOKUP(Operations[[#This Row],[Depreciation Category]],ImpDepLookup,4,FALSE)*(Operations[[#This Row],[Age]]*(Operations[[#This Row],[Age]]*Operations[[#This Row],[Annual Use]]/Operations[[#This Row],[Units per Hour]])^0.5))^2)) -> 7187 | O71: =IF(Operations[[#This Row],[Repair Category]]="",0,(((Operations[[#This Row],[Age]]+1)*Operations[[#This Row],[Annual Use]]/Operations[[#This Row],[Units per Hour]]/1000)^VLOOKUP(Operations[[#This Row],[Repair Category]],ImpRepairFac[],4,FALSE)-(Operations[[#This Row],[Age]]*Operations[[#This Row],[Annual Use]]/Operations[[#This Row],[Units per Hour]]/1000)^VLOOKUP(Operations[[#This Row],[Repair Category]],ImpRepairFac[],4,FALSE))*Operations[[#This Row],[Calc List Price]]*VLOOKUP(Operations[[#This Row],[Repair Category]],ImpRepairFac[],3,FALSE)/Operations[[#This Row],[Annual Use]]) -> 0.1042970665 | P71: =IF(Operations[[#This Row],[Calc List Price]]=0,0,Operations[[#This Row],[Calc List Price]]*(VLOOKUP(Operations[[#This Row],[Depreciation Category]],ImpDepLookup,2,FALSE)-VLOOKUP(Operations[[#This Row],[Depreciation Category]],ImpDepLookup,3,FALSE)*Operations[[#This Row],[Age]]^0.5-VLOOKUP(Operations[[#This Row],[Depreciation Category]],ImpDepLookup,4,FALSE)*(Operations[[#This Row],[Age]]*Operations[[#This Row],[Annual Use]]/Operations[[#This Row],[Units per Hour]])^0.5)^2) -> 2480.788406 | Q71: =IF(Operations[[#This Row],[Calc List Price]]=0,0,Operations[[#This Row],[Calc List Price]]*(VLOOKUP(Operations[[#This Row],[Depreciation Category]],ImpDepLookup,2,FALSE)-VLOOKUP(Operations[[#This Row],[Depreciation Category]],ImpDepLookup,3,FALSE)*(Operations[[#This Row],[Age]]+1)^0.5-VLOOKUP(Operations[[#This Row],[Depreciation Category]],ImpDepLookup,4,FALSE)*(Operations[[#This Row],[Age]]*Operations[[#This Row],[Annual Use]]/Operations[[#This Row],[Units per Hour]])^0.5)^2) -> 2319.486079 | R71: =IF(Operations[[#This Row],[Calc List Price]]=0,0,IF(Operations[[#This Row],[Units per Hour]]*Operations[[#This Row],[Annual Use]]=0,0,(Operations[[#This Row],[Calc Beg Yr. Value]]-Operations[[#This Row],[Calc End Yr. Value]])/(Operations[[#This Row],[Annual Use]]))) -> 0.1613023269 | S71: =IF(Operations[[#This Row],[Annual Use]]=0,0,Operations[[#This Row],[Calc Beg Yr. Value]]*'General Variables'!$B$9/Operations[[#This Row],[Annual Use]]) -> 0.04961576812 | T71: =IF(Operations[[#This Row],[Annual Use]]=0,0,Operations[[#This Row],[Calc Beg Yr. Value]]*'General Variables'!$B$10/Operations[[#This Row],[Annual Use]]) -> 0.09923153623 | U71: =SUM(Operations[[#This Row],[Depreciation per Unit]:[Opportunity Cost per Unit]]) -> 0.3101496313
A72: Swath/Cond Hay | B72: acre | C72: Mower-conditioner | D72: Swathers and all other harvest equipment | E72: 10000 | G72: 5 | H72: 1000 | I72: 8 | J72: 1 | K72: Windrower | L72: 5 | N72: =IF(Operations[[#This Row],[List Price]]>1,Operations[[#This Row],[List Price]],IF(Operations[[#This Row],[Depreciation Category]]=0,0,Operations[[#This Row],[Begin Yr. Value]]/(VLOOKUP(Operations[[#This Row],[Depreciation Category]],ImpDepLookup,2,FALSE)-VLOOKUP(Operations[[#This Row],[Depreciation Category]],ImpDepLookup,3,FALSE)*Operations[[#This Row],[Age]]^0.5-VLOOKUP(Operations[[#This Row],[Depreciation Category]],ImpDepLookup,4,FALSE)*(Operations[[#This Row],[Age]]*(Operations[[#This Row],[Age]]*Operations[[#This Row],[Annual Use]]/Operations[[#This Row],[Units per Hour]])^0.5))^2)) -> 10000 | O72: =IF(Operations[[#This Row],[Repair Category]]="",0,(((Operations[[#This Row],[Age]]+1)*Operations[[#This Row],[Annual Use]]/Operations[[#This Row],[Units per Hour]]/1000)^VLOOKUP(Operations[[#This Row],[Repair Category]],ImpRepairFac[],4,FALSE)-(Operations[[#This Row],[Age]]*Operations[[#This Row],[Annual Use]]/Operations[[#This Row],[Units per Hour]]/1000)^VLOOKUP(Operations[[#This Row],[Repair Category]],ImpRepairFac[],4,FALSE))*Operations[[#This Row],[Calc List Price]]*VLOOKUP(Operations[[#This Row],[Repair Category]],ImpRepairFac[],3,FALSE)/Operations[[#This Row],[Annual Use]]) -> 0.2874235374 | P72: =IF(Operations[[#This Row],[Calc List Price]]=0,0,Operations[[#This Row],[Calc List Price]]*(VLOOKUP(Operations[[#This Row],[Depreciation Category]],ImpDepLookup,2,FALSE)-VLOOKUP(Operations[[#This Row],[Depreciation Category]],ImpDepLookup,3,FALSE)*Operations[[#This Row],[Age]]^0.5-VLOOKUP(Operations[[#This Row],[Depreciation Category]],ImpDepLookup,4,FALSE)*(Operations[[#This Row],[Age]]*Operations[[#This Row],[Annual Use]]/Operations[[#This Row],[Units per Hour]])^0.5)^2) -> 3451.771818 | Q72: =IF(Operations[[#This Row],[Calc List Price]]=0,0,Operations[[#This Row],[Calc List Price]]*(VLOOKUP(Operations[[#This Row],[Depreciation Category]],ImpDepLookup,2,FALSE)-VLOOKUP(Operations[[#This Row],[Depreciation Category]],ImpDepLookup,3,FALSE)*(Operations[[#This Row],[Age]]+1)^0.5-VLOOKUP(Operations[[#This Row],[Depreciation Category]],ImpDepLookup,4,FALSE)*(Operations[[#This Row],[Age]]*Operations[[#This Row],[Annual Use]]/Operations[[#This Row],[Units per Hour]])^0.5)^2) -> 3227.335576 | R72: =IF(Operations[[#This Row],[Calc List Price]]=0,0,IF(Operations[[#This Row],[Units per Hour]]*Operations[[#This Row],[Annual Use]]=0,0,(Operations[[#This Row],[Calc Beg Yr. Value]]-Operations[[#This Row],[Calc End Yr. Value]])/(Operations[[#This Row],[Annual Use]]))) -> 0.2244362417 | S72: =IF(Operations[[#This Row],[Annual Use]]=0,0,Operations[[#This Row],[Calc Beg Yr. Value]]*'General Variables'!$B$9/Operations[[#This Row],[Annual Use]]) -> 0.06903543636 | T72: =IF(Operations[[#This Row],[Annual Use]]=0,0,Operations[[#This Row],[Calc Beg Yr. Value]]*'General Variables'!$B$10/Operations[[#This Row],[Annual Use]]) -> 0.1380708727 | U72: =SUM(Operations[[#This Row],[Depreciation per Unit]:[Opportunity Cost per Unit]]) -> 0.4315425508
A73: Windrow Grain | B73: acre | C73: Mower-conditioner | D73: Swathers and all other harvest equipment | E73: 10000 | G73: 5 | H73: 500 | I73: 10 | J73: 1 | K73: Windrower | L73: 5 | N73: =IF(Operations[[#This Row],[List Price]]>1,Operations[[#This Row],[List Price]],IF(Operations[[#This Row],[Depreciation Category]]=0,0,Operations[[#This Row],[Begin Yr. Value]]/(VLOOKUP(Operations[[#This Row],[Depreciation Category]],ImpDepLookup,2,FALSE)-VLOOKUP(Operations[[#This Row],[Depreciation Category]],ImpDepLookup,3,FALSE)*Operations[[#This Row],[Age]]^0.5-VLOOKUP(Operations[[#This Row],[Depreciation Category]],ImpDepLookup,4,FALSE)*(Operations[[#This Row],[Age]]*(Operations[[#This Row],[Age]]*Operations[[#This Row],[Annual Use]]/Operations[[#This Row],[Units per Hour]])^0.5))^2)) -> 10000 | O73: =IF(Operations[[#This Row],[Repair Category]]="",0,(((Operations[[#This Row],[Age]]+1)*Operations[[#This Row],[Annual Use]]/Operations[[#This Row],[Units per Hour]]/1000)^VLOOKUP(Operations[[#This Row],[Repair Category]],ImpRepairFac[],4,FALSE)-(Operations[[#This Row],[Age]]*Operations[[#This Row],[Annual Use]]/Operations[[#This Row],[Units per Hour]]/1000)^VLOOKUP(Operations[[#This Row],[Repair Category]],ImpRepairFac[],4,FALSE))*Operations[[#This Row],[Calc List Price]]*VLOOKUP(Operations[[#This Row],[Repair Category]],ImpRepairFac[],3,FALSE)/Operations[[#This Row],[Annual Use]]) -> 0.1326930913 | P73: =IF(Operations[[#This Row],[Calc List Price]]=0,0,Operations[[#This Row],[Calc List Price]]*(VLOOKUP(Operations[[#This Row],[Depreciation Category]],ImpDepLookup,2,FALSE)-VLOOKUP(Operations[[#This Row],[Depreciation Category]],ImpDepLookup,3,FALSE)*Operations[[#This Row],[Age]]^0.5-VLOOKUP(Operations[[#This Row],[Depreciation Category]],ImpDepLookup,4,FALSE)*(Operations[[#This Row],[Age]]*Operations[[#This Row],[Annual Use]]/Operations[[#This Row],[Units per Hour]])^0.5)^2) -> 3451.771818 | Q73: =IF(Operations[[#This Row],[Calc List Price]]=0,0,Operations[[#This Row],[Calc List Price]]*(VLOOKUP(Operations[[#This Row],[Depreciation Category]],ImpDepLookup,2,FALSE)-VLOOKUP(Operations[[#This Row],[Depreciation Category]],ImpDepLookup,3,FALSE)*(Operations[[#This Row],[Age]]+1)^0.5-VLOOKUP(Operations[[#This Row],[Depreciation Category]],ImpDepLookup,4,FALSE)*(Operations[[#This Row],[Age]]*Operations[[#This Row],[Annual Use]]/Operations[[#This Row],[Units per Hour]])^0.5)^2) -> 3227.335576 | R73: =IF(Operations[[#This Row],[Calc List Price]]=0,0,IF(Operations[[#This Row],[Units per Hour]]*Operations[[#This Row],[Annual Use]]=0,0,(Operations[[#This Row],[Calc Beg Yr. Value]]-Operations[[#This Row],[Calc End Yr. Value]])/(Operations[[#This Row],[Annual Use]]))) -> 0.4488724835 | S73: =IF(Operations[[#This Row],[Annual Use]]=0,0,Operations[[#This Row],[Calc Beg Yr. Value]]*'General Variables'!$B$9/Operations[[#This Row],[Annual Use]]) -> 0.1380708727 | T73: =IF(Operations[[#This Row],[Annual Use]]=0,0,Operations[[#This Row],[Calc Beg Yr. Value]]*'General Variables'!$B$10/Operations[[#This Row],[Annual Use]]) -> 0.2761417455 | U73: =SUM(Operations[[#This Row],[Depreciation per Unit]:[Opportunity Cost per Unit]]) -> 0.8630851017
N74: =IF(Operations[[#This Row],[List Price]]>1,Operations[[#This Row],[List Price]],IF(Operations[[#This Row],[Depreciation Category]]=0,0,Operations[[#This Row],[Begin Yr. Value]]/(VLOOKUP(Operations[[#This Row],[Depreciation Category]],ImpDepLookup,2,FALSE)-VLOOKUP(Operations[[#This Row],[Depreciation Category]],ImpDepLookup,3,FALSE)*Operations[[#This Row],[Age]]^0.5-VLOOKUP(Operations[[#This Row],[Depreciation Category]],ImpDepLookup,4,FALSE)*(Operations[[#This Row],[Age]]*(Operations[[#This Row],[Age]]*Operations[[#This Row],[Annual Use]]/Operations[[#This Row],[Units per Hour]])^0.5))^2)) -> 0 | O74: =IF(Operations[[#This Row],[Repair Category]]="",0,(((Operations[[#This Row],[Age]]+1)*Operations[[#This Row],[Annual Use]]/Operations[[#This Row],[Units per Hour]]/1000)^VLOOKUP(Operations[[#This Row],[Repair Category]],ImpRepairFac[],4,FALSE)-(Operations[[#This Row],[Age]]*Operations[[#This Row],[Annual Use]]/Operations[[#This Row],[Units per Hour]]/1000)^VLOOKUP(Operations[[#This Row],[Repair Category]],ImpRepairFac[],4,FALSE))*Operations[[#This Row],[Calc List Price]]*VLOOKUP(Operations[[#This Row],[Repair Category]],ImpRepairFac[],3,FALSE)/Operations[[#This Row],[Annual Use]]) -> 0 | P74: =IF(Operations[[#This Row],[Calc List Price]]=0,0,Operations[[#This Row],[Calc List Price]]*(VLOOKUP(Operations[[#This Row],[Depreciation Category]],ImpDepLookup,2,FALSE)-VLOOKUP(Operations[[#This Row],[Depreciation Category]],ImpDepLookup,3,FALSE)*Operations[[#This Row],[Age]]^0.5-VLOOKUP(Operations[[#This Row],[Depreciation Category]],ImpDepLookup,4,FALSE)*(Operations[[#This Row],[Age]]*Operations[[#This Row],[Annual Use]]/Operations[[#This Row],[Units per Hour]])^0.5)^2) -> 0 | Q74: =IF(Operations[[#This Row],[Calc List Price]]=0,0,Operations[[#This Row],[Calc List Price]]*(VLOOKUP(Operations[[#This Row],[Depreciation Category]],ImpDepLookup,2,FALSE)-VLOOKUP(Operations[[#This Row],[Depreciation Category]],ImpDepLookup,3,FALSE)*(Operations[[#This Row],[Age]]+1)^0.5-VLOOKUP(Operations[[#This Row],[Depreciation Category]],ImpDepLookup,4,FALSE)*(Operations[[#This Row],[Age]]*Operations[[#This Row],[Annual Use]]/Operations[[#This Row],[Units per Hour]])^0.5)^2) -> 0 | R74: =IF(Operations[[#This Row],[Calc List Price]]=0,0,IF(Operations[[#This Row],[Units per Hour]]*Operations[[#This Row],[Annual Use]]=0,0,(Operations[[#This Row],[Calc Beg Yr. Value]]-Operations[[#This Row],[Calc End Yr. Value]])/(Operations[[#This Row],[Annual Use]]))) -> 0 | S74: =IF(Operations[[#This Row],[Annual Use]]=0,0,Operations[[#This Row],[Calc Beg Yr. Value]]*'General Variables'!$B$9/Operations[[#This Row],[Annual Use]]) -> 0 | T74: =IF(Operations[[#This Row],[Annual Use]]=0,0,Operations[[#This Row],[Calc Beg Yr. Value]]*'General Variables'!$B$10/Operations[[#This Row],[Annual Use]]) -> 0 | U74: =SUM(Operations[[#This Row],[Depreciation per Unit]:[Opportunity Cost per Unit]]) -> 0
N75: =IF(Operations[[#This Row],[List Price]]>1,Operations[[#This Row],[List Price]],IF(Operations[[#This Row],[Depreciation Category]]=0,0,Operations[[#This Row],[Begin Yr. Value]]/(VLOOKUP(Operations[[#This Row],[Depreciation Category]],ImpDepLookup,2,FALSE)-VLOOKUP(Operations[[#This Row],[Depreciation Category]],ImpDepLookup,3,FALSE)*Operations[[#This Row],[Age]]^0.5-VLOOKUP(Operations[[#This Row],[Depreciation Category]],ImpDepLookup,4,FALSE)*(Operations[[#This Row],[Age]]*(Operations[[#This Row],[Age]]*Operations[[#This Row],[Annual Use]]/Operations[[#This Row],[Units per Hour]])^0.5))^2)) -> 0 | O75: =IF(Operations[[#This Row],[Repair Category]]="",0,(((Operations[[#This Row],[Age]]+1)*Operations[[#This Row],[Annual Use]]/Operations[[#This Row],[Units per Hour]]/1000)^VLOOKUP(Operations[[#This Row],[Repair Category]],ImpRepairFac[],4,FALSE)-(Operations[[#This Row],[Age]]*Operations[[#This Row],[Annual Use]]/Operations[[#This Row],[Units per Hour]]/1000)^VLOOKUP(Operations[[#This Row],[Repair Category]],ImpRepairFac[],4,FALSE))*Operations[[#This Row],[Calc List Price]]*VLOOKUP(Operations[[#This Row],[Repair Category]],ImpRepairFac[],3,FALSE)/Operations[[#This Row],[Annual Use]]) -> 0 | P75: =IF(Operations[[#This Row],[Calc List Price]]=0,0,Operations[[#This Row],[Calc List Price]]*(VLOOKUP(Operations[[#This Row],[Depreciation Category]],ImpDepLookup,2,FALSE)-VLOOKUP(Operations[[#This Row],[Depreciation Category]],ImpDepLookup,3,FALSE)*Operations[[#This Row],[Age]]^0.5-VLOOKUP(Operations[[#This Row],[Depreciation Category]],ImpDepLookup,4,FALSE)*(Operations[[#This Row],[Age]]*Operations[[#This Row],[Annual Use]]/Operations[[#This Row],[Units per Hour]])^0.5)^2) -> 0 | Q75: =IF(Operations[[#This Row],[Calc List Price]]=0,0,Operations[[#This Row],[Calc List Price]]*(VLOOKUP(Operations[[#This Row],[Depreciation Category]],ImpDepLookup,2,FALSE)-VLOOKUP(Operations[[#This Row],[Depreciation Category]],ImpDepLookup,3,FALSE)*(Operations[[#This Row],[Age]]+1)^0.5-VLOOKUP(Operations[[#This Row],[Depreciation Category]],ImpDepLookup,4,FALSE)*(Operations[[#This Row],[Age]]*Operations[[#This Row],[Annual Use]]/Operations[[#This Row],[Units per Hour]])^0.5)^2) -> 0 | R75: =IF(Operations[[#This Row],[Calc List Price]]=0,0,IF(Operations[[#This Row],[Units per Hour]]*Operations[[#This Row],[Annual Use]]=0,0,(Operations[[#This Row],[Calc Beg Yr. Value]]-Operations[[#This Row],[Calc End Yr. Value]])/(Operations[[#This Row],[Annual Use]]))) -> 0 | S75: =IF(Operations[[#This Row],[Annual Use]]=0,0,Operations[[#This Row],[Calc Beg Yr. Value]]*'General Variables'!$B$9/Operations[[#This Row],[Annual Use]]) -> 0 | T75: =IF(Operations[[#This Row],[Annual Use]]=0,0,Operations[[#This Row],[Calc Beg Yr. Value]]*'General Variables'!$B$10/Operations[[#This Row],[Annual Use]]) -> 0 | U75: =SUM(Operations[[#This Row],[Depreciation per Unit]:[Opportunity Cost per Unit]]) -> 0
N76: =IF(Operations[[#This Row],[List Price]]>1,Operations[[#This Row],[List Price]],IF(Operations[[#This Row],[Depreciation Category]]=0,0,Operations[[#This Row],[Begin Yr. Value]]/(VLOOKUP(Operations[[#This Row],[Depreciation Category]],ImpDepLookup,2,FALSE)-VLOOKUP(Operations[[#This Row],[Depreciation Category]],ImpDepLookup,3,FALSE)*Operations[[#This Row],[Age]]^0.5-VLOOKUP(Operations[[#This Row],[Depreciation Category]],ImpDepLookup,4,FALSE)*(Operations[[#This Row],[Age]]*(Operations[[#This Row],[Age]]*Operations[[#This Row],[Annual Use]]/Operations[[#This Row],[Units per Hour]])^0.5))^2)) -> 0 | O76: =IF(Operations[[#This Row],[Repair Category]]="",0,(((Operations[[#This Row],[Age]]+1)*Operations[[#This Row],[Annual Use]]/Operations[[#This Row],[Units per Hour]]/1000)^VLOOKUP(Operations[[#This Row],[Repair Category]],ImpRepairFac[],4,FALSE)-(Operations[[#This Row],[Age]]*Operations[[#This Row],[Annual Use]]/Operations[[#This Row],[Units per Hour]]/1000)^VLOOKUP(Operations[[#This Row],[Repair Category]],ImpRepairFac[],4,FALSE))*Operations[[#This Row],[Calc List Price]]*VLOOKUP(Operations[[#This Row],[Repair Category]],ImpRepairFac[],3,FALSE)/Operations[[#This Row],[Annual Use]]) -> 0 | P76: =IF(Operations[[#This Row],[Calc List Price]]=0,0,Operations[[#This Row],[Calc List Price]]*(VLOOKUP(Operations[[#This Row],[Depreciation Category]],ImpDepLookup,2,FALSE)-VLOOKUP(Operations[[#This Row],[Depreciation Category]],ImpDepLookup,3,FALSE)*Operations[[#This Row],[Age]]^0.5-VLOOKUP(Operations[[#This Row],[Depreciation Category]],ImpDepLookup,4,FALSE)*(Operations[[#This Row],[Age]]*Operations[[#This Row],[Annual Use]]/Operations[[#This Row],[Units per Hour]])^0.5)^2) -> 0 | Q76: =IF(Operations[[#This Row],[Calc List Price]]=0,0,Operations[[#This Row],[Calc List Price]]*(VLOOKUP(Operations[[#This Row],[Depreciation Category]],ImpDepLookup,2,FALSE)-VLOOKUP(Operations[[#This Row],[Depreciation Category]],ImpDepLookup,3,FALSE)*(Operations[[#This Row],[Age]]+1)^0.5-VLOOKUP(Operations[[#This Row],[Depreciation Category]],ImpDepLookup,4,FALSE)*(Operations[[#This Row],[Age]]*Operations[[#This Row],[Annual Use]]/Operations[[#This Row],[Units per Hour]])^0.5)^2) -> 0 | R76: =IF(Operations[[#This Row],[Calc List Price]]=0,0,IF(Operations[[#This Row],[Units per Hour]]*Operations[[#This Row],[Annual Use]]=0,0,(Operations[[#This Row],[Calc Beg Yr. Value]]-Operations[[#This Row],[Calc End Yr. Value]])/(Operations[[#This Row],[Annual Use]]))) -> 0 | S76: =IF(Operations[[#This Row],[Annual Use]]=0,0,Operations[[#This Row],[Calc Beg Yr. Value]]*'General Variables'!$B$9/Operations[[#This Row],[Annual Use]]) -> 0 | T76: =IF(Operations[[#This Row],[Annual Use]]=0,0,Operations[[#This Row],[Calc Beg Yr. Value]]*'General Variables'!$B$10/Operations[[#This Row],[Annual Use]]) -> 0 | U76: =SUM(Operations[[#This Row],[Depreciation per Unit]:[Opportunity Cost per Unit]]) -> 0
N77: =IF(Operations[[#This Row],[List Price]]>1,Operations[[#This Row],[List Price]],IF(Operations[[#This Row],[Depreciation Category]]=0,0,Operations[[#This Row],[Begin Yr. Value]]/(VLOOKUP(Operations[[#This Row],[Depreciation Category]],ImpDepLookup,2,FALSE)-VLOOKUP(Operations[[#This Row],[Depreciation Category]],ImpDepLookup,3,FALSE)*Operations[[#This Row],[Age]]^0.5-VLOOKUP(Operations[[#This Row],[Depreciation Category]],ImpDepLookup,4,FALSE)*(Operations[[#This Row],[Age]]*(Operations[[#This Row],[Age]]*Operations[[#This Row],[Annual Use]]/Operations[[#This Row],[Units per Hour]])^0.5))^2)) -> 0 | O77: =IF(Operations[[#This Row],[Repair Category]]="",0,(((Operations[[#This Row],[Age]]+1)*Operations[[#This Row],[Annual Use]]/Operations[[#This Row],[Units per Hour]]/1000)^VLOOKUP(Operations[[#This Row],[Repair Category]],ImpRepairFac[],4,FALSE)-(Operations[[#This Row],[Age]]*Operations[[#This Row],[Annual Use]]/Operations[[#This Row],[Units per Hour]]/1000)^VLOOKUP(Operations[[#This Row],[Repair Category]],ImpRepairFac[],4,FALSE))*Operations[[#This Row],[Calc List Price]]*VLOOKUP(Operations[[#This Row],[Repair Category]],ImpRepairFac[],3,FALSE)/Operations[[#This Row],[Annual Use]]) -> 0 | P77: =IF(Operations[[#This Row],[Calc List Price]]=0,0,Operations[[#This Row],[Calc List Price]]*(VLOOKUP(Operations[[#This Row],[Depreciation Category]],ImpDepLookup,2,FALSE)-VLOOKUP(Operations[[#This Row],[Depreciation Category]],ImpDepLookup,3,FALSE)*Operations[[#This Row],[Age]]^0.5-VLOOKUP(Operations[[#This Row],[Depreciation Category]],ImpDepLookup,4,FALSE)*(Operations[[#This Row],[Age]]*Operations[[#This Row],[Annual Use]]/Operations[[#This Row],[Units per Hour]])^0.5)^2) -> 0 | Q77: =IF(Operations[[#This Row],[Calc List Price]]=0,0,Operations[[#This Row],[Calc List Price]]*(VLOOKUP(Operations[[#This Row],[Depreciation Category]],ImpDepLookup,2,FALSE)-VLOOKUP(Operations[[#This Row],[Depreciation Category]],ImpDepLookup,3,FALSE)*(Operations[[#This Row],[Age]]+1)^0.5-VLOOKUP(Operations[[#This Row],[Depreciation Category]],ImpDepLookup,4,FALSE)*(Operations[[#This Row],[Age]]*Operations[[#This Row],[Annual Use]]/Operations[[#This Row],[Units per Hour]])^0.5)^2) -> 0 | R77: =IF(Operations[[#This Row],[Calc List Price]]=0,0,IF(Operations[[#This Row],[Units per Hour]]*Operations[[#This Row],[Annual Use]]=0,0,(Operations[[#This Row],[Calc Beg Yr. Value]]-Operations[[#This Row],[Calc End Yr. Value]])/(Operations[[#This Row],[Annual Use]]))) -> 0 | S77: =IF(Operations[[#This Row],[Annual Use]]=0,0,Operations[[#This Row],[Calc Beg Yr. Value]]*'General Variables'!$B$9/Operations[[#This Row],[Annual Use]]) -> 0 | T77: =IF(Operations[[#This Row],[Annual Use]]=0,0,Operations[[#This Row],[Calc Beg Yr. Value]]*'General Variables'!$B$10/Operations[[#This Row],[Annual Use]]) -> 0 | U77: =SUM(Operations[[#This Row],[Depreciation per Unit]:[Opportunity Cost per Unit]]) -> 0
N78: =IF(Operations[[#This Row],[List Price]]>1,Operations[[#This Row],[List Price]],IF(Operations[[#This Row],[Depreciation Category]]=0,0,Operations[[#This Row],[Begin Yr. Value]]/(VLOOKUP(Operations[[#This Row],[Depreciation Category]],ImpDepLookup,2,FALSE)-VLOOKUP(Operations[[#This Row],[Depreciation Category]],ImpDepLookup,3,FALSE)*Operations[[#This Row],[Age]]^0.5-VLOOKUP(Operations[[#This Row],[Depreciation Category]],ImpDepLookup,4,FALSE)*(Operations[[#This Row],[Age]]*(Operations[[#This Row],[Age]]*Operations[[#This Row],[Annual Use]]/Operations[[#This Row],[Units per Hour]])^0.5))^2)) -> 0 | O78: =IF(Operations[[#This Row],[Repair Category]]="",0,(((Operations[[#This Row],[Age]]+1)*Operations[[#This Row],[Annual Use]]/Operations[[#This Row],[Units per Hour]]/1000)^VLOOKUP(Operations[[#This Row],[Repair Category]],ImpRepairFac[],4,FALSE)-(Operations[[#This Row],[Age]]*Operations[[#This Row],[Annual Use]]/Operations[[#This Row],[Units per Hour]]/1000)^VLOOKUP(Operations[[#This Row],[Repair Category]],ImpRepairFac[],4,FALSE))*Operations[[#This Row],[Calc List Price]]*VLOOKUP(Operations[[#This Row],[Repair Category]],ImpRepairFac[],3,FALSE)/Operations[[#This Row],[Annual Use]]) -> 0 | P78: =IF(Operations[[#This Row],[Calc List Price]]=0,0,Operations[[#This Row],[Calc List Price]]*(VLOOKUP(Operations[[#This Row],[Depreciation Category]],ImpDepLookup,2,FALSE)-VLOOKUP(Operations[[#This Row],[Depreciation Category]],ImpDepLookup,3,FALSE)*Operations[[#This Row],[Age]]^0.5-VLOOKUP(Operations[[#This Row],[Depreciation Category]],ImpDepLookup,4,FALSE)*(Operations[[#This Row],[Age]]*Operations[[#This Row],[Annual Use]]/Operations[[#This Row],[Units per Hour]])^0.5)^2) -> 0 | Q78: =IF(Operations[[#This Row],[Calc List Price]]=0,0,Operations[[#This Row],[Calc List Price]]*(VLOOKUP(Operations[[#This Row],[Depreciation Category]],ImpDepLookup,2,FALSE)-VLOOKUP(Operations[[#This Row],[Depreciation Category]],ImpDepLookup,3,FALSE)*(Operations[[#This Row],[Age]]+1)^0.5-VLOOKUP(Operations[[#This Row],[Depreciation Category]],ImpDepLookup,4,FALSE)*(Operations[[#This Row],[Age]]*Operations[[#This Row],[Annual Use]]/Operations[[#This Row],[Units per Hour]])^0.5)^2) -> 0 | R78: =IF(Operations[[#This Row],[Calc List Price]]=0,0,IF(Operations[[#This Row],[Units per Hour]]*Operations[[#This Row],[Annual Use]]=0,0,(Operations[[#This Row],[Calc Beg Yr. Value]]-Operations[[#This Row],[Calc End Yr. Value]])/(Operations[[#This Row],[Annual Use]]))) -> 0 | S78: =IF(Operations[[#This Row],[Annual Use]]=0,0,Operations[[#This Row],[Calc Beg Yr. Value]]*'General Variables'!$B$9/Operations[[#This Row],[Annual Use]]) -> 0 | T78: =IF(Operations[[#This Row],[Annual Use]]=0,0,Operations[[#This Row],[Calc Beg Yr. Value]]*'General Variables'!$B$10/Operations[[#This Row],[Annual Use]]) -> 0 | U78: =SUM(Operations[[#This Row],[Depreciation per Unit]:[Opportunity Cost per Unit]]) -> 0
N79: =IF(Operations[[#This Row],[List Price]]>1,Operations[[#This Row],[List Price]],IF(Operations[[#This Row],[Depreciation Category]]=0,0,Operations[[#This Row],[Begin Yr. Value]]/(VLOOKUP(Operations[[#This Row],[Depreciation Category]],ImpDepLookup,2,FALSE)-VLOOKUP(Operations[[#This Row],[Depreciation Category]],ImpDepLookup,3,FALSE)*Operations[[#This Row],[Age]]^0.5-VLOOKUP(Operations[[#This Row],[Depreciation Category]],ImpDepLookup,4,FALSE)*(Operations[[#This Row],[Age]]*(Operations[[#This Row],[Age]]*Operations[[#This Row],[Annual Use]]/Operations[[#This Row],[Units per Hour]])^0.5))^2)) -> 0 | O79: =IF(Operations[[#This Row],[Repair Category]]="",0,(((Operations[[#This Row],[Age]]+1)*Operations[[#This Row],[Annual Use]]/Operations[[#This Row],[Units per Hour]]/1000)^VLOOKUP(Operations[[#This Row],[Repair Category]],ImpRepairFac[],4,FALSE)-(Operations[[#This Row],[Age]]*Operations[[#This Row],[Annual Use]]/Operations[[#This Row],[Units per Hour]]/1000)^VLOOKUP(Operations[[#This Row],[Repair Category]],ImpRepairFac[],4,FALSE))*Operations[[#This Row],[Calc List Price]]*VLOOKUP(Operations[[#This Row],[Repair Category]],ImpRepairFac[],3,FALSE)/Operations[[#This Row],[Annual Use]]) -> 0 | P79: =IF(Operations[[#This Row],[Calc List Price]]=0,0,Operations[[#This Row],[Calc List Price]]*(VLOOKUP(Operations[[#This Row],[Depreciation Category]],ImpDepLookup,2,FALSE)-VLOOKUP(Operations[[#This Row],[Depreciation Category]],ImpDepLookup,3,FALSE)*Operations[[#This Row],[Age]]^0.5-VLOOKUP(Operations[[#This Row],[Depreciation Category]],ImpDepLookup,4,FALSE)*(Operations[[#This Row],[Age]]*Operations[[#This Row],[Annual Use]]/Operations[[#This Row],[Units per Hour]])^0.5)^2) -> 0 | Q79: =IF(Operations[[#This Row],[Calc List Price]]=0,0,Operations[[#This Row],[Calc List Price]]*(VLOOKUP(Operations[[#This Row],[Depreciation Category]],ImpDepLookup,2,FALSE)-VLOOKUP(Operations[[#This Row],[Depreciation Category]],ImpDepLookup,3,FALSE)*(Operations[[#This Row],[Age]]+1)^0.5-VLOOKUP(Operations[[#This Row],[Depreciation Category]],ImpDepLookup,4,FALSE)*(Operations[[#This Row],[Age]]*Operations[[#This Row],[Annual Use]]/Operations[[#This Row],[Units per Hour]])^0.5)^2) -> 0 | R79: =IF(Operations[[#This Row],[Calc List Price]]=0,0,IF(Operations[[#This Row],[Units per Hour]]*Operations[[#This Row],[Annual Use]]=0,0,(Operations[[#This Row],[Calc Beg Yr. Value]]-Operations[[#This Row],[Calc End Yr. Value]])/(Operations[[#This Row],[Annual Use]]))) -> 0 | S79: =IF(Operations[[#This Row],[Annual Use]]=0,0,Operations[[#This Row],[Calc Beg Yr. Value]]*'General Variables'!$B$9/Operations[[#This Row],[Annual Use]]) -> 0 | T79: =IF(Operations[[#This Row],[Annual Use]]=0,0,Operations[[#This Row],[Calc Beg Yr. Value]]*'General Variables'!$B$10/Operations[[#This Row],[Annual Use]]) -> 0 | U79: =SUM(Operations[[#This Row],[Depreciation per Unit]:[Opportunity Cost per Unit]]) -> 0
N80: =IF(Operations[[#This Row],[List Price]]>1,Operations[[#This Row],[List Price]],IF(Operations[[#This Row],[Depreciation Category]]=0,0,Operations[[#This Row],[Begin Yr. Value]]/(VLOOKUP(Operations[[#This Row],[Depreciation Category]],ImpDepLookup,2,FALSE)-VLOOKUP(Operations[[#This Row],[Depreciation Category]],ImpDepLookup,3,FALSE)*Operations[[#This Row],[Age]]^0.5-VLOOKUP(Operations[[#This Row],[Depreciation Category]],ImpDepLookup,4,FALSE)*(Operations[[#This Row],[Age]]*(Operations[[#This Row],[Age]]*Operations[[#This Row],[Annual Use]]/Operations[[#This Row],[Units per Hour]])^0.5))^2)) -> 0 | O80: =IF(Operations[[#This Row],[Repair Category]]="",0,(((Operations[[#This Row],[Age]]+1)*Operations[[#This Row],[Annual Use]]/Operations[[#This Row],[Units per Hour]]/1000)^VLOOKUP(Operations[[#This Row],[Repair Category]],ImpRepairFac[],4,FALSE)-(Operations[[#This Row],[Age]]*Operations[[#This Row],[Annual Use]]/Operations[[#This Row],[Units per Hour]]/1000)^VLOOKUP(Operations[[#This Row],[Repair Category]],ImpRepairFac[],4,FALSE))*Operations[[#This Row],[Calc List Price]]*VLOOKUP(Operations[[#This Row],[Repair Category]],ImpRepairFac[],3,FALSE)/Operations[[#This Row],[Annual Use]]) -> 0 | P80: =IF(Operations[[#This Row],[Calc List Price]]=0,0,Operations[[#This Row],[Calc List Price]]*(VLOOKUP(Operations[[#This Row],[Depreciation Category]],ImpDepLookup,2,FALSE)-VLOOKUP(Operations[[#This Row],[Depreciation Category]],ImpDepLookup,3,FALSE)*Operations[[#This Row],[Age]]^0.5-VLOOKUP(Operations[[#This Row],[Depreciation Category]],ImpDepLookup,4,FALSE)*(Operations[[#This Row],[Age]]*Operations[[#This Row],[Annual Use]]/Operations[[#This Row],[Units per Hour]])^0.5)^2) -> 0 | Q80: =IF(Operations[[#This Row],[Calc List Price]]=0,0,Operations[[#This Row],[Calc List Price]]*(VLOOKUP(Operations[[#This Row],[Depreciation Category]],ImpDepLookup,2,FALSE)-VLOOKUP(Operations[[#This Row],[Depreciation Category]],ImpDepLookup,3,FALSE)*(Operations[[#This Row],[Age]]+1)^0.5-VLOOKUP(Operations[[#This Row],[Depreciation Category]],ImpDepLookup,4,FALSE)*(Operations[[#This Row],[Age]]*Operations[[#This Row],[Annual Use]]/Operations[[#This Row],[Units per Hour]])^0.5)^2) -> 0 | R80: =IF(Operations[[#This Row],[Calc List Price]]=0,0,IF(Operations[[#This Row],[Units per Hour]]*Operations[[#This Row],[Annual Use]]=0,0,(Operations[[#This Row],[Calc Beg Yr. Value]]-Operations[[#This Row],[Calc End Yr. Value]])/(Operations[[#This Row],[Annual Use]]))) -> 0 | S80: =IF(Operations[[#This Row],[Annual Use]]=0,0,Operations[[#This Row],[Calc Beg Yr. Value]]*'General Variables'!$B$9/Operations[[#This Row],[Annual Use]]) -> 0 | T80: =IF(Operations[[#This Row],[Annual Use]]=0,0,Operations[[#This Row],[Calc Beg Yr. Value]]*'General Variables'!$B$10/Operations[[#This Row],[Annual Use]]) -> 0 | U80: =SUM(Operations[[#This Row],[Depreciation per Unit]:[Opportunity Cost per Unit]]) -> 0
N81: =IF(Operations[[#This Row],[List Price]]>1,Operations[[#This Row],[List Price]],IF(Operations[[#This Row],[Depreciation Category]]=0,0,Operations[[#This Row],[Begin Yr. Value]]/(VLOOKUP(Operations[[#This Row],[Depreciation Category]],ImpDepLookup,2,FALSE)-VLOOKUP(Operations[[#This Row],[Depreciation Category]],ImpDepLookup,3,FALSE)*Operations[[#This Row],[Age]]^0.5-VLOOKUP(Operations[[#This Row],[Depreciation Category]],ImpDepLookup,4,FALSE)*(Operations[[#This Row],[Age]]*(Operations[[#This Row],[Age]]*Operations[[#This Row],[Annual Use]]/Operations[[#This Row],[Units per Hour]])^0.5))^2)) -> 0 | O81: =IF(Operations[[#This Row],[Repair Category]]="",0,(((Operations[[#This Row],[Age]]+1)*Operations[[#This Row],[Annual Use]]/Operations[[#This Row],[Units per Hour]]/1000)^VLOOKUP(Operations[[#This Row],[Repair Category]],ImpRepairFac[],4,FALSE)-(Operations[[#This Row],[Age]]*Operations[[#This Row],[Annual Use]]/Operations[[#This Row],[Units per Hour]]/1000)^VLOOKUP(Operations[[#This Row],[Repair Category]],ImpRepairFac[],4,FALSE))*Operations[[#This Row],[Calc List Price]]*VLOOKUP(Operations[[#This Row],[Repair Category]],ImpRepairFac[],3,FALSE)/Operations[[#This Row],[Annual Use]]) -> 0 | P81: =IF(Operations[[#This Row],[Calc List Price]]=0,0,Operations[[#This Row],[Calc List Price]]*(VLOOKUP(Operations[[#This Row],[Depreciation Category]],ImpDepLookup,2,FALSE)-VLOOKUP(Operations[[#This Row],[Depreciation Category]],ImpDepLookup,3,FALSE)*Operations[[#This Row],[Age]]^0.5-VLOOKUP(Operations[[#This Row],[Depreciation Category]],ImpDepLookup,4,FALSE)*(Operations[[#This Row],[Age]]*Operations[[#This Row],[Annual Use]]/Operations[[#This Row],[Units per Hour]])^0.5)^2) -> 0 | Q81: =IF(Operations[[#This Row],[Calc List Price]]=0,0,Operations[[#This Row],[Calc List Price]]*(VLOOKUP(Operations[[#This Row],[Depreciation Category]],ImpDepLookup,2,FALSE)-VLOOKUP(Operations[[#This Row],[Depreciation Category]],ImpDepLookup,3,FALSE)*(Operations[[#This Row],[Age]]+1)^0.5-VLOOKUP(Operations[[#This Row],[Depreciation Category]],ImpDepLookup,4,FALSE)*(Operations[[#This Row],[Age]]*Operations[[#This Row],[Annual Use]]/Operations[[#This Row],[Units per Hour]])^0.5)^2) -> 0 | R81: =IF(Operations[[#This Row],[Calc List Price]]=0,0,IF(Operations[[#This Row],[Units per Hour]]*Operations[[#This Row],[Annual Use]]=0,0,(Operations[[#This Row],[Calc Beg Yr. Value]]-Operations[[#This Row],[Calc End Yr. Value]])/(Operations[[#This Row],[Annual Use]]))) -> 0 | S81: =IF(Operations[[#This Row],[Annual Use]]=0,0,Operations[[#This Row],[Calc Beg Yr. Value]]*'General Variables'!$B$9/Operations[[#This Row],[Annual Use]]) -> 0 | T81: =IF(Operations[[#This Row],[Annual Use]]=0,0,Operations[[#This Row],[Calc Beg Yr. Value]]*'General Variables'!$B$10/Operations[[#This Row],[Annual Use]]) -> 0 | U81: =SUM(Operations[[#This Row],[Depreciation per Unit]:[Opportunity Cost per Unit]]) -> 0
N82: =IF(Operations[[#This Row],[List Price]]>1,Operations[[#This Row],[List Price]],IF(Operations[[#This Row],[Depreciation Category]]=0,0,Operations[[#This Row],[Begin Yr. Value]]/(VLOOKUP(Operations[[#This Row],[Depreciation Category]],ImpDepLookup,2,FALSE)-VLOOKUP(Operations[[#This Row],[Depreciation Category]],ImpDepLookup,3,FALSE)*Operations[[#This Row],[Age]]^0.5-VLOOKUP(Operations[[#This Row],[Depreciation Category]],ImpDepLookup,4,FALSE)*(Operations[[#This Row],[Age]]*(Operations[[#This Row],[Age]]*Operations[[#This Row],[Annual Use]]/Operations[[#This Row],[Units per Hour]])^0.5))^2)) -> 0 | O82: =IF(Operations[[#This Row],[Repair Category]]="",0,(((Operations[[#This Row],[Age]]+1)*Operations[[#This Row],[Annual Use]]/Operations[[#This Row],[Units per Hour]]/1000)^VLOOKUP(Operations[[#This Row],[Repair Category]],ImpRepairFac[],4,FALSE)-(Operations[[#This Row],[Age]]*Operations[[#This Row],[Annual Use]]/Operations[[#This Row],[Units per Hour]]/1000)^VLOOKUP(Operations[[#This Row],[Repair Category]],ImpRepairFac[],4,FALSE))*Operations[[#This Row],[Calc List Price]]*VLOOKUP(Operations[[#This Row],[Repair Category]],ImpRepairFac[],3,FALSE)/Operations[[#This Row],[Annual Use]]) -> 0 | P82: =IF(Operations[[#This Row],[Calc List Price]]=0,0,Operations[[#This Row],[Calc List Price]]*(VLOOKUP(Operations[[#This Row],[Depreciation Category]],ImpDepLookup,2,FALSE)-VLOOKUP(Operations[[#This Row],[Depreciation Category]],ImpDepLookup,3,FALSE)*Operations[[#This Row],[Age]]^0.5-VLOOKUP(Operations[[#This Row],[Depreciation Category]],ImpDepLookup,4,FALSE)*(Operations[[#This Row],[Age]]*Operations[[#This Row],[Annual Use]]/Operations[[#This Row],[Units per Hour]])^0.5)^2) -> 0 | Q82: =IF(Operations[[#This Row],[Calc List Price]]=0,0,Operations[[#This Row],[Calc List Price]]*(VLOOKUP(Operations[[#This Row],[Depreciation Category]],ImpDepLookup,2,FALSE)-VLOOKUP(Operations[[#This Row],[Depreciation Category]],ImpDepLookup,3,FALSE)*(Operations[[#This Row],[Age]]+1)^0.5-VLOOKUP(Operations[[#This Row],[Depreciation Category]],ImpDepLookup,4,FALSE)*(Operations[[#This Row],[Age]]*Operations[[#This Row],[Annual Use]]/Operations[[#This Row],[Units per Hour]])^0.5)^2) -> 0 | R82: =IF(Operations[[#This Row],[Calc List Price]]=0,0,IF(Operations[[#This Row],[Units per Hour]]*Operations[[#This Row],[Annual Use]]=0,0,(Operations[[#This Row],[Calc Beg Yr. Value]]-Operations[[#This Row],[Calc End Yr. Value]])/(Operations[[#This Row],[Annual Use]]))) -> 0 | S82: =IF(Operations[[#This Row],[Annual Use]]=0,0,Operations[[#This Row],[Calc Beg Yr. Value]]*'General Variables'!$B$9/Operations[[#This Row],[Annual Use]]) -> 0 | T82: =IF(Operations[[#This Row],[Annual Use]]=0,0,Operations[[#This Row],[Calc Beg Yr. Value]]*'General Variables'!$B$10/Operations[[#This Row],[Annual Use]]) -> 0 | U82: =SUM(Operations[[#This Row],[Depreciation per Unit]:[Opportunity Cost per Unit]]) -> 0
